{"text_format":"1","workbook":"xlsx","n_sheets":24,"sheets":["Eingabe","B21","B22","B4","B5a","B5b","B6","C1","D11","D12","D13","E11","E12","E13","E14","E15","F11","F12","F21","F22","F31","F32","Codes","Abflussbeiwerte"],"not_rendered":{"charts":6,"images":20,"macros":1,"external_links":0,"defined_names":42,"comments":13,"pivot_tables":0},"unopened":[],"bounds":{"document_bytes":16777216,"sheet_cells":100000,"rows_first":2000,"rows_last":500,"rows_between":2000,"halvings":0,"cell_chars":16384,"cell_head_chars":4096},"cells_cut":0,"cells_raw":0,"read":"whole","date_system":"1900"}

{"sheet":"Eingabe","index":0,"n_rows":54,"n_cols":16,"rows_kept":54,"cut":false,"hidden":false,"merged":[[52,1,52,2],[34,1,34,2],[29,1,29,2],[16,1,16,3],[17,1,17,3],[18,1,18,3],[24,1,24,3],[32,1,32,2],[8,1,8,4],[9,1,9,4],[10,1,10,4],[15,1,15,3],[19,1,19,2],[20,1,20,2],[21,1,21,2]]}
["Eingabe",null,null,null,null,null,null,null,null,null,null,null,null,null,"Einblenden","Formel"]
["Liegenschaftsentwässerung",null,null,null,null,null,null,null,null,null,null,null,null,null,"Ausblenden","SPST"]
[]
["Fachplaner",null,null,null,null,null,null,null,null,null,null,null,null,null,1]
[null,null,null,null,null,null,null,null,null,null,null,null,null,null,1]
["Auftragsnummer:",null,null,null,null,null,null,null,null,null,null,null,null,null,0]
["Sachbearbeiter:",null,null,null,null,null,null,null,null,null,null,null,null,null,0]
["Niederlassung:",null,null,null,null,null,null,null,null,null,null,null,null,null,0]
["Fachplaner",null,null,null,null,null,null,null,null,null,null,null,null,null,1,1]
["Adresse",null,null,null,null,null,null,null,null,null,null,null,null,null,1,1]
["PLZ, Ort",null,null,null,null,null,null,null,null,null,null,null,null,null,1,1]
[null,null,null,null,null,null,null,null,null,null,null,null,null,null,1]
[null,null,null,null,null,null,null,null,null,null,null,null,null,null,1]
["Bauobjekt",null,null,null,null,null,null,null,null,null,null,null,null,null,1]
[null,null,null,null,null,null,null,null,null,null,null,null,null,null,1]
["Gemeinde:",null,null,null,null,null,null,null,null,null,null,null,null,null,1,1]
["Objekt:",null,null,null,null,null,null,null,null,null,null,null,null,null,1,1]
["Bauherr:",null,null,null,null,null,null,null,null,null,null,null,null,null,1,1]
["Architekt:",null,null,null,null,null,null,null,null,null,null,null,null,null,1,1]
["Sachbearbeiter",null,null,null,null,null,null,null,null,null,null,null,null,null,0]
["Telefon",null,null,null,null,null,null,null,null,null,null,null,null,null,0]
["E-Mail",null,null,null,null,null,null,null,null,null,null,null,null,null,0]
["Parzellen-Nr.",null,null,null,null,null,null,null,null,null,null,null,null,null,1,1]
["Parzellenfläche",null,"m2",null,null,null,null,null,null,null,null,null,null,null,1]
["Bauzone",null,null,null,null,null,null,null,null,null,null,null,null,null,1]
[null,null,null,null,null,null,null,null,null,null,null,null,null,null,1]
[null,null,null,null,null,null,null,null,null,null,null,null,null,null,1]
["Versickerung",null,null,null,null,null,null,null,null,null,null,null,null,null,1]
[null,null,null,null,null,null,null,null,null,null,null,null,null,null,1]
["Gewässerschutz",null,null,null,null,{"$f":"IF(OR(B30=Codes!B45,B30=Codes!B46),1,0)","v":0},{"$f":"IF(B30=Codes!B47,1,0)","v":0},{"$f":"IF(B30=Codes!B43,1,0)","v":0},{"$f":"IF(B30=Codes!B44,1,0)","v":0},null,null,null,null,null,0]
["Belasteter Standort",null,null,null,null,false,true,null,null,null,null,null,null,null,0]
[null,null,null,null,null,null,null,null,null,null,null,null,null,null,0]
["Versickerungsmöglichkeit",null,null,null,null,{"$f":"IF(B33=Codes!B35,1,0)","v":0},{"$f":"IF(B33=Codes!B36,1,0)","v":0},{"$f":"IF(B33=Codes!B37,1,0)","v":0},{"$f":"IF(B33=Codes!B38,1,0)","v":0},{"$f":"IF(B33=Codes!B39,1,0)","v":0},null,null,null,null,0]
["Versickerung erforderlich","Ja",null,null,null,null,null,null,null,null,null,null,null,null,1]
["Sickerfähigkeit",null,null,null,null,{"$f":"IF(AND(B35=\"geschätzt\",B34=\"Ja\"),1,0)","v":0},{"$f":"IF(AND(F35=0,B34=\"Ja\"),1,0)","v":1},null,null,null,null,null,null,null,0]
["Sickerleistung",null,"l/min m2",null,null,null,null,null,null,null,null,null,null,null,0]
[null,null,null,null,null,null,null,null,null,null,null,null,null,null,0]
["Terrainhöhe:",null,"m ü M",null,null,null,null,null,null,null,null,null,null,null,0]
["GWSP:",null,"m ü M",null,null,null,null,null,null,null,null,null,null,null,0]
["Sohle Versickerung:",null,"m ü M",null,null,null,null,null,null,null,null,null,null,null,0]
["Flurabstand",null,"m",null,null,{"$f":"IF(AND(B41<1.5,B34=\"Ja\"),1,0)","v":1},{"$f":"IF(AND(F41+H41=0,B34=\"Ja\"),1,0)","v":0},{"$f":"IF(AND(B41>3,B34=\"Ja\"),1,0)","v":0},null,null,null,null,null,null,0]
[null,null,null,null,null,null,null,null,null,null,null,null,null,null,1]
[null,null,null,null,null,null,null,null,null,null,null,null,null,null,1]
["Abflussbeiwert",null,null,null,null,null,null,null,null,null,null,null,null,null,1]
[null,null,null,null,null,null,null,null,null,null,null,null,null,null,1]
["maximal zulässiger Anflussbeiwert",null,null,null,null,"Gesamtabflussbeiwert",null,null,null,null,null,null,null,null,1]
["Mit Versickerung",{"$f":"G47","v":0},null,null,null,"Mit VS",{"$f":"IF(F53=1,Codes!F226,IF(G53=1,Codes!H226,IF(H53=1,Codes!L226)))","v":0},null,null,null,null,null,null,null,1]
["Ohne Versickerung",{"$f":"G48","v":0},null,null,null,"Ohne VS",{"$f":"IF(F53=1,Codes!E226,IF(G53=1,Codes!G226,IF(H53=1,Codes!I226)))","v":0},null,null,null,null,null,null,null,1]
[null,null,null,null,null,null,null,null,null,null,null,null,null,null,1]
[null,null,null,null,null,null,null,null,null,null,null,null,null,null,1]
["Entwässerungskonzept",null,null,null,null,null,null,null,null,null,null,null,null,null,1]
[null,null,null,null,null,null,null,null,null,null,null,null,null,null,1]
["Entwässerungssystem:","Mischsystem",null,{"$f":"IF(B34=\"Nein\",B48,B47)","v":0},null,{"$f":"IF(B53=Codes!B28,1,0)","v":1},{"$f":"IF(B53=Codes!B29,1,0)","v":0},{"$f":"IF(B53=Codes!B30,1,0)","v":0},null,{"$f":"VLOOKUP(Codes!B220,Codes!B220:N220,Codes!E236,FALSE)","v":0},null,null,null,null,1]
[null,null,null,null,null,null,null,null,null,null,null,null,null,null,1]

{"sheet":"B21","index":1,"n_rows":51,"n_cols":23,"rows_kept":51,"cut":false,"hidden":false,"merged":[[9,16,9,18],[7,19,7,20],[7,21,7,22],[8,16,8,18],[28,0,28,1],[28,3,28,12],[23,6,23,12],[21,16,21,17],[13,16,14,18],[3,0,3,1],[3,2,3,3],[4,0,4,1],[4,2,4,13],[5,0,5,1],[5,2,5,13],[6,0,6,1],[6,2,6,13],[7,2,7,13],[9,3,9,5],[10,3,10,5],[48,3,48,12],[49,3,49,12],[42,0,42,1],[42,3,42,12],[43,0,43,1],[43,3,43,12],[44,0,45,1],[44,3,45,12],[47,0,47,1],[47,3,47,12],[44,13,45,13],[46,3,46,12],[39,0,39,1],[39,3,39,12],[40,0,40,1],[40,3,40,12],[41,0,41,1],[41,3,41,12],[38,0,38,1],[38,3,38,12],[32,0,32,1],[32,3,32,12],[33,0,33,1],[33,3,33,12],[37,0,37,1],[37,3,37,12],[34,0,34,1],[34,3,34,12],[35,3,35,12],[36,0,36,1],[36,3,36,12],[29,0,29,1],[29,3,29,12],[30,0,30,1],[30,3,30,12],[31,0,31,1],[31,3,31,12]]}
["B2","Nachweis Abflussbeiwert"]
[null,"Liegenschaftsentwässerung"]
[]
["Gemeinde",null,{"$f":"Eingabe!B16","v":0},null,null,"Parzellen-Nr.:",{"$f":"Eingabe!B23","v":0}]
["Objekt",null,{"$f":"Eingabe!B17","v":0}]
["Bauherr",null,{"$f":"Eingabe!B18","v":0}]
["Architekt",null,{"$f":"Eingabe!B19","v":0}]
["Fachplaner",null,{"$f":"Eingabe!B9&\", \"&Eingabe!B10&\", \"&Eingabe!B11","v":", , "},null,null,null,null,null,null,null,null,null,null,null,null,null,null,null,null,"Abflussbeiwert",null,"Teilabflussbeiwerte"]
[null,null,null,null,null,null,null,null,null,null,null,null,null,null,null,null,{"$f":"IF(Eingabe!J53=\"i\",\"Abklärung Abflussbeiwert mit Gemeinde notwendig!\",\"\")","v":""},null,null,"mit VS","Ohne VS","Anteil MW","Anteil RW"]
["Abwassersystem:",null,null,{"$f":"Eingabe!B53","v":"Mischsystem"},null,null,"(vgl. Wegleitung 2021, Kapitel 7)",null,null,null,null,null,null,null,null,null," Angabe Abflussbeiwert nach Absprache Gemeinde:",null,null,{"$f":"IF(D12=\"Ja\",SUM(V10:W10),\"\")","v":0},{"$f":"IF(D12=\"Nein\",SUM(V10:W10),\"\")","v":""}]
["Bauzone:",null,null,{"$f":"Eingabe!B25","v":0}]
["Versickerung erforderlich:",null,null,{"$f":"Eingabe!B34","v":"Ja"}]
[null,null,null,"mit","ohne","Versickerung",null,null,null,null,null,null,null,null,null,null,"ACHTUNG"]
["Abflussbeiwert nach GEP:",null,null,{"$f":"IF(Eingabe!B47=\"i\",T10,IF(Eingabe!B47=0,\"-\",Eingabe!B47))","v":"-"},{"$f":"IF(Eingabe!B48=\"i\",U10,IF(Eingabe!B48=0,\"-\",Eingabe!B48))","v":"-"},null,"(vgl. Wegleitung 2021, Kapitel 8)",null,null,null,null,null,null,null,null,null,"Ausgewiesene Parzellenfläche entspricht nicht der Summe aller Flächen im Formular B2 auf Seite 2."]
[{"$f":"IF(Eingabe!$J$53=\"i\",\"Abflussbeiwert nach Absprache mit Gemeinde\",\"\")","v":""}]
["Parz. Fläche:",null,null,{"$f":"Eingabe!B24","v":0},"m2",null,null,null,null,null,null,null,null,null,null,null,"ausgewiesene Fläche:",{"$f":"D16","v":0},"m2"]
[null,null,null,null,null,null,null,null,null,null,null,null,null,null,null,null,"Summe der Flächen (S. 2)",{"$f":"'B22'!D11+'B22'!D19+'B22'!D27+'B22'!D35","v":0},"m2"]
["Regenspende r:",null,null,{"$f":"0.036","v":3.5999999999999997E-2},"l/s m2",null,null,null,null,null,null,null,null,null,null,null,"Differenz:",{"$f":"R17-R16","v":0},"m2"]
["Sicherheitsfaktor SF:",null,null,1,null,null,"(vgl. SN 592 000, Kapitel 7.3.3)"]
[]
[]
["Nachweis Abflussbeiwert",null,null,"MW","RW","Total"]
["zulässiger Abflussbeiwert:",null,null,{"$f":"IF($D$10=0,\"\",IF(D10=\"Trennsystem\",0,VLOOKUP(Codes!B226,Codes!B226:N226,Codes!E237,FALSE)))","v":0},{"$f":"IF($D$10=0,\"\",IF(D10=\"Mischsystem\",0,VLOOKUP(Codes!B226,Codes!B226:N226,Codes!E238,FALSE)))","v":0},{"$f":"VLOOKUP($C$4,Codes!B226:N226,Codes!$E$236,FALSE)","v":0},null,"Fred,zul=",{"$f":"F23*D16","v":0},"Fred,vorh=",{"$f":"'B22'!L27+'B22'!L35","v":0},{"$f":"IF('B22'!J27+'B22'!J35>0,\"(mit Retention)\",\"\")","v":""}]
["errechneter Abflussbeiwert:",null,null,{"$f":"IFERROR(IF('B22'!L35=\"\",\"\",'B22'!L35/$D$16),0)","v":0},{"$f":"IFERROR(IF('B22'!L27=\"\",\"\",'B22'!L27/$D$16),0)","v":0},{"$f":"SUM(D24:E24)","v":0},{"$f":"IF(F24>F23,\"GEP-Bedingungen NICHT erfüllt\",IF(OR(D23<D24,E23<E24),\"GEP-Bedingungen teilweise NICHT erfüllt\",\"GEP-Bedingungen erfüllt\"))","v":"GEP-Bedingungen erfüllt"}]
[]
[]
[]
["Beregnete, homogene Fläche",null,null,null,null,null,null,null,null,null,null,null,null,"C",null,null,"C-Wert für Technische Dachretention manuell eingeben gemäss Herstellerangaben"]
["Gebäude",null,null,"Schräg- u. Flachdächer befestigt, unabhängig v. Material u. Dachhaut",null,null,null,null,null,null,null,null,null,0.9]
[null,null,null,"Flachdach bekiest (Kiesklebedach)",null,null,null,null,null,null,null,null,null,0.8]
[null,null,null,"Flachdach humusiert1), Aufbaudicke         > 50 cm",null,null,null,null,null,null,null,null,null,0.1]
[null,null,null,"Flachdach humusiert1), Aufbaudicke      26-50 cm",null,null,null,null,null,null,null,null,null,0.2]
[null,null,null,"Flachdach humusiert1), Aufbaudicke      10-25 cm",null,null,null,null,null,null,null,null,null,0.4]
[null,null,null,"Flachdach humusiert1), Aufbaudicke         < 10 cm",null,null,null,null,null,null,null,null,null,0.7]
[null,null,null,"Technische Dachretention (Nachweis erforderlich)"]
["Plätze / Wege",null,null,"Hartbeläge undurchlässig",null,null,null,null,null,null,null,null,null,0.9]
[null,null,null,"Hartbeläge durchlässig (Sickerbeläge)",null,null,null,null,null,null,null,null,null,0.6]
[null,null,null,"Kiesbelag",null,null,null,null,null,null,null,null,null,0.6]
[null,null,null,"Pflaster mit Fugenverschluss",null,null,null,null,null,null,null,null,null,0.8]
[null,null,null,"Plaster mit normalen Sandfugen",null,null,null,null,null,null,null,null,null,0.6]
[null,null,null,"Pflaster mit Ökosystem (Splittfugen / Rasenfugen)",null,null,null,null,null,null,null,null,null,0.4]
[null,null,null,"Pflaster mit Sickersteinen ",null,null,null,null,null,null,null,null,null,0.2]
[null,null,null,"Pflaster mit Rasengittersteinen",null,null,null,null,null,null,null,null,null,0.2]
[null,null,null,"Gartenplatten mit Splitt- u. Sandfugen",null,null,null,null,null,null,null,null,null,0.6]
["Kultivierte Flächen",null,null,"Wasserdurchlässige Flächen ohne definierte Wasserableitung, aber dennoch abflusswirksam:"]
[]
[null,null,null,"- Parkanlagen und Vegetationsschichten",null,null,null,null,null,null,null,null,null,0.1]
[null,null,null,"- Wiese, Acker",null,null,null,null,null,null,null,null,null,0.1]
[null,null,null,"- Bestockte Flächen",null,null,null,null,null,null,null,null,null,0.05]
["Gewässer",null,null,"Biotope, Schwimmbäder, etc.",null,null,null,null,null,null,null,null,null,1]
["1)gültig bis 15° Dachneigung (C um 0.10 erhöhen, wenn Dachneigung grösser ist)"]

{"sheet":"B22","index":2,"n_rows":41,"n_cols":22,"rows_kept":41,"cut":false,"hidden":false,"merged":[[37,0,39,10],[35,2,36,10],[12,3,13,3],[12,4,13,4],[28,4,29,4],[28,5,29,5],[28,6,29,6],[28,7,30,7],[28,8,29,8],[28,9,29,9],[20,3,21,3],[20,4,21,4],[20,5,21,5],[20,6,21,6],[28,3,29,3],[12,8,14,8],[4,7,6,7],[12,6,13,6],[4,3,5,3],[4,4,5,4],[4,5,5,5],[4,6,5,6],[12,5,13,5],[12,7,14,7],[20,11,21,11],[28,11,29,11],[20,7,22,7],[20,8,21,8],[20,9,21,9],[20,10,21,10],[28,10,29,10]]}
["B2","Nachweis Abflussbeiwert",null,null,null,null,null,null,null,null,null,null,null,null,null,{"$f":"P35","v":35},null,null,"A","B","C","D"]
[null,"Liegenschaftsentwässerung",null,null,null,null,null,null,null,null,null,null,null,null,null,{"$f":"MAX(O3:O28)","v":0},null,null,{"$f":"ROW(D11)","v":11},{"$f":"ROW(D19)","v":19},{"$f":"ROW(D27)","v":27},{"$f":"ROW(D35)","v":35}]
[null,null,null,null,null,null,null,null,null,null,null,null,null,null,null,null,null,null,{"$f":"ROW(A7)","v":7},{"$f":"ROW(A15)","v":15},{"$f":"ROW(A23)","v":23},{"$f":"ROW(A31)","v":31}]
[]
["A","Oberflächenversickerung (nicht Abflusswirksam)",null,"Fläche","Abfluss-beiwert","Fred","Abfluss",null,null,null,null,"Neue Zeilen in die entsprechnd vorbereiteten Tabellen einfügen bzw. löschen"]
[]
["Nr.","Art der Fläche bzw. Entwässerung","Teilfläche","[m2]","[-]","[m2]","[l/s]"]
[null,null,null,null,{"$f":"IF(Oberflächenversickerung[[#This Row],[Spalte3]]=\"\",\"\",VLOOKUP(Oberflächenversickerung[[#This Row],[Spalte3]],Codes!$B$3:$E$24,4,FALSE))","v":""},{"$f":"IF(Oberflächenversickerung[[#This Row],[Spalte5]]=\"\",\"\",PRODUCT(Oberflächenversickerung[[#This Row],[Spalte4]:[Spalte5]]))","v":""},{"$f":"IF(Oberflächenversickerung[[#This Row],[Spalte6]]=\"\",\"\",'B21'!$D$18*'B21'!$D$19*Oberflächenversickerung[[#This Row],[Spalte6]])","v":""}]
[null,null,null,null,{"$f":"IF(Oberflächenversickerung[[#This Row],[Spalte3]]=\"\",\"\",VLOOKUP(Oberflächenversickerung[[#This Row],[Spalte3]],Codes!$B$3:$E$24,4,FALSE))","v":""},{"$f":"IF(Oberflächenversickerung[[#This Row],[Spalte5]]=\"\",\"\",PRODUCT(Oberflächenversickerung[[#This Row],[Spalte4]:[Spalte5]]))","v":""},{"$f":"IF(Oberflächenversickerung[[#This Row],[Spalte6]]=\"\",\"\",'B21'!$D$18*'B21'!$D$19*Oberflächenversickerung[[#This Row],[Spalte6]])","v":""}]
[null,null,null,null,{"$f":"IF(Oberflächenversickerung[[#This Row],[Spalte3]]=\"\",\"\",VLOOKUP(Oberflächenversickerung[[#This Row],[Spalte3]],Codes!$B$3:$E$24,4,FALSE))","v":""},{"$f":"IF(Oberflächenversickerung[[#This Row],[Spalte5]]=\"\",\"\",PRODUCT(Oberflächenversickerung[[#This Row],[Spalte4]:[Spalte5]]))","v":""},{"$f":"IF(Oberflächenversickerung[[#This Row],[Spalte6]]=\"\",\"\",'B21'!$D$18*'B21'!$D$19*Oberflächenversickerung[[#This Row],[Spalte6]])","v":""}]
[null,null,"Total A",{"$f":"SUM(D8:D10)","v":0},null,{"$f":"SUM(F8:F10)","v":0},{"$f":"SUM(G8:G10)","v":0}]
[]
["B","Ableitung zur Versickerungsanlage",null,"Fläche","Abfluss-beiwert","Fred","Abfluss","Anlage","Schacht",null,null,null,null,null,"Versickerungsanlage"]
[null,null,null,null,null,null,null,null,null,null,null,null,null,null,"Vorreinigungs-Schacht"]
["Nr.","Art der Fläche bzw. Entwässerung","Teilfläche","[m2]","[-]","[m2]","[l/s]"]
[null,null,null,null,{"$f":"IF(Abl_Versickerung[[#This Row],[Spalte3]]=\"\",\"\",VLOOKUP(Abl_Versickerung[[#This Row],[Spalte3]],Codes!$B$3:$E$24,4,FALSE))","v":""},{"$f":"IF(Abl_Versickerung[[#This Row],[Spalte5]]=\"\",\"\",PRODUCT(Abl_Versickerung[[#This Row],[Spalte4]:[Spalte5]]))","v":""},{"$f":"IF(Abl_Versickerung[[#This Row],[Spalte6]]=\"\",\"\",'B21'!$D$18*'B21'!$D$19*Abl_Versickerung[[#This Row],[Spalte6]])","v":""},{"$f":"IF(Abl_Versickerung[[#This Row],[Spalte14]]=\"\",\"\",Abl_Versickerung[[#This Row],[Spalte17]])","v":""},{"$f":"IF(Abl_Versickerung[[#This Row],[Spalte14]]=\"\",\"\",RIGHT(Abl_Versickerung[[#This Row],[Spalte18]],1)*1)","v":""},null,null,null,null,null,null,{"$f":"VLOOKUP(Abl_Versickerung[[#This Row],[Spalte14]],Codes!B$193:E$203,3,FALSE)","v":{"$error":"#N/A"}},{"$f":"VLOOKUP(Abl_Versickerung[[#This Row],[Spalte14]],Codes!B$193:E$203,4,FALSE)","v":{"$error":"#N/A"}},{"$f":"VLOOKUP(Abl_Versickerung[[#This Row],[Spalte3]],Codes!$B$3:$F$24,5,FALSE)","v":{"$error":"#N/A"}}]
[null,null,null,null,{"$f":"IF(Abl_Versickerung[[#This Row],[Spalte3]]=\"\",\"\",VLOOKUP(Abl_Versickerung[[#This Row],[Spalte3]],Codes!$B$3:$E$24,4,FALSE))","v":""},{"$f":"IF(Abl_Versickerung[[#This Row],[Spalte5]]=\"\",\"\",PRODUCT(Abl_Versickerung[[#This Row],[Spalte4]:[Spalte5]]))","v":""},{"$f":"IF(Abl_Versickerung[[#This Row],[Spalte6]]=\"\",\"\",'B21'!$D$18*'B21'!$D$19*Abl_Versickerung[[#This Row],[Spalte6]])","v":""},{"$f":"IF(Abl_Versickerung[[#This Row],[Spalte14]]=\"\",\"\",Abl_Versickerung[[#This Row],[Spalte17]])","v":""},{"$f":"IF(Abl_Versickerung[[#This Row],[Spalte14]]=\"\",\"\",RIGHT(Abl_Versickerung[[#This Row],[Spalte18]],1)*1)","v":""},null,null,null,null,null,null,{"$f":"VLOOKUP(Abl_Versickerung[[#This Row],[Spalte14]],Codes!B$193:E$203,3,FALSE)","v":{"$error":"#N/A"}},{"$f":"VLOOKUP(Abl_Versickerung[[#This Row],[Spalte14]],Codes!B$193:E$203,4,FALSE)","v":{"$error":"#N/A"}},{"$f":"VLOOKUP(Abl_Versickerung[[#This Row],[Spalte3]],Codes!$B$3:$F$24,5,FALSE)","v":{"$error":"#N/A"}}]
[null,null,null,null,{"$f":"IF(Abl_Versickerung[[#This Row],[Spalte3]]=\"\",\"\",VLOOKUP(Abl_Versickerung[[#This Row],[Spalte3]],Codes!$B$3:$E$24,4,FALSE))","v":""},{"$f":"IF(Abl_Versickerung[[#This Row],[Spalte5]]=\"\",\"\",PRODUCT(Abl_Versickerung[[#This Row],[Spalte4]:[Spalte5]]))","v":""},{"$f":"IF(Abl_Versickerung[[#This Row],[Spalte6]]=\"\",\"\",'B21'!$D$18*'B21'!$D$19*Abl_Versickerung[[#This Row],[Spalte6]])","v":""},{"$f":"IF(Abl_Versickerung[[#This Row],[Spalte14]]=\"\",\"\",Abl_Versickerung[[#This Row],[Spalte17]])","v":""},{"$f":"IF(Abl_Versickerung[[#This Row],[Spalte14]]=\"\",\"\",RIGHT(Abl_Versickerung[[#This Row],[Spalte18]],1)*1)","v":""},null,null,null,null,null,null,{"$f":"VLOOKUP(Abl_Versickerung[[#This Row],[Spalte14]],Codes!B$193:E$203,3,FALSE)","v":{"$error":"#N/A"}},{"$f":"VLOOKUP(Abl_Versickerung[[#This Row],[Spalte14]],Codes!B$193:E$203,4,FALSE)","v":{"$error":"#N/A"}},{"$f":"VLOOKUP(Abl_Versickerung[[#This Row],[Spalte3]],Codes!$B$3:$F$24,5,FALSE)","v":{"$error":"#N/A"}}]
[null,null,"Total B",{"$f":"SUM(D16:D18)","v":0},null,{"$f":"SUM(F16:F18)","v":0},{"$f":"SUM(G16:G18)","v":0}]
[]
["C","Ableitung in Gewässer / Regenwasserleitung",null,"Fläche","Abfluss-beiwert","Fred","Abfluss\nohne Ret","Retention","fR","Fred,R","Abfluss\nmit Ret","Fred od. Fred,R","Schlamm-","Hebe-",null,{"$f":"IF(ROW(A29)<59,\"\",ROW(A29))","v":""}]
[null,null,null,null,null,null,null,null,null,null,null,null,"sammler","anlage"]
["Nr.","Art der Fläche bzw. Entwässerung","Teilfläche","[m2]","[-]","[m2]","[l/s]",null,"[-]","[m2]","[l/s]","[m2]"]
[null,null,null,null,{"$f":"IF(Abl_Gewaesser[[#This Row],[Spalte3]]=\"\",\"\",VLOOKUP(Abl_Gewaesser[[#This Row],[Spalte3]],Codes!$B$3:$E$24,4,FALSE))","v":""},{"$f":"IF(Abl_Gewaesser[[#This Row],[Spalte5]]=\"\",\"\",PRODUCT(Abl_Gewaesser[[#This Row],[Spalte4]:[Spalte5]]))","v":""},{"$f":"IF(Abl_Gewaesser[[#This Row],[Spalte6]]=\"\",\"\",'B21'!$D$18*'B21'!$D$19*Abl_Gewaesser[[#This Row],[Spalte6]])","v":""},null,{"$f":"IF(Abl_Gewaesser[[#This Row],[Spalte8]]=\"\",\"\",INDEX(B5a!$K$4:$K$8,Abl_Gewaesser[[#This Row],[Spalte8]],1))","v":""},{"$f":"IF(Abl_Gewaesser[[#This Row],[Spalte9]]=\"\",\"\",PRODUCT(Abl_Gewaesser[[#This Row],[Spalte6]],Abl_Gewaesser[[#This Row],[Spalte9]]))","v":""},{"$f":"IF(Abl_Gewaesser[[#This Row],[Spalte10]]<>\"\",Abl_Gewaesser[[#This Row],[Spalte10]]*0.025,Abl_Gewaesser[[#This Row],[Spalte7]])","v":""},{"$f":"IF(Abl_Gewaesser[[#This Row],[Spalte9]]=\"\",Abl_Gewaesser[[#This Row],[Spalte6]],Abl_Gewaesser[[#This Row],[Spalte10]])","v":""}]
[null,null,null,null,{"$f":"IF(Abl_Gewaesser[[#This Row],[Spalte3]]=\"\",\"\",VLOOKUP(Abl_Gewaesser[[#This Row],[Spalte3]],Codes!$B$3:$E$24,4,FALSE))","v":""},{"$f":"IF(Abl_Gewaesser[[#This Row],[Spalte5]]=\"\",\"\",PRODUCT(Abl_Gewaesser[[#This Row],[Spalte4]:[Spalte5]]))","v":""},{"$f":"IF(Abl_Gewaesser[[#This Row],[Spalte6]]=\"\",\"\",'B21'!$D$18*'B21'!$D$19*Abl_Gewaesser[[#This Row],[Spalte6]])","v":""},null,{"$f":"IF(Abl_Gewaesser[[#This Row],[Spalte8]]=\"\",\"\",INDEX(B5a!$K$4:$K$8,Abl_Gewaesser[[#This Row],[Spalte8]],1))","v":""},{"$f":"IF(Abl_Gewaesser[[#This Row],[Spalte9]]=\"\",\"\",PRODUCT(Abl_Gewaesser[[#This Row],[Spalte6]],Abl_Gewaesser[[#This Row],[Spalte9]]))","v":""},{"$f":"IF(Abl_Gewaesser[[#This Row],[Spalte10]]<>\"\",Abl_Gewaesser[[#This Row],[Spalte10]]*0.025,Abl_Gewaesser[[#This Row],[Spalte7]])","v":""},{"$f":"IF(Abl_Gewaesser[[#This Row],[Spalte9]]=\"\",Abl_Gewaesser[[#This Row],[Spalte6]],Abl_Gewaesser[[#This Row],[Spalte10]])","v":""}]
[null,null,null,null,{"$f":"IF(Abl_Gewaesser[[#This Row],[Spalte3]]=\"\",\"\",VLOOKUP(Abl_Gewaesser[[#This Row],[Spalte3]],Codes!$B$3:$E$24,4,FALSE))","v":""},{"$f":"IF(Abl_Gewaesser[[#This Row],[Spalte5]]=\"\",\"\",PRODUCT(Abl_Gewaesser[[#This Row],[Spalte4]:[Spalte5]]))","v":""},{"$f":"IF(Abl_Gewaesser[[#This Row],[Spalte6]]=\"\",\"\",'B21'!$D$18*'B21'!$D$19*Abl_Gewaesser[[#This Row],[Spalte6]])","v":""},null,{"$f":"IF(Abl_Gewaesser[[#This Row],[Spalte8]]=\"\",\"\",INDEX(B5a!$K$4:$K$8,Abl_Gewaesser[[#This Row],[Spalte8]],1))","v":""},{"$f":"IF(Abl_Gewaesser[[#This Row],[Spalte9]]=\"\",\"\",PRODUCT(Abl_Gewaesser[[#This Row],[Spalte6]],Abl_Gewaesser[[#This Row],[Spalte9]]))","v":""},{"$f":"IF(Abl_Gewaesser[[#This Row],[Spalte10]]<>\"\",Abl_Gewaesser[[#This Row],[Spalte10]]*0.025,Abl_Gewaesser[[#This Row],[Spalte7]])","v":""},{"$f":"IF(Abl_Gewaesser[[#This Row],[Spalte9]]=\"\",Abl_Gewaesser[[#This Row],[Spalte6]],Abl_Gewaesser[[#This Row],[Spalte10]])","v":""}]
[null,null,"Total C",{"$f":"SUM(D24:D26)","v":0},null,{"$f":"SUM(F24:F26)","v":0},{"$f":"SUM(G24:G26)","v":0},null,null,{"$f":"SUM(J24:J26)","v":0},{"$f":"SUM(K24:K26)","v":0},{"$f":"SUM(L24:L26)","v":0}]
[]
["D","Ableitung in Schmutz- bzw. Mischwasserkanalisation",null,"Fläche","yH","Fred","Abfluss\nohne Ret","Retention","fR","Fred,R","Abfluss\nmit Ret","Fred od. Fred,R","Schlamm-","Hebe-",null,{"$f":"IF(ROW(L40)<59,\"\",ROW(L40))","v":""}]
[null,null,null,null,null,null,null,null,null,null,null,null,"sammler","anlage"]
["Nr.","Art der Fläche bzw. Entwässerung","Teilfläche","[m2]","[-]","[m2]","[l/s]",null,"[-]","[m2]","[l/s]","[m2]"]
[null,null,null,null,{"$f":"IF(Abl_SW_MW[[#This Row],[Spalte3]]=\"\",\"\",VLOOKUP(Abl_SW_MW[[#This Row],[Spalte3]],Codes!$B$3:$E$24,4,FALSE))","v":""},{"$f":"IF(Abl_SW_MW[[#This Row],[Spalte5]]=\"\",\"\",PRODUCT(Abl_SW_MW[[#This Row],[Spalte4]:[Spalte5]]))","v":""},{"$f":"IF(Abl_SW_MW[[#This Row],[Spalte6]]=\"\",\"\",'B21'!$D$18*'B21'!$D$19*Abl_SW_MW[[#This Row],[Spalte6]])","v":""},null,{"$f":"IF(Abl_SW_MW[[#This Row],[Spalte8]]=\"\",\"\",INDEX(B5a!$K$4:$K$8,Abl_SW_MW[[#This Row],[Spalte8]],1))","v":""},{"$f":"IF(Abl_SW_MW[[#This Row],[Spalte9]]=\"\",\"\",PRODUCT(Abl_SW_MW[[#This Row],[Spalte6]],Abl_SW_MW[[#This Row],[Spalte9]]))","v":""},{"$f":"IF(Abl_SW_MW[[#This Row],[Spalte10]]<>\"\",Abl_SW_MW[[#This Row],[Spalte10]]*0.025,Abl_SW_MW[[#This Row],[Spalte7]])","v":""},{"$f":"IF(Abl_SW_MW[[#This Row],[Spalte9]]=\"\",Abl_SW_MW[[#This Row],[Spalte6]],Abl_SW_MW[[#This Row],[Spalte10]])","v":""}]
[null,null,null,null,{"$f":"IF(Abl_SW_MW[[#This Row],[Spalte3]]=\"\",\"\",VLOOKUP(Abl_SW_MW[[#This Row],[Spalte3]],Codes!$B$3:$E$24,4,FALSE))","v":""},{"$f":"IF(Abl_SW_MW[[#This Row],[Spalte5]]=\"\",\"\",PRODUCT(Abl_SW_MW[[#This Row],[Spalte4]:[Spalte5]]))","v":""},{"$f":"IF(Abl_SW_MW[[#This Row],[Spalte6]]=\"\",\"\",'B21'!$D$18*'B21'!$D$19*Abl_SW_MW[[#This Row],[Spalte6]])","v":""},null,{"$f":"IF(Abl_SW_MW[[#This Row],[Spalte8]]=\"\",\"\",INDEX(B5a!$K$4:$K$8,Abl_SW_MW[[#This Row],[Spalte8]],1))","v":""},{"$f":"IF(Abl_SW_MW[[#This Row],[Spalte9]]=\"\",\"\",PRODUCT(Abl_SW_MW[[#This Row],[Spalte6]],Abl_SW_MW[[#This Row],[Spalte9]]))","v":""},{"$f":"IF(Abl_SW_MW[[#This Row],[Spalte10]]<>\"\",Abl_SW_MW[[#This Row],[Spalte10]]*0.025,Abl_SW_MW[[#This Row],[Spalte7]])","v":""},{"$f":"IF(Abl_SW_MW[[#This Row],[Spalte9]]=\"\",Abl_SW_MW[[#This Row],[Spalte6]],Abl_SW_MW[[#This Row],[Spalte10]])","v":""}]
[null,null,null,null,{"$f":"IF(Abl_SW_MW[[#This Row],[Spalte3]]=\"\",\"\",VLOOKUP(Abl_SW_MW[[#This Row],[Spalte3]],Codes!$B$3:$E$24,4,FALSE))","v":""},{"$f":"IF(Abl_SW_MW[[#This Row],[Spalte5]]=\"\",\"\",PRODUCT(Abl_SW_MW[[#This Row],[Spalte4]:[Spalte5]]))","v":""},{"$f":"IF(Abl_SW_MW[[#This Row],[Spalte6]]=\"\",\"\",'B21'!$D$18*'B21'!$D$19*Abl_SW_MW[[#This Row],[Spalte6]])","v":""},null,{"$f":"IF(Abl_SW_MW[[#This Row],[Spalte8]]=\"\",\"\",INDEX(B5a!$K$4:$K$8,Abl_SW_MW[[#This Row],[Spalte8]],1))","v":""},{"$f":"IF(Abl_SW_MW[[#This Row],[Spalte9]]=\"\",\"\",PRODUCT(Abl_SW_MW[[#This Row],[Spalte6]],Abl_SW_MW[[#This Row],[Spalte9]]))","v":""},{"$f":"IF(Abl_SW_MW[[#This Row],[Spalte10]]<>\"\",Abl_SW_MW[[#This Row],[Spalte10]]*0.025,Abl_SW_MW[[#This Row],[Spalte7]])","v":""},{"$f":"IF(Abl_SW_MW[[#This Row],[Spalte9]]=\"\",Abl_SW_MW[[#This Row],[Spalte6]],Abl_SW_MW[[#This Row],[Spalte10]])","v":""}]
[null,null,"Total D",{"$f":"SUM(D32:D34)","v":0},null,{"$f":"SUM(F32:F34)","v":0},{"$f":"SUM(G32:G34)","v":0},null,null,{"$f":"SUM(J32:J34)","v":0},{"$f":"SUM(K32:K34)","v":0},{"$f":"SUM(L32:L34)","v":0},null,null,null,{"$f":"ROW()","v":35}]
[]
["Bemerkung:"]
[null,null,null,null,null,null,null,null,null,null,null,{"$f":"'B21'!D16","v":0},"Grundstückfläche"]
[null,null,null,null,null,null,null,null,null,null,null,{"$f":"'B22'!D11+'B22'!D19+'B22'!D27+'B22'!D35","v":0},"ausgewiesene Fläche"]
[null,null,null,null,null,null,null,null,null,null,null,{"$f":"L39-L38","v":0},"Differenz"]
[null,null,null,null,null,null,null,null,null,null,null,null,null,null,null,{"$f":"SUMIF(M24:M26,\"\",'B22'!$F$24:$F$26)+SUMIF('B22'!$M$32:$M$34,\"SS 1\",'B22'!$F$32:$F$34)","v":0},"?????"]

{"sheet":"B4","index":3,"n_rows":51,"n_cols":15,"rows_kept":51,"cut":false,"hidden":false,"merged":[[50,1,51,9],[27,1,27,6],[42,1,42,6],[37,1,37,6],[38,1,38,6],[39,1,39,6],[29,1,29,6],[30,1,30,6],[31,1,31,6],[32,1,32,6],[33,1,33,6],[34,1,34,6],[35,1,35,6],[28,1,28,6],[36,1,36,6],[40,1,40,6],[41,1,41,6],[24,1,24,6],[25,1,25,6],[26,1,26,6],[4,2,4,9],[5,2,5,9],[6,2,6,9],[7,2,7,9],[19,1,19,6],[20,1,20,6],[21,1,21,6],[22,1,22,6],[23,1,23,6],[47,1,47,2],[43,1,43,6],[44,1,44,6],[45,1,45,6],[46,1,46,6]]}
["B4","Berechnung massgebender Abwasseranfall",null,null,null,null,null,null,null,null,null,null,null,null,"B4 Abwasseranfall"]
[null,"Liegenschaftsentwässerung"]
[]
["Gemeinde",null,{"$f":"IF('B21'!$C$4:$D$4=\"\",\"\",'B21'!$C$4:$D$4)","v":0},"Parzellen-Nr.:",{"$f":"IF('B21'!$G$4=\"\",\"\",'B21'!$G$4)","v":0}]
["Objekt",null,{"$f":"IF('B21'!$C$5:$J$5=\"\",\"\",'B21'!$C$5:$J$5)","v":0}]
["Bauherr",null,{"$f":"IF('B21'!$C$6:$J$6=\"\",\"\",'B21'!$C$6:$J$6)","v":0}]
["Architekt",null,{"$f":"IF('B21'!$C$7:$J$7=\"\",\"\",'B21'!$C$7:$J$7)","v":0}]
["Fachplaner",null,{"$f":"IF('B21'!$C$8:$J$8=\"\",\"\",'B21'!$C$8:$J$8)","v":", , "}]
[null,null,null,null,null,null,null,null,null,null,null,"K= 0.5 bei unregelmässiger Benutzung z.B. in Wohnhäusern, Pensionen, Büros"]
["Abwasseranfall",null,null,null,null,"SW / MW",null,"RW",null,null,null,"K= 0.7 bei regelmässiger Benutzung z.B. in Krankenhäusern, Schulen, Restaurants, Hotels"]
["Schmutzwasser (vgl. Tabelle 1)        Abflusskennzahl K =",null,null,null,0.5,{"$f":"IF(E11*SQRT(J48)<MAX(O20:O47),MAX(O20:O47),E11*SQRT(J48))","v":0},"l/s 1)",null,null,null,null,"K= 1.0 bei häufiger Benutzung, z.B. in öffentlichen Toiletten und/oder Duschen"]
["Niederschlagswasser (vgl. Beilage B2: Total C bzw. Total D)",null,null,null,null,{"$f":"'B22'!K35","v":0},"l/s",{"$f":"'B22'!K27","v":0},"l/s",null,null,"K= 1.2 bei spezieller Benutzung, z.B. Labor"]
["Dauerabfluss",null,null,null,null,0,"l/s",0,"l/s",null,null,"manuelle Eingabe"]
["Hebeanlage (maximale Pumpen-Fördermenge)",null,null,null,null,0,"l/s",0,"l/s",null,null,"manuelle Eingabe (vgl. Berechnungsbeilagen Hebeanlagen Formular F1)"]
["Total",null,null,null,null,{"$f":"SUM(F11:F14)","v":0},"l/s",{"$f":"SUM(H11:H14)","v":0},"l/s"]
["Gesamtabfluss SW/MW + RW",null,null,null,null,{"$f":"F15+H15","v":0},"l/s"]
[]
[null,"Tabelle 1: Schmutzwasserabfluss QSW DU-Werte in Abwasserhebeanlage",null,null,null,null,null,null,null,null,null,"Nicht verwendete Zeilen ausblenden bzw. alle Zeilen wieder einblenden"]
[null,"Entwässerungsgegenstand 2)",null,null,null,null,null,"Schmutz-wasserwert\nDU [l/s]","Anzahl\n\n","Total\n\nDU [l/s]"]
[null,"Urinal wasserlos",null,null,null,null,null,0.1,null,{"$f":"H20*I20","v":0},null,null,null,null,{"$f":"IF(I20=\"\",\"\",H20)","v":""}]
[null,"Standurinal pro Person",null,null,null,null,null,0.2,null,0,null,null,null,null,{"$f":"IF(I21=\"\",\"\",H21)","v":""}]
[null,"Waschtisch, Wandbecken, Bidet",null,null,null,null,null,0.5,null,0,null,null,null,null,""]
[null,"Urinal mit Druckspüler",null,null,null,null,null,0.5,null,0,null,null,null,null,""]
[null,"Schulwandbrunnen",null,null,null,null,null,0.5,null,0,null,null,null,null,""]
[null,"Waschrinne mit 3 Entnahmestellen",null,null,null,null,null,0.5,null,0,null,null,null,null,""]
[null,"Wäschezentrifuge bis 10 kg",null,null,null,null,null,0.5,null,0,null,null,null,null,""]
[null,"Dusche nicht staubar",null,null,null,null,null,0.6,null,0,null,null,null,null,""]
[null,"Bodenablauf DN 50",null,null,null,null,null,0.8,null,0,null,null,null,null,""]
[null,"Dusche staubar",null,null,null,null,null,0.8,null,0,null,null,null,null,""]
[null,"Urinal mit Spülkasten",null,null,null,null,null,0.8,null,0,null,null,null,null,""]
[null,"Badewanne",null,null,null,null,null,0.8,null,0,null,null,null,null,""]
[null,"Waschrinne 4-10 Entnahmestellen",null,null,null,null,null,0.8,null,0,null,null,null,null,""]
[null,"Wandausgussbecken, Spültisch 1- und 2-fach",null,null,null,null,null,0.8,null,0,null,null,null,null,""]
[null,"Waschfontäne 6-10 Entnahmestellen",null,null,null,null,null,0.8,null,0,null,null,null,null,""]
[null,"Waschtrog, Geschirrspülmaschine Haushalt",null,null,null,null,null,0.8,null,0,null,null,null,null,""]
[null,"Waschmaschine bis 6kg",null,null,null,null,null,0.8,null,0,null,null,null,null,""]
[null,"Bodenablauf DN 56",null,null,null,null,null,1,null,0,null,null,null,null,""]
[null,"Waschmaschine 7-12 kg",null,null,null,null,null,1.5,null,0,null,null,null,null,""]
[null,"Geschirrspülmaschine Gewerbe",null,null,null,null,null,1.5,null,0,null,null,null,null,""]
[null,"Bodenablauf DN 70",null,null,null,null,null,1.5,null,0,null,null,null,null,""]
[null,"Klosettanlage 6l oder 7.5l Spülwassermenge",null,null,null,null,null,2,null,0,null,null,null,null,""]
[null,"Klosettanlage 9l Spülwassermenge",null,null,null,null,null,2,null,0,null,null,null,null,""]
[null,"Stand-/Wandausguss (Fäkalien/Putzwasser)",null,null,null,null,null,2.5,null,0,null,null,null,null,""]
[null,"Waschmaschine 13-40 kg",null,null,null,null,null,2.5,null,0,null,null,null,null,""]
[null,"Steckbeckenapparat",null,null,null,null,null,2.5,null,0,null,null,null,null,""]
[null,"Bodenablauf DN 100",null,null,null,null,null,2.5,null,0,null,null,null,null,""]
[null,"Grosswanne, Saunatauchbecken",null,null,null,null,null,2.5,null,0,null,null,null,null,""]
[null,"Summe DU",null,null,null,null,null,null,null,{"$f":"SUM(J20:J47)","v":0}]
[]
[null,"1) Der Schmutzwasseranfall muss mindestens der Leistung des grössten Entwässerungsgegenstands entsprechen."]
[null,"2) Entwässerungsgegenstände, welche in eine Hebeanlage entwässern, sind in der Tabelle 1 nicht aufzuführen, sondern\n    im separaten Berechnungsblatt der Hebeanlage (Formular F1)."]

{"sheet":"B5a","index":4,"n_rows":78,"n_cols":26,"rows_kept":78,"cut":false,"hidden":false,"merged":[]}
["B5","Ermittlung Retentionsvolumen",null,null,null,null,null,null,null,null,null,null,null,"mit Wirbeldrossel, etc.",null,null,"C  Ableitung in Gewässer / Regenwasserleitung",null,null,null,null,1,2,3,4,5]
[null,"Liegenschaftsentwässerung",null,null,null,null,null,null,null,null,null,null,null,"mit Lochdrossel",null,null,"D  Ableitung in Schmutz- bzw. Mischwasserkanalisation",null,null,null,null,{"$f":"ROW(A13)","v":13},{"$f":"ROW(A27)","v":27},{"$f":"ROW(A41)","v":41},{"$f":"ROW(A55)","v":55},{"$f":"ROW(A69)","v":69}]
[null,null,null,null,null,null,null,null,null,null,null,null,null,null,null,null,null,null,null,null,null,{"$f":"ROW(D18)","v":18},{"$f":"ROW(D32)","v":32},{"$f":"ROW(D46)","v":46},{"$f":"ROW(D60)","v":60},{"$f":"ROW(D74)","v":74}]
[null,null,null,null,null,null,null,null,null,"R1",{"$f":"G10","v":0},null,null,null,{"$f":"Eingabe!B23","v":0}]
[null,null,null,null,null,null,null,null,null,"R2",{"$f":"G24","v":0}]
[null,null,null,null,null,null,null,null,null,"R3",{"$f":"G38","v":0}]
[null,null,null,null,null,null,null,null,null,"R4",{"$f":"G52","v":0}]
[null,null,null,null,null,null,null,null,null,"R5",{"$f":"G66","v":0},null,null,{"$f":"MAX(N9:N80)+4","v":4},{"$f":"MIN(O9:O72)","v":{"$error":"#VALUE!"}},{"$f":"MIN(P9:P72)","v":{"$error":"#VALUE!"}}]
[]
["Retentions-Anlage Nr. 1"]
[{"$f":"INDEX(Q$1:Q$2,J12,1)","v":"D  Ableitung in Schmutz- bzw. Mischwasserkanalisation"}]
["Nr.","Art der Fläche bzw. Entwässerung","Teilfläche","Fläche","yH","Fred","Fred,R",null,null,2,null,null,null,null,null,null,"Neue Zeilen in die entsprechnd vorbereiteten Tabellen einfügen bzw. löschen"]
[null,null,null,"[m2]","[-]","[m2]","[m2]"]
["Nr.","Bezeichnung","Teilfläche","Fläche","C","Fred","FredR"]
[null,null,null,null,{"$f":"IF(Ret_1[[#This Row],[Teilfläche]]=\"\",\"\",VLOOKUP(Ret_1[[#This Row],[Teilfläche]],Codes!$B$3:$E$24,4,FALSE))","v":""},{"$f":"IF(Ret_1[[#This Row],[Fläche]]=\"\",\"\",Ret_1[[#This Row],[Fläche]]*Ret_1[[#This Row],[C]])","v":""},{"$f":"IF(Ret_1[[#This Row],[Fred]]=\"\",\"\",G$10*Ret_1[[#This Row],[Fred]])","v":""}]
[null,null,null,null,{"$f":"IF(Ret_1[[#This Row],[Teilfläche]]=\"\",\"\",VLOOKUP(Ret_1[[#This Row],[Teilfläche]],Codes!$B$3:$E$24,4,FALSE))","v":""},{"$f":"IF(Ret_1[[#This Row],[Fläche]]=\"\",\"\",Ret_1[[#This Row],[Fläche]]*Ret_1[[#This Row],[C]])","v":""},{"$f":"IF(Ret_1[[#This Row],[Fred]]=\"\",\"\",G$10*Ret_1[[#This Row],[Fred]])","v":""}]
[null,null,null,null,{"$f":"IF(Ret_1[[#This Row],[Teilfläche]]=\"\",\"\",VLOOKUP(Ret_1[[#This Row],[Teilfläche]],Codes!$B$3:$E$24,4,FALSE))","v":""},{"$f":"IF(Ret_1[[#This Row],[Fläche]]=\"\",\"\",Ret_1[[#This Row],[Fläche]]*Ret_1[[#This Row],[C]])","v":""},{"$f":"IF(Ret_1[[#This Row],[Fred]]=\"\",\"\",G$10*Ret_1[[#This Row],[Fred]])","v":""}]
[null,null,"Total",{"$f":"SUM(D15:D17)","v":0},null,{"$f":"SUM(F15:F17)","v":0},{"$f":"SUM(G15:G17)","v":0},null,null,2,{"$f":"INDEX(N$1:N$2,J18,1)","v":"mit Lochdrossel"},null,null,{"$f":"IF(B5a!$D18>0,ROW(),\"\")","v":""},{"$f":"IF(N32<54,\"\",N18+4)","v":{"$error":"#VALUE!"}},{"$f":"IF(O$8+56<N32+4,N18+5,\"\")","v":{"$error":"#VALUE!"}}]
[]
[null,null,null,null,null,null,null,null,null,"Qab",{"$f":"G18*0.025","v":0},"[l/s]"]
[null,null,null,null,null,null,null,null,null,"VR",{"$f":"IF(G10=\"\",\"\",J18*(SQRT(247/G10)-10)*(393*SQRT(G10)-250*G10)*F18*6*10^-6)","v":""},"[m3]"]
[null,null,null,null,null,null,null,null,null,"Qab,Not",{"$f":"'B21'!$D$18*B5a!F18","v":0},"l/s"]
[]
["Retentions-Anlage Nr. 2"]
[{"$f":"INDEX(Q$1:Q$2,J26,1)","v":"D  Ableitung in Schmutz- bzw. Mischwasserkanalisation"}]
["Nr.","Art der Fläche bzw. Entwässerung","Teilfläche","Fläche","yH","Fred","Fred,R",null,null,2,null,null,null,null,null,null,"Neue Zeilen in die entsprechnd vorbereiteten Tabellen einfügen bzw. löschen"]
[null,null,null,"[m2]","[-]","[m2]","[m2]"]
["Nr.","Bezeichnung","Teilfläche","Fläche","C","Fred","FredR"]
[null,null,null,null,{"$f":"IF(Ret_2[[#This Row],[Teilfläche]]=\"\",\"\",VLOOKUP(Ret_2[[#This Row],[Teilfläche]],Codes!$B$3:$E$24,4,FALSE))","v":""},{"$f":"IF(Ret_2[[#This Row],[Fläche]]=\"\",\"\",Ret_2[[#This Row],[Fläche]]*Ret_2[[#This Row],[C]])","v":""},{"$f":"IF(Ret_2[[#This Row],[Fred]]=\"\",\"\",G$24*Ret_2[[#This Row],[Fred]])","v":""}]
[null,null,null,null,{"$f":"IF(Ret_2[[#This Row],[Teilfläche]]=\"\",\"\",VLOOKUP(Ret_2[[#This Row],[Teilfläche]],Codes!$B$3:$E$24,4,FALSE))","v":""},{"$f":"IF(Ret_2[[#This Row],[Fläche]]=\"\",\"\",Ret_2[[#This Row],[Fläche]]*Ret_2[[#This Row],[C]])","v":""},{"$f":"IF(Ret_2[[#This Row],[Fred]]=\"\",\"\",G$24*Ret_2[[#This Row],[Fred]])","v":""}]
[null,null,null,null,{"$f":"IF(Ret_2[[#This Row],[Teilfläche]]=\"\",\"\",VLOOKUP(Ret_2[[#This Row],[Teilfläche]],Codes!$B$3:$E$24,4,FALSE))","v":""},{"$f":"IF(Ret_2[[#This Row],[Fläche]]=\"\",\"\",Ret_2[[#This Row],[Fläche]]*Ret_2[[#This Row],[C]])","v":""},{"$f":"IF(Ret_2[[#This Row],[Fred]]=\"\",\"\",G$24*Ret_2[[#This Row],[Fred]])","v":""}]
[null,null,"Total",{"$f":"SUM(D29:D31)","v":0},null,{"$f":"SUM(F29:F31)","v":0},{"$f":"SUM(G29:G31)","v":0},null,null,2,{"$f":"INDEX(N$1:N$2,J32,1)","v":"mit Lochdrossel"},null,null,{"$f":"IF(B5a!$D32>0,ROW(),N18)","v":""},{"$f":"IF(N46<54,\"\",N32+5)","v":{"$error":"#VALUE!"}},{"$f":"IF(O$8+56<N46+4,N32+5,\"\")","v":{"$error":"#VALUE!"}}]
[]
[null,null,null,null,null,null,null,null,null,"Qab",{"$f":"G32*0.025","v":0},"[l/s]"]
[null,null,null,null,null,null,null,null,null,"VR",{"$f":"IF(G24=\"\",\"\",J32*(SQRT(247/G24)-10)*(393*SQRT(G24)-250*G24)*F32*6*10^-6)","v":""},"[m3]"]
[null,null,null,null,null,null,null,null,null,"Qab,Not",{"$f":"'B21'!$D$18*B5a!F32","v":0},"l/s"]
[]
["Retentions-Anlage Nr. 3"]
[{"$f":"INDEX(Q$1:Q$2,J40,1)","v":"D  Ableitung in Schmutz- bzw. Mischwasserkanalisation"}]
["Nr.","Art der Fläche bzw. Entwässerung","Teilfläche","Fläche","yH","Fred","Fred,R",null,null,2,null,null,null,null,null,null,"Neue Zeilen in die entsprechnd vorbereiteten Tabellen einfügen bzw. löschen"]
[null,null,null,"[m2]","[-]","[m2]","[m2]"]
["Nr.","Bezeichnung","Teilfläche","Fläche","C","Fred","FredR"]
[null,null,null,null,{"$f":"IF(Ret_3[[#This Row],[Teilfläche]]=\"\",\"\",VLOOKUP(Ret_3[[#This Row],[Teilfläche]],Codes!$B$3:$E$24,4,FALSE))","v":""},{"$f":"IF(Ret_3[[#This Row],[Fläche]]=\"\",\"\",Ret_3[[#This Row],[Fläche]]*Ret_3[[#This Row],[C]])","v":""},{"$f":"IF(Ret_3[[#This Row],[Fred]]=\"\",\"\",G$38*Ret_3[[#This Row],[Fred]])","v":""}]
[null,null,null,null,{"$f":"IF(Ret_3[[#This Row],[Teilfläche]]=\"\",\"\",VLOOKUP(Ret_3[[#This Row],[Teilfläche]],Codes!$B$3:$E$24,4,FALSE))","v":""},{"$f":"IF(Ret_3[[#This Row],[Fläche]]=\"\",\"\",Ret_3[[#This Row],[Fläche]]*Ret_3[[#This Row],[C]])","v":""},{"$f":"IF(Ret_3[[#This Row],[Fred]]=\"\",\"\",G$38*Ret_3[[#This Row],[Fred]])","v":""}]
[null,null,null,null,{"$f":"IF(Ret_3[[#This Row],[Teilfläche]]=\"\",\"\",VLOOKUP(Ret_3[[#This Row],[Teilfläche]],Codes!$B$3:$E$24,4,FALSE))","v":""},{"$f":"IF(Ret_3[[#This Row],[Fläche]]=\"\",\"\",Ret_3[[#This Row],[Fläche]]*Ret_3[[#This Row],[C]])","v":""},{"$f":"IF(Ret_3[[#This Row],[Fred]]=\"\",\"\",G$38*Ret_3[[#This Row],[Fred]])","v":""}]
[null,null,"Total",{"$f":"SUM(D43:D45)","v":0},null,{"$f":"SUM(F43:F45)","v":0},{"$f":"SUM(G43:G45)","v":0},null,null,2,{"$f":"INDEX(N$1:N$2,J46,1)","v":"mit Lochdrossel"},null,null,{"$f":"IF(B5a!$D46>0,ROW(),N32)","v":""},{"$f":"IF(N60<54,\"\",N46+5)","v":{"$error":"#VALUE!"}},{"$f":"IF(O$8+56<N60+4,N46+5,\"\")","v":{"$error":"#VALUE!"}}]
[]
[null,null,null,null,null,null,null,null,null,"Qab",{"$f":"G46*0.025","v":0},"[l/s]"]
[null,null,null,null,null,null,null,null,null,"VR",{"$f":"IF(G38=\"\",\"\",J46*(SQRT(247/G38)-10)*(393*SQRT(G38)-250*G38)*F46*6*10^-6)","v":""},"[m3]"]
[null,null,null,null,null,null,null,null,null,"Qab,Not",{"$f":"'B21'!$D$18*B5a!F46","v":0},"l/s"]
[]
["Retentions-Anlage Nr. 4"]
[{"$f":"INDEX(Q$1:Q$2,J54,1)","v":"D  Ableitung in Schmutz- bzw. Mischwasserkanalisation"}]
["Nr.","Art der Fläche bzw. Entwässerung","Teilfläche","Fläche","yH","Fred","Fred,R",null,null,2,null,null,null,null,null,null,"Neue Zeilen in die entsprechnd vorbereiteten Tabellen einfügen bzw. löschen"]
[null,null,null,"[m2]","[-]","[m2]","[m2]"]
["Nr.","Bezeichnung","Teilfläche","Fläche","C","Fred","FredR"]
[null,null,null,null,{"$f":"IF(Ret_4[[#This Row],[Teilfläche]]=\"\",\"\",VLOOKUP(Ret_4[[#This Row],[Teilfläche]],Codes!$B$3:$E$24,4,FALSE))","v":""},{"$f":"IF(Ret_4[[#This Row],[Fläche]]=\"\",\"\",Ret_4[[#This Row],[Fläche]]*Ret_4[[#This Row],[C]])","v":""},{"$f":"IF(Ret_4[[#This Row],[Fred]]=\"\",\"\",G$52*Ret_4[[#This Row],[Fred]])","v":""}]
[null,null,null,null,{"$f":"IF(Ret_4[[#This Row],[Teilfläche]]=\"\",\"\",VLOOKUP(Ret_4[[#This Row],[Teilfläche]],Codes!$B$3:$E$24,4,FALSE))","v":""},{"$f":"IF(Ret_4[[#This Row],[Fläche]]=\"\",\"\",Ret_4[[#This Row],[Fläche]]*Ret_4[[#This Row],[C]])","v":""},{"$f":"IF(Ret_4[[#This Row],[Fred]]=\"\",\"\",G$52*Ret_4[[#This Row],[Fred]])","v":""}]
[null,null,null,null,{"$f":"IF(Ret_4[[#This Row],[Teilfläche]]=\"\",\"\",VLOOKUP(Ret_4[[#This Row],[Teilfläche]],Codes!$B$3:$E$24,4,FALSE))","v":""},{"$f":"IF(Ret_4[[#This Row],[Fläche]]=\"\",\"\",Ret_4[[#This Row],[Fläche]]*Ret_4[[#This Row],[C]])","v":""},{"$f":"IF(Ret_4[[#This Row],[Fred]]=\"\",\"\",G$52*Ret_4[[#This Row],[Fred]])","v":""}]
[null,null,"Total",{"$f":"SUM(D57:D59)","v":0},null,{"$f":"SUM(F57:F59)","v":0},{"$f":"SUM(G57:G59)","v":0},null,null,2,{"$f":"INDEX(N$1:N$2,J60,1)","v":"mit Lochdrossel"},null,null,{"$f":"IF(B5a!$D60>0,ROW(),N46)","v":""},{"$f":"IF(N74<54,\"\",N60+5)","v":{"$error":"#VALUE!"}},{"$f":"IF(O$8+56<N74+4,N60+5,\"\")","v":{"$error":"#VALUE!"}}]
[]
[null,null,null,null,null,null,null,null,null,"Qab",{"$f":"G60*0.025","v":0},"[l/s]"]
[null,null,null,null,null,null,null,null,null,"VR",{"$f":"IF(G52=\"\",\"\",J60*(SQRT(247/G52)-10)*(393*SQRT(G52)-250*G52)*F60*6*10^-6)","v":""},"[m3]"]
[null,null,null,null,null,null,null,null,null,"Qab,Not",{"$f":"'B21'!$D$18*B5a!F60","v":0},"l/s"]
[]
["Retentions-Anlage Nr. 5"]
[{"$f":"INDEX(Q$1:Q$2,J68,1)","v":"D  Ableitung in Schmutz- bzw. Mischwasserkanalisation"}]
["Nr.","Art der Fläche bzw. Entwässerung","Teilfläche","Fläche","yH","Fred","Fred,R",null,null,2,null,null,null,null,null,null,"Neue Zeilen in die entsprechnd vorbereiteten Tabellen einfügen bzw. löschen"]
[null,null,null,"[m2]","[-]","[m2]","[m2]"]
["Nr.","Bezeichnung","Teilfläche","Fläche","C","Fred","FredR"]
[null,null,null,null,{"$f":"IF(Ret_5[[#This Row],[Teilfläche]]=\"\",\"\",VLOOKUP(Ret_5[[#This Row],[Teilfläche]],Codes!$B$3:$E$24,4,FALSE))","v":""},{"$f":"IF(Ret_5[[#This Row],[Fläche]]=\"\",\"\",Ret_5[[#This Row],[Fläche]]*Ret_5[[#This Row],[C]])","v":""},{"$f":"IF(Ret_5[[#This Row],[Fred]]=\"\",\"\",G$66*Ret_5[[#This Row],[Fred]])","v":""}]
[null,null,null,null,{"$f":"IF(Ret_5[[#This Row],[Teilfläche]]=\"\",\"\",VLOOKUP(Ret_5[[#This Row],[Teilfläche]],Codes!$B$3:$E$24,4,FALSE))","v":""},{"$f":"IF(Ret_5[[#This Row],[Fläche]]=\"\",\"\",Ret_5[[#This Row],[Fläche]]*Ret_5[[#This Row],[C]])","v":""},{"$f":"IF(Ret_5[[#This Row],[Fred]]=\"\",\"\",G$66*Ret_5[[#This Row],[Fred]])","v":""}]
[null,null,null,null,{"$f":"IF(Ret_5[[#This Row],[Teilfläche]]=\"\",\"\",VLOOKUP(Ret_5[[#This Row],[Teilfläche]],Codes!$B$3:$E$24,4,FALSE))","v":""},{"$f":"IF(Ret_5[[#This Row],[Fläche]]=\"\",\"\",Ret_5[[#This Row],[Fläche]]*Ret_5[[#This Row],[C]])","v":""},{"$f":"IF(Ret_5[[#This Row],[Fred]]=\"\",\"\",G$66*Ret_5[[#This Row],[Fred]])","v":""}]
[null,null,"Total",{"$f":"SUM(D71:D73)","v":0},null,{"$f":"SUM(F71:F73)","v":0},{"$f":"SUM(G71:G73)","v":0},null,null,2,{"$f":"INDEX(N$1:N$2,J74,1)","v":"mit Lochdrossel"},null,null,{"$f":"IF(B5a!$D74>0,ROW(),N60)","v":""}]
[]
[null,null,null,null,null,null,null,null,null,"Qab",{"$f":"G74*0.025","v":0},"[l/s]"]
[null,null,null,null,null,null,null,null,null,"VR",{"$f":"IF(G66=\"\",\"\",J74*(SQRT(247/G66)-10)*(393*SQRT(G66)-250*G66)*F74*6*10^-6)","v":""},"[m3]"]
[null,null,null,null,null,null,null,null,null,"Qab,Not",{"$f":"'B21'!$D$18*B5a!F74","v":0},"l/s"]

{"sheet":"B5b","index":5,"n_rows":57,"n_cols":33,"rows_kept":57,"cut":false,"hidden":false,"merged":[[3,0,3,1],[3,2,3,3],[4,0,4,1],[4,2,4,12],[5,0,5,1],[5,2,5,12],[6,0,6,1],[6,2,6,12],[7,2,7,12],[11,12,13,12],[12,1,12,3],[12,4,12,6],[13,1,13,3],[13,4,13,6],[14,1,14,3],[14,4,14,6],[15,1,15,3],[15,4,15,6],[16,1,16,3],[16,4,16,6],[24,4,24,5],[26,0,26,12],[56,2,58,12],[17,1,17,3],[17,4,17,6],[18,1,18,3],[18,4,18,6],[19,1,19,3],[19,4,19,6],[20,1,20,3],[20,4,20,6],[23,4,23,5]]}
["B5","Ermittlung Retentionsvolumen"]
[null,"Liegenschaftsentwässerung"]
[]
["Gemeinde",null,{"$f":"Eingabe!B16","v":0},null,null,"Parzellen-Nr.:",{"$f":"Eingabe!B23","v":0}]
["Objekt",null,{"$f":"Eingabe!B17","v":0}]
["Bauherr",null,{"$f":"Eingabe!B18","v":0}]
["Architekt",null,{"$f":"Eingabe!B19","v":0}]
["Fachplaner",null,{"$f":"'B21'!C8","v":", , "}]
[]
["Reduktionsfaktor:              fR =",null,null,0.8,null,null,"Fred,R = Fred * fR",null,null,null,"Retentionsanlage-Nr."]
[]
[null,"Ableitung in Retention",null,null,null,null,null,"Fläche","yH","Fred","fR","Fred,R","Werte aus Beilage B2 übernehmen"]
["Nr.","Art der Fläche bzw. Entwässerung",null,null,"Teilfläche",null,null,"[m2]","[-]","[m2]","[-]","[m2]"]
[null,null,null,null,null,null,null,null,{"$f":"IF(E14=\"\",\"\",VLOOKUP(E14,Codes!$B$3:$E$24,4,FALSE))","v":""},{"$f":"IF(I14=\"\",\"\",PRODUCT(H14:I14))","v":""},{"$f":"IF(J14=\"\",\"\",D$10)","v":""},{"$f":"IF(J14=\"\",\"\",J14*K14)","v":""}]
[null,null,null,null,null,null,null,null,{"$f":"IF(E15=\"\",\"\",VLOOKUP(E15,Codes!$B$3:$E$24,4,FALSE))","v":""},"","",""]
[null,null,null,null,null,null,null,null,{"$f":"IF(E16=\"\",\"\",VLOOKUP(E16,Codes!$B$3:$E$24,4,FALSE))","v":""},"","",""]
[null,null,null,null,null,null,null,null,{"$f":"IF(E17=\"\",\"\",VLOOKUP(E17,Codes!$B$3:$E$24,4,FALSE))","v":""},"","",""]
[null,null,null,null,null,null,null,null,{"$f":"IF(E18=\"\",\"\",VLOOKUP(E18,Codes!$B$3:$E$24,4,FALSE))","v":""},"","",""]
[null,null,null,null,null,null,null,null,{"$f":"IF(E19=\"\",\"\",VLOOKUP(E19,Codes!$B$3:$E$24,4,FALSE))","v":""},"","",""]
[null,null,null,null,null,null,null,null,{"$f":"IF(E20=\"\",\"\",VLOOKUP(E20,Codes!$B$3:$E$24,4,FALSE))","v":""},"","",""]
[null,null,null,null,null,null,null,null,{"$f":"IF(E21=\"\",\"\",VLOOKUP(E21,Codes!$B$3:$E$24,4,FALSE))","v":""},"","",""]
[null,null,null,null,null,null,"Total",{"$f":"SUM(H14:H21)","v":0},null,{"$f":"SUM(J14:J21)","v":0},null,{"$f":"SUM(L14:L21)","v":0}]
[]
["reduzierte Fläche",null,null,"Fred,Total",{"$f":"J22/10000","v":0},null,"[ha]"]
["gedrosselter Abfluss",null,null,"Qab",{"$f":"L22*0.025","v":0},null,"[l/s]","Qab = Fred,R,Total * 0.025 l/s m2"]
[]
["Abb. 1:  Diagramm zur Bemessung  des erforderlichen Regenrückhaltevolumens bei gegebener maximal zulässiger spezifischer\n               Abfluss- bzw. Einleitmenge qab für Liechtenstein (Jährlichkeit z = 10)"]
[]
[null,null,null,null,null,null,null,null,null,null,null,null,null,null,null,null,null,null,null,null,null,null,null,null,null,null,null,null,null,null,"qab","iR"]
[null,null,null,null,null,null,null,null,null,null,null,null,null,null,null,null,null,null,null,null,null,null,null,null,null,null,null,null,null,null,"[l/s ha]","[m3/ha]"]
[null,null,null,null,null,null,null,null,null,null,null,null,null,null,null,null,null,null,null,null,null,null,null,null,null,null,null,null,null,null,5,284.39999999999998]
[null,null,null,null,null,null,null,null,null,null,null,null,null,null,null,null,null,null,null,null,null,null,null,null,null,null,null,null,null,null,10,272.39999999999998]
[null,null,null,null,null,null,null,null,null,null,null,null,null,null,null,null,null,null,null,null,null,null,null,null,null,null,null,null,null,null,15,260.39999999999998]
[null,null,null,null,null,null,null,null,null,null,null,null,null,null,null,null,null,null,null,null,null,null,null,null,null,null,null,null,null,null,20,248.4]
[null,null,null,null,null,null,null,null,null,null,null,null,null,null,null,null,null,null,null,null,null,null,null,null,null,null,null,null,null,null,25,236.4]
[null,null,null,null,null,null,null,null,null,null,null,null,null,null,null,null,null,null,null,null,null,null,null,null,null,null,null,null,null,null,30,225.17]
[null,null,null,null,null,null,null,null,null,null,null,null,null,null,null,null,null,null,null,null,null,null,null,null,null,null,null,null,null,null,50,189.64]
[null,null,null,null,null,null,null,null,null,null,null,null,null,null,null,null,null,null,null,null,null,null,null,null,null,null,null,null,null,null,75,157.24]
[null,null,null,null,null,null,null,null,null,null,null,null,null,null,null,null,null,null,null,null,null,null,null,null,null,null,null,null,null,null,100,132.30000000000001]
[null,null,null,null,null,null,null,null,null,null,null,null,null,null,null,null,null,null,null,null,null,null,null,null,null,null,null,null,null,null,125,112.09]
[null,null,null,null,null,null,null,null,null,null,null,null,null,null,null,null,null,null,null,null,null,null,null,null,null,null,null,null,null,null,150,95.25]
[null,null,null,null,null,null,null,null,null,null,null,null,null,null,null,null,null,null,null,null,null,null,null,null,null,null,null,null,null,null,175,81]
[null,null,null,null,null,null,null,null,null,null,null,null,null,null,null,null,null,null,null,null,null,null,null,null,null,null,null,null,null,null,200,68.67]
[null,null,null,null,null,null,null,null,null,null,null,null,null,null,null,null,null,null,null,null,null,null,null,null,null,null,null,null,null,null,225,58.06]
[null,null,null,null,null,null,null,null,null,null,null,null,null,null,null,null,null,null,null,null,null,null,null,null,null,null,null,null,null,null,250,48.94]
[null,null,null,null,null,null,null,null,null,null,null,null,null,null,null,null,null,null,null,null,null,null,null,null,null,null,null,null,null,null,{"$f":"D51","v":{"$error":"#DIV/0!"}},null,0]
[null,null,null,null,null,null,null,null,null,null,null,null,null,null,null,null,null,null,null,null,null,null,null,null,null,null,null,null,null,null,{"$f":"D51","v":{"$error":"#DIV/0!"}},null,290]
[]
[]
[]
["1.","qab = Qab / SFred =",null,{"$f":"E25/E24","v":{"$error":"#DIV/0!"}},"l/s ha  in untere Skala als vertikale Linie eintragen"]
["2.","bei Schnittpunkt mit Kurve horizontale Linie eintragen und entsprechendes spezifisches Retentionsvolumen"]
[null,"aus linker Skala herauslesen"]
[null,"spezifisches Retentionsionsvolumen iR",null,null,null,"aus Graphik",null,"[m3/ha]"]
[null,"Notwendiges Retentionsvolumen VR",null,null,null,"iR x Fred,Total",{"$f":"G54*E24","v":0},"[m3]"]
[]
["Bemerkung:",null,"Das berechnete Retentionsvolumen IR gilt bei Verwendung eines speziellen Drosselorgans (Wirbeldrossel, Doppelblenden-Drossel, etc.). Bei der Verwendung einer einfachen Lochblende muss das rechnerisch ermittelte Retentionsvolumen IR verdoppelt werden!"]

{"sheet":"B6","index":6,"n_rows":53,"n_cols":13,"rows_kept":53,"cut":false,"hidden":false,"merged":[[5,0,5,1],[5,2,5,12],[3,0,3,1],[3,2,3,4],[3,5,3,6],[4,0,4,1],[4,2,4,12],[27,9,27,10],[18,0,18,12],[27,6,27,8],[17,0,17,12],[9,0,9,8],[11,0,11,12],[14,0,14,12],[6,0,6,1],[6,2,6,12],[7,2,7,12],[20,0,20,8],[25,2,25,5],[15,0,15,12],[16,0,16,12],[30,9,30,10],[31,9,31,10],[30,6,30,8],[31,6,31,8],[28,9,28,10],[29,9,29,10],[28,6,28,8],[29,6,29,8],[44,7,44,8],[44,9,44,10],[45,7,45,8],[45,9,45,10],[46,5,46,6],[32,9,32,10],[33,9,33,10],[36,9,36,10],[38,0,38,8],[32,6,32,8],[33,6,33,8],[36,6,36,8],[40,2,40,3],[41,2,41,3],[41,0,41,1],[41,5,41,6],[42,5,42,6],[40,0,40,1],[40,5,40,8],[43,5,43,6],[44,5,44,6],[45,5,45,6],[46,7,46,8],[34,9,34,10],[35,9,35,10],[34,6,34,8],[35,6,35,8],[40,9,40,11],[46,9,46,10],[41,7,41,8],[41,9,41,10],[42,7,42,8],[42,9,42,10],[43,7,43,8],[43,9,43,10]]}
["B6","Sickerversuch"]
[null,"Liegenschaftsentwässerung"]
[]
["Gemeinde",null,{"$f":"IF('B21'!$C$4:$D$4=\"\",\"\",'B21'!$C$4:$D$4)","v":0},null,null,"Parzellen-Nr.:",null,{"$f":"IF('B21'!$G$4=\"\",\"\",'B21'!$G$4)","v":0}]
["Objekt",null,{"$f":"IF('B21'!$C$5:$J$5=\"\",\"\",'B21'!$C$5:$J$5)","v":0}]
["Bauherr",null,{"$f":"IF('B21'!$C$6:$J$6=\"\",\"\",'B21'!$C$6:$J$6)","v":0}]
["Architekt",null,{"$f":"IF('B21'!$C$7:$J$7=\"\",\"\",'B21'!$C$7:$J$7)","v":0}]
["Fachplaner",null,{"$f":"IF('B21'!$C$8:$J$8=\"\",\"\",'B21'!$C$8:$J$8)","v":", , "}]
[]
["Versuchsdurchführung"]
[]
["- Grube (ca. 1 x 1 m) mit geraden Wänden ausheben."]
["- Die Lage und Tiefe sollte mit der künftigen Versickerungsanlage übereinstimmen."]
["- Sohle ausebnen und mit 2 Zentimeter Splitt abdecken. "]
["- Wände und Sohle sollen durch Baggerschaufel nicht verdichtet werden. Allenfalls sind diese aufzurauhen."]
["- Doppelmeter bzw. Messlatte entsprechend fixieren wobei der Nullpunkt die Grabensohle berührt"]
["- Grube vorsichtig mit Wasser bis ca. 50 cm über der Sohle – maximal bis zum Mutterboden -  füllen"]
["- Wasserspiegel alle 15 min ablesen und Messwert in Protokoll eintragen."]
["- Der Versuch ist als Kontrolle ein zweites Mal durchzuführen"]
[]
["Angaben Baggerschlitz"]
[]
["Länge  L:",null,null,"[m]",null,"mittlere Länge Lm:",null,null,"[m]","Höhe  z:",null,"[m]"]
["Breite  B:",null,null,"[m]",null,"mittlere Breite Bm:",null,null,"[m]","z = Abstand Wasserspiegel - Sohle Baggerschlitz"]
[]
["Bodentyp:",null,null,null,null,null,{"$f":"IF(C26=\"\",\"\",\"  Sickerfähigkeit:\")","v":""},null,{"$f":"IF(C26=\"\",\"\",VLOOKUP(C26,G29:M37,7,FALSE))","v":""}]
[]
[null,null,null,null,null,null,"Bodentyp",null,null,"spezifische\nSickerleistung",null,"Einheit","Sickerfähigkeit"]
[null,null,null,null,null,null,"Grobkies",null,null,"> 100",null,"l / min m²","sehr gut"]
[null,null,null,null,null,null,"Kies (sauber)",null,null,"> 20",null,"l / min m²","sehr gut"]
[null,null,null,null,null,null,"Feinkies, sandig siltig",null,null,"> 10 ",null,"l / min m²","gut"]
[null,null,null,null,null,null,"Sand siltig, kiesig ",null,null," 5 - 10",null,"l / min m²","mässig bis gut"]
[null,null,null,null,null,null,"Kies, Sand leicht tonig",null,null," 0,5 - 5",null,"l / min m²","mässig bis gut"]
[null,null,null,null,null,null,"Humus (unverdichtet)",null,null," 1 - 3",null,"l / min m²","mässig"]
[null,null,null,null,null,null,"lehmiger Kies",null,null," 0,5 - 2",null,"l / min m²","schlecht"]
[null,null,null,null,null,null,"Möräne, kiesiger Lehm",null,null,"<0,5",null,"l / min m²","sehr schlecht"]
[null,null,null,null,null,null,"Silt, Ton",null,null,"< 0,1",null,"l / min m²","sehr schlecht"]
[]
["Messung"]
[]
["Datum:",null,null,null,null,"Zeit",null,null,null,"Wasserhöhe",null,null,"Sickerleistung"]
["Zeit:",null,null,null,null,"t",null,"Dt",null,"h",null,"Dh","Sspez"]
[null,null,null,null,null,"[min]",null,"[min]",null,"[cm]",null,"[cm]","[l/min m2]"]
[]
[null,null,null,null,null,null,null,{"$f":"IF(F44=\"\",\"\",F45-F44)","v":""},null,null,null,{"$f":"IF(J44=\"\",\"\",J44-J45)","v":""},{"$f":"IF(L45=\"\",\"\",H$23*H$24*L45/H45*10/(C$23*C$24+K$23*(H$23+H$24)))","v":""}]
[null,null,null,null,null,null,null,"",null,null,null,"",{"$f":"IF(L46=\"\",\"\",H$23*H$24*L46/H46*10/(C$23*C$24+K$23*(H$23+H$24)))","v":""}]
[null,null,null,null,null,null,null,"",null,null,null,"",{"$f":"IF(L47=\"\",\"\",H$23*H$24*L47/H47*10/(C$23*C$24+K$23*(H$23+H$24)))","v":""}]
[null,null,null,null,null,null,null,null,null,null,null,"spezifische Sickerleistung:",{"$f":"IF(SUM(M45:M47)=0,\"\",AVERAGE(M45:M47))","v":""}]
[]
[]
[]
[]
[null,null,"Ort, Datum:",null,null,null,null,null,"Unterschrift Fachspezialist VSA Liegenschaftsentwässerung"]

{"sheet":"C1","index":7,"n_rows":101,"n_cols":13,"rows_kept":101,"cut":false,"hidden":false,"merged":[[15,3,15,5],[6,0,6,1],[6,2,6,6],[3,0,3,1],[4,0,4,1],[4,2,4,6],[5,0,5,1],[5,2,5,6],[7,0,7,1],[7,2,7,6],[9,0,9,2],[10,0,10,2],[13,0,13,2],[53,3,53,5],[30,0,30,2],[32,0,32,2],[32,3,32,5],[33,0,33,2],[38,0,38,2],[24,0,24,2],[16,0,16,2],[21,0,21,2],[22,0,22,2],[15,0,15,2],[54,0,54,2],[68,0,68,2],[39,0,39,2],[41,0,41,2],[51,0,51,2],[53,0,53,2],[59,0,59,2],[70,3,70,5],[71,0,71,2],[85,0,85,2],[87,0,87,2],[87,3,87,5],[76,0,76,2],[93,0,93,2],[62,0,62,2],[79,0,79,2],[96,0,96,2],[88,0,88,2],[70,0,70,2]]}
["C1","Dimensionierung Schlammsammler"]
[null,"Liegenschaftsentwässerung"]
[]
["Gemeinde",null,{"$f":"Eingabe!B16","v":0},null,"Parzellen-Nr.",{"$f":"Eingabe!B23","v":0}]
["Objekt",null,{"$f":"Eingabe!B17","v":0}]
["Bauherr",null,{"$f":"Eingabe!B18","v":0}]
["Architekt",null,{"$f":"Eingabe!B19","v":0}]
["Fachplaner",null,{"$f":"Eingabe!B9&\", \"&Eingabe!B10&\", \"&Eingabe!B11","v":", , "}]
[]
["Sinkgeschwindigkeit",null,null,"v",18,"m/h","gem. SN 592 000 Kap. 7.6.3"]
["Minimale Schlammraumtiefe",null,null,"K",0.5,"m"]
["Regenintensität",null,null,"r",3.5999999999999997E-2,"l/s m2"]
[]
["Schlammsammler 1",null,null,null,null,null,null,null,null,null,null,null,{"$f":"MAX(M29,M46,M67,M84,M101)","v":0}]
[]
["Anforderungen",null,null,"Normale Anforderungen"]
["Aufenthaltszeit",null,null,"t",{"$f":"VLOOKUP($D16,Codes!$B$122:$D$123,3,FALSE)","v":30},"s"]
[]
["Tiefe des Abscheideraumes",null,null,"h1",0.5,"m"]
[{"$f":"\"Nutztiefe \"&VLOOKUP($D16,Codes!$B$122:$E$123,4,FALSE)","v":"Nutztiefe (min. 1.00 m)"},null,null,"NT",{"$f":"IF(E19=\"\",\"\",E19+$E$11)","v":1},"m"]
[{"$f":"IF(E20<VLOOKUP($D16,Codes!$B$122:$F$123,5,FALSE),\"Minimale Nutztiefe unterschritten\",\"\")","v":""}]
["Reduzierte abflusswirksame Fläche",null,null,"Fred1",{"$f":"IF(K22<>\"\",K22,K23)","v":0},"m2",null,null,null,"Fred1,man",null,"m2"]
["Zufluss Schlammsammler",null,null,"Qzu1",{"$f":"$E22*$E$12","v":0},"l/s",null,null,null,"Fred1,ber",{"$f":"SUMIF('B22'!$M$24:$M$26,\"SS 1\",'B22'!$F$24:$F$26)+SUMIF('B22'!$M$32:$M$34,\"SS 1\",'B22'!$F$32:$F$34)","v":0},"m2"]
[]
["Gewählter Normschacht",null,null,"NW",null,"m"]
[{"$f":"\"Die minimale Nennweite beträgt NW = \"&ROUND(SQRT(4*E28/PI()),2)&\" m\"","v":"Die minimale Nennweite beträgt NW = 0 m"}]
[]
["Erforderliche Abscheideoberfläche",null,null,"Aerf",{"$f":"$E23/1000*$E17/$E19","v":0},"m2"]
["Vorhandene Abscheideoberfläche",null,null,"Avorh",{"$f":"$E25^2*PI()/4","v":0},"m2",{"$f":"IFERROR(IF(E29>E28,\"erfüllt!   Sicherheit: \"&ROUND(E29/E28*100,0)&\" %\",\"NICHT erfüllt!   Sicherheit: \"&ROUND(E29/E28*100,0)&\" %\"),\"\")","v":""},null,null,null,null,null,{"$f":"IF(E29>0,ROW(),0)","v":0}]
[]
["Schlammsammler 2"]
[]
["Anforderungen",null,null,"Normale Anforderungen"]
["Aufenthaltszeit",null,null,"t",{"$f":"VLOOKUP($D33,Codes!$B$122:$D$123,3,FALSE)","v":30},"s"]
[]
["Tiefe des Abscheideraumes",null,null,"h1",0.5,"m"]
[{"$f":"\"Nutztiefe \"&VLOOKUP($D33,Codes!$B$122:$E$123,4,FALSE)","v":"Nutztiefe (min. 1.00 m)"},null,null,"NT",{"$f":"IF(E36=\"\",\"\",E36+$E$11)","v":1},"m"]
[{"$f":"IF(E37<VLOOKUP($D33,Codes!$B$122:$F$123,5,FALSE),\"Minimale Nutztiefe unterschritten\",\"\")","v":""}]
["Reduzierte abflusswirksame Fläche",null,null,"Fred1",{"$f":"IF(K39<>\"\",K39,K40)","v":0},"m2",null,null,null,"Fred1,man",null,"m2"]
["Zufluss Schlammsammler",null,null,"Qzu1",{"$f":"$E39*$E$12","v":0},"l/s",null,null,null,"Fred1,ber",{"$f":"SUMIF('B22'!$M$24:$M$26,\"SS 2\",'B22'!$F$24:$F$26)+SUMIF('B22'!$M$32:$M$34,\"SS 2\",'B22'!$F$32:$F$34)","v":0},"m2"]
[]
["Gewählter Normschacht",null,null,"NW",null,"m"]
[{"$f":"\"Die minimale Nennweite beträgt NW = \"&ROUND(SQRT(4*E45/PI()),2)&\" m\"","v":"Die minimale Nennweite beträgt NW = 0 m"}]
[]
["Erforderliche Abscheideoberfläche",null,null,"Aerf",{"$f":"$E40/1000*$E34/$E36","v":0},"m2"]
["Vorhandene Abscheideoberfläche",null,null,"Avorh",{"$f":"$E42^2*PI()/4","v":0},"m2",{"$f":"IFERROR(IF(E46>E45,\"erfüllt!   Sicherheit: \"&ROUND(E46/E45*100,0)&\" %\",\"NICHT erfüllt!   Sicherheit: \"&ROUND(E46/E45*100,0)&\" %\"),\"\")","v":""},null,null,null,null,null,{"$f":"IF(E46>0,ROW(),0)","v":0}]
[]
[]
[]
[]
[]
["Schlammsammler 3"]
[]
["Anforderungen",null,null,"Normale Anforderungen"]
["Aufenthaltszeit",null,null,"t",{"$f":"VLOOKUP($D54,Codes!$B$122:$D$123,3,FALSE)","v":30},"s"]
[]
["Tiefe des Abscheideraumes",null,null,"h1",0.5,"m"]
[{"$f":"\"Nutztiefe \"&VLOOKUP($D54,Codes!$B$122:$E$123,4,FALSE)","v":"Nutztiefe (min. 1.00 m)"},null,null,"NT",{"$f":"IF(E57=\"\",\"\",E57+$E$11)","v":1},"m"]
[{"$f":"IF(E58<VLOOKUP($D54,Codes!$B$122:$F$123,5,FALSE),\"Minimale Nutztiefe unterschritten\",\"\")","v":""}]
["Reduzierte abflusswirksame Fläche",null,null,"Fred1",{"$f":"IF(K60<>\"\",K60,K61)","v":0},"m2",null,null,null,"Fred1,man",null,"m2"]
["Zufluss Schlammsammler",null,null,"Qzu1",{"$f":"$E60*$E$12","v":0},"l/s",null,null,null,"Fred1,ber",{"$f":"SUMIF('B22'!$M$24:$M$26,\"SS 3\",'B22'!$F$24:$F$26)+SUMIF('B22'!$M$32:$M$34,\"SS 3\",'B22'!$F$32:$F$34)","v":0},"m2"]
[]
["Gewählter Normschacht",null,null,"NW",null,"m"]
[{"$f":"\"Die minimale Nennweite beträgt NW = \"&ROUND(SQRT(4*E66/PI()),2)&\" m\"","v":"Die minimale Nennweite beträgt NW = 0 m"}]
[]
["Erforderliche Abscheideoberfläche",null,null,"Aerf",{"$f":"$E61/1000*$E55/$E57","v":0},"m2"]
["Vorhandene Abscheideoberfläche",null,null,"Avorh",{"$f":"$E63^2*PI()/4","v":0},"m2",{"$f":"IFERROR(IF(E67>E66,\"erfüllt!   Sicherheit: \"&ROUND(E67/E66*100,0)&\" %\",\"NICHT erfüllt!   Sicherheit: \"&ROUND(E67/E66*100,0)&\" %\"),\"\")","v":""},null,null,null,null,null,{"$f":"IF(E67>0,ROW(),0)","v":0}]
[]
["Schlammsammler 4"]
[]
["Anforderungen",null,null,"Normale Anforderungen"]
["Aufenthaltszeit",null,null,"t",{"$f":"VLOOKUP($D71,Codes!$B$122:$D$123,3,FALSE)","v":30},"s"]
[]
["Tiefe des Abscheideraumes",null,null,"h1",0.5,"m"]
[{"$f":"\"Nutztiefe \"&VLOOKUP($D71,Codes!$B$122:$E$123,4,FALSE)","v":"Nutztiefe (min. 1.00 m)"},null,null,"NT",{"$f":"IF(E74=\"\",\"\",E74+$E$11)","v":1},"m"]
[{"$f":"IF(E75<VLOOKUP($D71,Codes!$B$122:$F$123,5,FALSE),\"Minimale Nutztiefe unterschritten\",\"\")","v":""}]
["Reduzierte abflusswirksame Fläche",null,null,"Fred1",{"$f":"IF(K77<>\"\",K77,K78)","v":0},"m2",null,null,null,"Fred1,man",null,"m2"]
["Zufluss Schlammsammler",null,null,"Qzu1",{"$f":"$E77*$E$12","v":0},"l/s",null,null,null,"Fred1,ber",{"$f":"SUMIF('B22'!$M$24:$M$26,\"SS 4\",'B22'!$F$24:$F$26)+SUMIF('B22'!$M$32:$M$34,\"SS 4\",'B22'!$F$32:$F$34)","v":0},"m2"]
[]
["Gewählter Normschacht",null,null,"NW",null,"m"]
[{"$f":"\"Die minimale Nennweite beträgt NW = \"&ROUND(SQRT(4*E83/PI()),2)&\" m\"","v":"Die minimale Nennweite beträgt NW = 0 m"}]
[]
["Erforderliche Abscheideoberfläche",null,null,"Aerf",{"$f":"$E78/1000*$E72/$E74","v":0},"m2"]
["Vorhandene Abscheideoberfläche",null,null,"Avorh",{"$f":"$E80^2*PI()/4","v":0},"m2",{"$f":"IFERROR(IF(E84>E83,\"erfüllt!   Sicherheit: \"&ROUND(E84/E83*100,0)&\" %\",\"NICHT erfüllt!   Sicherheit: \"&ROUND(E84/E83*100,0)&\" %\"),\"\")","v":""},null,null,null,null,null,{"$f":"IF(E84>0,ROW(),0)","v":0}]
[]
["Schlammsammler 5"]
[]
["Anforderungen",null,null,"Normale Anforderungen"]
["Aufenthaltszeit",null,null,"t",{"$f":"VLOOKUP($D88,Codes!$B$122:$D$123,3,FALSE)","v":30},"s"]
[]
["Tiefe des Abscheideraumes",null,null,"h1",0.5,"m"]
[{"$f":"\"Nutztiefe \"&VLOOKUP($D88,Codes!$B$122:$E$123,4,FALSE)","v":"Nutztiefe (min. 1.00 m)"},null,null,"NT",{"$f":"IF(E91=\"\",\"\",E91+$E$11)","v":1},"m"]
[{"$f":"IF(E92<VLOOKUP($D88,Codes!$B$122:$F$123,5,FALSE),\"Minimale Nutztiefe unterschritten\",\"\")","v":""}]
["Reduzierte abflusswirksame Fläche",null,null,"Fred1",{"$f":"IF(K94<>\"\",K94,K95)","v":0},"m2",null,null,null,"Fred1,man",null,"m2"]
["Zufluss Schlammsammler",null,null,"Qzu1",{"$f":"$E94*$E$12","v":0},"l/s",null,null,null,"Fred1,ber",{"$f":"SUMIF('B22'!$M$24:$M$26,\"SS 5\",'B22'!$F$24:$F$26)+SUMIF('B22'!$M$32:$M$34,\"SS 5\",'B22'!$F$32:$F$34)","v":0},"m2"]
[]
["Gewählter Normschacht",null,null,"NW",null,"m"]
[{"$f":"\"Die minimale Nennweite beträgt NW = \"&ROUND(SQRT(4*E100/PI()),2)&\" m\"","v":"Die minimale Nennweite beträgt NW = 0 m"}]
[]
["Erforderliche Abscheideoberfläche",null,null,"Aerf",{"$f":"$E95/1000*$E89/$E91","v":0},"m2"]
["Vorhandene Abscheideoberfläche",null,null,"Avorh",{"$f":"$E97^2*PI()/4","v":0},"m2",{"$f":"IFERROR(IF(E101>E100,\"erfüllt!   Sicherheit: \"&ROUND(E101/E100*100,0)&\" %\",\"NICHT erfüllt!   Sicherheit: \"&ROUND(E101/E100*100,0)&\" %\"),\"\")","v":""},null,null,null,null,null,{"$f":"IF(E101>0,ROW(),0)","v":0}]

{"sheet":"D11","index":8,"n_rows":138,"n_cols":37,"rows_kept":138,"cut":false,"hidden":false,"merged":[[6,35,7,35],[6,36,7,36],[130,0,130,2],[42,0,42,2],[43,0,43,2],[63,0,63,3],[72,0,72,2],[103,0,103,2],[101,0,101,2],[90,0,90,2],[91,0,91,2],[96,0,96,2],[100,0,100,2],[66,0,66,2],[74,0,74,2],[6,32,7,32],[34,0,34,2],[20,0,20,2],[6,31,7,31],[6,25,7,25],[6,26,7,26],[6,27,7,27],[6,28,7,28],[6,29,7,29],[6,30,7,30],[6,2,6,11],[7,2,7,11],[11,4,11,8],[10,0,10,2],[11,0,11,2],[133,0,133,2],[111,0,111,2],[115,0,115,2],[116,0,116,2],[118,0,118,2],[126,0,126,2],[131,0,131,2],[119,0,119,6],[3,0,3,1],[4,0,4,1],[5,0,5,1],[6,0,6,1],[7,0,7,1],[4,2,4,11],[5,2,5,11],[9,0,9,2],[45,0,45,2],[47,0,47,2],[12,0,12,2],[13,0,13,2],[14,0,14,2],[37,0,37,2],[38,0,38,2],[31,0,31,2],[36,0,36,2],[35,0,35,2],[41,0,41,2],[33,0,33,2],[39,0,39,2],[6,33,7,33],[6,34,7,34],[65,0,65,2],[104,0,104,6],[55,0,55,2],[58,0,58,2],[60,0,60,2],[61,0,61,2],[71,0,71,2],[48,0,48,2],[49,0,49,2],[52,0,52,2],[53,0,53,2],[54,0,54,2],[6,24,7,24],[18,0,18,2]]}
[{"$f":"\"D\"&Z1&\".1\"","v":"D1.1"},{"$f":"\"Dimensionierung Versickerungsanlage \"&Z1","v":"Dimensionierung Versickerungsanlage 1"},null,null,null,null,null,null,null,null,null,null,null,null,null,null,null,{"$f":"MAX(R108:R138,108)","v":108},null,null,null,null,null,null,"Anlage",1]
[null,"Liegenschaftsentwässerung"]
[]
["Gemeinde",null,{"$f":"Eingabe!B16","v":0},null,"Parzellen-Nr.",{"$f":"Eingabe!B23","v":0}]
["Objekt",null,{"$f":"Eingabe!B17","v":0}]
["Bauherr",null,{"$f":"Eingabe!B18","v":0},null,null,null,null,null,null,null,null,null,null,null,null,null,null,null,null,null,null,null,null,null,null,null,null,null,null,null,null,"Typ2/3b","Typ 3a","Typ 3c","Typ 3d"]
["Architekt",null,{"$f":"Eingabe!B19","v":0},null,null,null,null,null,null,null,null,null,null,null,null,null,null,null,null,null,null,null,null,null,"Regendauer","Regen-intensität","Momentan-zufluss","Zufluss-volumen","Regen-intensität","Momentan-zufluss","Zufluss-volumen","Abfluss-volumen","Abfluss-volumen","Abfluss-volumen","Abfluss-volumen","Retentions-volumen","Retentions-volumen"]
["Fachplaner",null,{"$f":"Eingabe!B9&\", \"&Eingabe!B10&\", \"&Eingabe!B11","v":", , "}]
[null,null,null,null,null,null,null,null,null,null,null,null,null,null,null,null,null,null,null,null,null,null,null,null,"t","r (z = 5)","Qzu","Vzu","r (z = 10)","Qzu","Vzu","Vab","Vab","Vab","Vab","Vret (z=5)","Vret (z=10)"]
["Terrainhöhe",null,null,null,null,"m ü. M.",null,null,null,null,null,null,null,null,null,null,null,null,null,null,null,null,null,null,"[min]","[l/s*ha]","[l/s]","[m3]","[l/s*ha]","[l/s]","[m3]","m3","m3","m3","m3","m3","m3"]
["Zu entwässernde reduzierte Flächen",null,null,"Fred,R1",{"$f":"IF(T11<>\"\",T11,T12)","v":0},"m2",null,null,null,null,null,null,null,null,null,null,null,null,"Fred1,man",null,"m2",null,null,null,10,{"$f":"5300/(Y11+10)","v":265},{"$f":"E$11*Z11/10000","v":0},{"$f":"Y11*AA11*60/1000","v":0},{"$f":"6175/(Y11+10)","v":308.75},{"$f":"E$11*AC11/10000","v":0},{"$f":"Y11*AD11*60/1000","v":0},{"$f":"IF($D$17=Codes!$B$59,$E$13/$E$14*$E$43*Y11/1000,IF($D$17=Codes!$B$61,$E$13/$E$14*$E$43*Y11/1000,0))","v":0},{"$f":"IF($D$17=Codes!$B$60,$E$13/$E$14*$E$29*Y11/1000,0)","v":0},{"$f":"IF($D$17=Codes!$B$62,$E$13/$E$14*$E$61*Y11/1000,0)","v":0},{"$f":"IF($D$17=Codes!$B$63,$E$13/$E$14*$E$80*Y11/1000,0)","v":0},{"$f":"AB11-SUM(AF11:AI11)","v":0},{"$f":"AE11-SUM(AF11:AI11)","v":0}]
["Versickerungszone",null,null,null,null,null,null,null,null,null,null,null,null,null,null,null,null,null,"Fred1,ber",{"$f":"SUMIF(Abl_Versickerung[[#All],[Spalte8]],Z1,Abl_Versickerung[[#All],[Spalte6]])","v":0},"m2",null,null,null,15,212,0,0,247,0,0,{"$f":"IF($D$17=Codes!$B$59,$E$13/$E$14*$E$43*Y12/1000,IF($D$17=Codes!$B$61,$E$13/$E$14*$E$43*Y12/1000,0))","v":0},{"$f":"IF($D$17=Codes!$B$60,$E$13/$E$14*$E$29*Y12/1000,0)","v":0},{"$f":"IF($D$17=Codes!$B$62,$E$13/$E$14*$E$61*Y12/1000,0)","v":0},{"$f":"IF($D$17=Codes!$B$63,$E$13/$E$14*$E$80*Y12/1000,0)","v":0},{"$f":"AB12-SUM(AF12:AI12)","v":0},{"$f":"AE12-SUM(AF12:AI12)","v":0}]
["Spezifische Sickerleistung",null,null,"Sspezif ",null,"l/min m2",null,null,null,null,null,null,null,null,null,null,null,null,null,null,null,null,null,null,30,132.5,0,0,154.375,0,0,{"$f":"IF($D$17=Codes!$B$59,$E$13/$E$14*$E$43*Y13/1000,IF($D$17=Codes!$B$61,$E$13/$E$14*$E$43*Y13/1000,0))","v":0},{"$f":"IF($D$17=Codes!$B$60,$E$13/$E$14*$E$29*Y13/1000,0)","v":0},{"$f":"IF($D$17=Codes!$B$62,$E$13/$E$14*$E$61*Y13/1000,0)","v":0},{"$f":"IF($D$17=Codes!$B$63,$E$13/$E$14*$E$80*Y13/1000,0)","v":0},0,0]
["Sicherheitsfaktor",null,null,"SF",1.5,null,null,null,null,null,null,null,null,null,null,null,null,null,null,null,null,null,null,null,60,75.714285714285708,0,0,88.214285714285708,0,0,{"$f":"IF($D$17=Codes!$B$59,$E$13/$E$14*$E$43*Y14/1000,IF($D$17=Codes!$B$61,$E$13/$E$14*$E$43*Y14/1000,0))","v":0},{"$f":"IF($D$17=Codes!$B$60,$E$13/$E$14*$E$29*Y14/1000,0)","v":0},{"$f":"IF($D$17=Codes!$B$62,$E$13/$E$14*$E$61*Y14/1000,0)","v":0},{"$f":"IF($D$17=Codes!$B$63,$E$13/$E$14*$E$80*Y14/1000,0)","v":0},0,0]
["Jährlichkeit",null,null,"z",10,"Jahre",null,null,null,null,null,null,null,null,null,null,null,null,null,null,null,null,null,null,120,40.769230769230766,0,0,47.5,0,0,{"$f":"IF($D$17=Codes!$B$59,$E$13/$E$14*$E$43*Y15/1000,IF($D$17=Codes!$B$61,$E$13/$E$14*$E$43*Y15/1000,0))","v":0},{"$f":"IF($D$17=Codes!$B$60,$E$13/$E$14*$E$29*Y15/1000,0)","v":0},{"$f":"IF($D$17=Codes!$B$62,$E$13/$E$14*$E$61*Y15/1000,0)","v":0},{"$f":"IF($D$17=Codes!$B$63,$E$13/$E$14*$E$80*Y15/1000,0)","v":0},0,0]
[null,null,null,null,null,null,null,null,null,null,null,null,null,null,null,null,null,null,null,null,null,null,null,null,240,21.2,0,0,24.7,0,0,{"$f":"IF($D$17=Codes!$B$59,$E$13/$E$14*$E$43*Y16/1000,IF($D$17=Codes!$B$61,$E$13/$E$14*$E$43*Y16/1000,0))","v":0},{"$f":"IF($D$17=Codes!$B$60,$E$13/$E$14*$E$29*Y16/1000,0)","v":0},{"$f":"IF($D$17=Codes!$B$62,$E$13/$E$14*$E$61*Y16/1000,0)","v":0},{"$f":"IF($D$17=Codes!$B$63,$E$13/$E$14*$E$80*Y16/1000,0)","v":0},0,0]
["Versickerungsanlage",null,null,{"$f":"INDEX(Codes!B59:B63,P17,1)","v":"Typ 2:    Kieskörper"},null,null,null,null,null,null,null,null,null,null,null,1,{"$f":"VLOOKUP(P17,Codes!F56:H65,2,FALSE)","v":32},{"$f":"VLOOKUP(P17,Codes!F56:H65,3,FALSE)","v":45}]
[]
["Sickerschacht (Typ 3a)",null,null,null,null,null,null,null,null,null,null,null,null,"Berechnungsfall Sickerkörper"]
[]
["Mächtigkeit der Deckschicht",null,null,"h1",null,"m"]
["Grabentiefe",null,null,"t",null,"m"]
["Grabendurchmesser",null,null,"DG",null,"m"]
["Schachtdurchmesser",null,null,"DN",null,"m"]
["Mächtigkeit der Filterschicht",null,null,"h2",{"$f":"E22-E21","v":0},"m"]
["Porosität der Filterschicht",null,null,"n",20,"%"]
[]
["Speichervolumen Sickerschacht",null,null,"VSiS",{"$f":"(E23^2*PI()/4-E24^2*PI()/4)*E25*E26/100+E24^2*PI()/4*(E22-E21)","v":0},"m3",null,null,null,null,null,null,null,null,null,null,{"$f":"MAX(E22,E36,E50,E69)","v":0}]
["Versickerungswirksame Fläche",null,null,"Fv",{"$f":"E23^2*PI()/4+E25/2*E23*PI()","v":0},"m2"]
["Versickerungsleistung",null,null,"Lv",{"$f":"E29*E13","v":0},"l/min"]
[]
["Sickerkörper (Typ 2 / 3b)",null,null,null,null,null,null,null,null,null,null,null,null,"Berechnungsfall Sickerkörper"]
[]
["Berechnungsfall Sickerkörper",null,null,null,1]
["Mächtigkeit der Deckschicht",null,null,"h1",null,"m"]
["Grabentiefe",null,null,"t",null,"m"]
["Grabenbreite",null,null,"B",null,"m"]
["Grabenlänge",null,null,"L",null,"m"]
["Mächtigkeit der Filterschicht",null,null,"h2",{"$f":"E36-E35","v":0},"m"]
["Porosität der Filterschicht",null,null,"n",20,"%"]
[]
["Speichervolumen Sickerkörper",null,null,"VSiK",{"$f":"E37*E38*E39*E40/100","v":0},"m3",null,null,null,null,null,null,null,null,null,1,{"$f":"E37*E38+E39/2*(E37+E38)*2","v":0}]
["Versickerungswirksame Fläche",null,null,"Fv",{"$f":"VLOOKUP(E34,P42:Q44,2,FALSE)","v":0},"m2",null,null,null,null,null,null,null,null,null,2,{"$f":"E37*E38+E39/2*(2*E37+E38)","v":0}]
["Versickerungsleistung",null,null,"Lv",{"$f":"E43*E13","v":0},"l/min",null,null,null,null,null,null,null,null,null,3,{"$f":"E37*E38+E39/2*2*E37","v":0}]
[]
["Sickerkörper (Typ 3c)",null,null,null,null,null,null,null,null,null,null,null,null,"Berechnungsfall Sickerkörper"]
[]
["Berechnungsfall Sickerkörper"]
["Mächtigkeit der Deckschicht",null,null,"h1",null,"m"]
["Grabentiefe",null,null,"t",null,"m"]
["Grabendurchmesser",null,null,"DG",{"$f":"1+E52","v":1},"m"]
["Schachtdurchmesser",null,null,"DN",null,"m"]
["Grabenbreite",null,null,"B",null,"m"]
["Grabenlänge",null,null,"L",null,"m"]
["Mächtigkeit der Filterschicht",null,null,"h2",{"$f":"E50-E49","v":0},"m"]
["Porosität der Filterschicht",null,null,"n",20,"%",null,null,null,null,null,null,null,null,null,1,{"$f":"E53*E54+E55/2*(E53+E54)*2","v":0}]
[null,null,null,null,null,null,null,null,null,null,null,null,null,null,null,2,{"$f":"E53*E54+E55/2*(2*E53+E54)","v":0}]
["Speichervolumen Sickerschacht",null,null,"VSiS",{"$f":"(E51^2*PI()/4-E52^2*PI()/4)*E55*E56/100+E52^2*PI()/4*(E50-E49)","v":0},"m3",null,null,null,null,null,null,null,null,null,3,{"$f":"E53*E54+E55/2*2*E53","v":0}]
["Speichervolumen Sickerkörper",null,null,"VSiK",{"$f":"E53*E54*E55*E56/100","v":0},"m3"]
["Speichervolumen Gesamt",null,null,"VGes",{"$f":"E58+E59","v":0},"m3"]
["Versickerungswirksame Fläche",null,null,"Fv",{"$f":"VLOOKUP(E48,P56:Q58,2,FALSE)","v":{"$error":"#N/A"}},"m2"]
["Versickerungsleistung",null,null,"Lv",{"$f":"E61*E22","v":{"$error":"#N/A"}},"l/min"]
[]
["Versickerungskörbe (Typ 3d)",null,null,null,null,null,null,null,null,null,null,null,null,"Berechnungsfall Sickerkörper"]
[]
["Berechnungsfall Sickerkörper"]
["Länge",null,null,"L",null,"m"]
["Breite",null,null,"B",null,"m"]
["Höhe",null,null,"H",null,"m"]
["Volumenanteil Hohlraum / Porosität",null,null,"n",null,"%"]
[]
["Speichervolumen Körbe",null,null,"VSiK",{"$f":"E67*E68*E69*E70/100","v":0},"m3"]
["Zusätzliches Behältervolumen",null,null,"VB",null,"m3"]
[]
["Speichervolumen gesamt",null,null,"Vges",{"$f":"E72+E73","v":0},"m3"]
[]
["Versickerungswirksame Fläche Körbe",null,null,"ASiK",{"$f":"VLOOKUP($E$66,$P$80:$Q$82,2,FALSE)","v":{"$error":"#N/A"}},"m2"]
["Versickerungswirksw. Fläche Behälter",null,null,"AB",null,"m2"]
[]
["Versickerungswirksame Fläche ges.",null,null,"Ages",{"$f":"E77+E78","v":{"$error":"#N/A"}},"m2",null,null,null,null,null,null,null,null,null,1,{"$f":"E67*E68+2*(E67+E68)*E69/2","v":0}]
[null,null,null,null,null,null,null,null,null,null,null,null,null,null,null,2,{"$f":"E67*E68+(E67+2*E68)*E69/2","v":0}]
[null,null,null,null,null,null,null,null,null,null,null,null,null,null,null,3,{"$f":"E67*E68+E68*2*E69/2","v":0}]
["Erforderliches Retentionsvolumen",null,null,"Verf",{"$f":"MAX(AK11:AK16)","v":0},"m3"]
["Vorhandenes Retentionsvolumen",null,null,"Vvorh",{"$f":"IF(P17=1,E42,IF(P17=2,E28,IF(P17=3,E42,IF(P17=4,E60,E75))))","v":0},"m3",{"$f":"IF(E84>E83,\"erfüllt!   Sicherheit: \"&ROUND(E84/E83*100,0)&\" %\",\"NICHT erfüllt!   Sicherheit: \"&ROUND(E84/E83*100,0)&\" %\")","v":{"$error":"#DIV/0!"}}]
[]
[]
[{"$f":"\"Vorreinigung zu Versickerungsanlage \"&Z1","v":"Vorreinigung zu Versickerungsanlage 1"}]
[]
["Rahmenbedingungen Vorreinigung Versickerungsanlage"]
[]
["Sinkgeschwindigkeit",null,null,"v",18,"m/h","gem. SN 592 000 Kap. 7.6.3"]
["Aufenthaltszeit",null,null,"t",120,"s"]
["Regenintensität",null,null,"r",3.5999999999999997E-2,"l/s m2"]
[]
["Vorreinigung 1 (Schlammsammler mit erhöhten Anforderungen)",null,null,null,null,null,null,null,null,null,null,null,null,null,null,{"$f":"Z$1*10+1","v":11}]
[]
["Minimale Schlammraumtiefe",null,null,"K",0.5,"m"]
["Tiefe des Abscheideraumes",null,null,"h1",0.6,"m"]
["Nutztiefe (min. 1.10 m)",null,null,"NT",{"$f":"IF(E98=\"\",\"\",E98+E97)","v":1.1000000000000001},"m"]
[{"$f":"IF(E99<1.1,\"Minimale Nutztiefe unterschritten\",\"\")","v":""}]
["Reduzierte abflusswirksame Fläche",null,null,"Fred,V1",{"$f":"IF(T101<>\"\",T101,T102)","v":0},"m2",null,null,null,null,null,null,null,null,null,null,null,null,"Fred1,man",null,"m2"]
["Zufluss in Vorreinigung",null,null,"Qzu,V1",{"$f":"E101*E$93","v":0},"l/s",null,null,null,null,null,null,null,null,null,null,null,null,"Fred1,ber",{"$f":"SUMIF(Abl_Versickerung[[#All],[Spalte18]],P95,Abl_Versickerung[[#All],[Spalte6]])","v":0},"m2"]
[]
["Gewählter Normschacht",null,null,"NW",null,"m"]
[{"$f":"IF(E98=\"\",\"\",\"Die minimale Nennweite beträgt NW = \"&ROUND(SQRT(4*E107/PI()),2)&\" m\")","v":"Die minimale Nennweite beträgt NW = 0 m"}]
[]
["Erforderliche Abscheideoberfläche",null,null,"Aerf",{"$f":"IFERROR($E102/1000*$E$92/$E98,\"\")","v":0},"m2"]
["Vorhandene Abscheideoberfläche",null,null,"Avorh",{"$f":"$E104^2*PI()/4","v":0},"m2",{"$f":"IFERROR(IF(E108>E107,\"erfüllt!   Sicherheit: \"&ROUND(E108/E107*100,0)&\" %\",\"NICHT erfüllt!   Sicherheit: \"&ROUND(E108/E107*100,0)&\" %\"),\"\")","v":""},null,null,null,null,null,null,null,null,null,null,{"$f":"IF(E108>0,ROW(),\"\")","v":""}]
[]
["Vorreinigung 2 (Schlammsammler mit erhöhten Anforderungen)",null,null,null,null,null,null,null,null,null,null,null,null,null,null,{"$f":"Z$1*10+2","v":12}]
[]
["Minimale Schlammraumtiefe",null,null,"K",0.5,"m"]
["Tiefe des Abscheideraumes",null,null,"h1",0.6,"m"]
["Nutztiefe (min. 1.10 m)",null,null,"NT",{"$f":"IF(E113=\"\",\"\",E113+E112)","v":1.1000000000000001},"m"]
[{"$f":"IF(E114<1.1,\"Minimale Nutztiefe unterschritten\",\"\")","v":""}]
["Reduzierte abflusswirksame Fläche",null,null,"Fred,V1",{"$f":"IF(T116<>\"\",T116,T117)","v":0},"m2",null,null,null,null,null,null,null,null,null,null,null,null,"Fred1,man",null,"m2"]
["Zufluss in Vorreinigung",null,null,"Qzu,V1",{"$f":"E116*E$93","v":0},"l/s",null,null,null,null,null,null,null,null,null,null,null,null,"Fred1,ber",{"$f":"SUMIF(Abl_Versickerung[[#All],[Spalte18]],P110,Abl_Versickerung[[#All],[Spalte6]])","v":0},"m2"]
[]
["Gewählter Normschacht",null,null,"NW",null,"m"]
[{"$f":"IF(E113=\"\",\"\",\"Die minimale Nennweite beträgt NW = \"&ROUND(SQRT(4*E122/PI()),2)&\" m\")","v":"Die minimale Nennweite beträgt NW = 0 m"}]
[]
["Erforderliche Abscheideoberfläche",null,null,"Aerf",{"$f":"IFERROR($E117/1000*$E$92/$E113,\"\")","v":0},"m2"]
["Vorhandene Abscheideoberfläche",null,null,"Avorh",{"$f":"$E119^2*PI()/4","v":0},"m2",{"$f":"IFERROR(IF(E123>E122,\"erfüllt!   Sicherheit: \"&ROUND(E123/E122*100,0)&\" %\",\"NICHT erfüllt!   Sicherheit: \"&ROUND(E123/E122*100,0)&\" %\"),\"\")","v":""},null,null,null,null,null,null,null,null,null,null,{"$f":"IF(E123>0,ROW(),\"\")","v":""}]
[]
["Vorreinigung 3 (Schlammsammler mit erhöhten Anforderungen)",null,null,null,null,null,null,null,null,null,null,null,null,null,null,{"$f":"Z$1*10+3","v":13}]
[]
["Minimale Schlammraumtiefe",null,null,"K",0.5,"m"]
["Tiefe des Abscheideraumes",null,null,"h1",0.6,"m"]
["Nutztiefe (min. 1.10 m)",null,null,"NT",{"$f":"IF(E128=\"\",\"\",E128+E127)","v":1.1000000000000001},"m"]
[{"$f":"IF(E129<1.1,\"Minimale Nutztiefe unterschritten\",\"\")","v":""}]
["Reduzierte abflusswirksame Fläche",null,null,"Fred,V1",{"$f":"IF(T131<>\"\",T131,T132)","v":0},"m2",null,null,null,null,null,null,null,null,null,null,null,null,"Fred1,man",null,"m2"]
["Zufluss in Vorreinigung",null,null,"Qzu,V1",{"$f":"E131*E$93","v":0},"l/s",null,null,null,null,null,null,null,null,null,null,null,null,"Fred1,ber",{"$f":"SUMIF(Abl_Versickerung[[#All],[Spalte18]],P125,Abl_Versickerung[[#All],[Spalte6]])","v":0},"m2"]
[]
["Gewählter Normschacht",null,null,"NW",null,"m"]
[{"$f":"IF(E128=\"\",\"\",\"Die minimale Nennweite beträgt NW = \"&ROUND(SQRT(4*E137/PI()),2)&\" m\")","v":"Die minimale Nennweite beträgt NW = 0 m"}]
[]
["Erforderliche Abscheideoberfläche",null,null,"Aerf",{"$f":"IFERROR($E132/1000*$E$92/$E128,\"\")","v":0},"m2"]
["Vorhandene Abscheideoberfläche",null,null,"Avorh",{"$f":"$E134^2*PI()/4","v":0},"m2",{"$f":"IFERROR(IF(E138>E137,\"erfüllt!   Sicherheit: \"&ROUND(E138/E137*100,0)&\" %\",\"NICHT erfüllt!   Sicherheit: \"&ROUND(E138/E137*100,0)&\" %\"),\"\")","v":""},null,null,null,null,null,null,null,null,null,null,{"$f":"IF(E138>0,ROW(),\"\")","v":""}]

{"sheet":"D12","index":9,"n_rows":138,"n_cols":37,"rows_kept":138,"cut":false,"hidden":false,"merged":[[6,26,7,26],[6,27,7,27],[6,28,7,28],[6,29,7,29],[3,0,3,1],[4,0,4,1],[4,2,4,11],[5,0,5,1],[5,2,5,11],[6,0,6,1],[6,2,6,11],[31,0,31,2],[6,36,7,36],[7,0,7,1],[7,2,7,11],[9,0,9,2],[10,0,10,2],[11,0,11,2],[11,4,11,8],[6,30,7,30],[6,31,7,31],[6,32,7,32],[6,33,7,33],[6,34,7,34],[6,35,7,35],[6,24,7,24],[6,25,7,25],[12,0,12,2],[13,0,13,2],[14,0,14,2],[18,0,18,2],[20,0,20,2],[47,0,47,2],[33,0,33,2],[34,0,34,2],[35,0,35,2],[36,0,36,2],[37,0,37,2],[38,0,38,2],[39,0,39,2],[41,0,41,2],[42,0,42,2],[43,0,43,2],[45,0,45,2],[66,0,66,2],[48,0,48,2],[49,0,49,2],[52,0,52,2],[53,0,53,2],[54,0,54,2],[55,0,55,2],[58,0,58,2],[60,0,60,2],[61,0,61,2],[63,0,63,3],[65,0,65,2],[115,0,115,2],[71,0,71,2],[72,0,72,2],[74,0,74,2],[90,0,90,2],[91,0,91,2],[96,0,96,2],[100,0,100,2],[101,0,101,2],[103,0,103,2],[104,0,104,6],[111,0,111,2],[133,0,133,2],[116,0,116,2],[118,0,118,2],[119,0,119,6],[126,0,126,2],[130,0,130,2],[131,0,131,2]]}
[{"$f":"\"D\"&Z1&\".1\"","v":"D2.1"},{"$f":"\"Dimensionierung Versickerungsanlage \"&Z1","v":"Dimensionierung Versickerungsanlage 2"},null,null,null,null,null,null,null,null,null,null,null,null,null,null,null,{"$f":"MAX(R108:R138,108)","v":108},null,null,null,null,null,null,"Anlage",2]
[null,"Liegenschaftsentwässerung"]
[]
["Gemeinde",null,{"$f":"Eingabe!B16","v":0},null,"Parzellen-Nr.",{"$f":"Eingabe!B23","v":0}]
["Objekt",null,{"$f":"Eingabe!B17","v":0}]
["Bauherr",null,{"$f":"Eingabe!B18","v":0},null,null,null,null,null,null,null,null,null,null,null,null,null,null,null,null,null,null,null,null,null,null,null,null,null,null,null,null,"Typ2/3b","Typ 3a","Typ 3c","Typ 3d"]
["Architekt",null,{"$f":"Eingabe!B19","v":0},null,null,null,null,null,null,null,null,null,null,null,null,null,null,null,null,null,null,null,null,null,"Regendauer","Regen-intensität","Momentan-zufluss","Zufluss-volumen","Regen-intensität","Momentan-zufluss","Zufluss-volumen","Abfluss-volumen","Abfluss-volumen","Abfluss-volumen","Abfluss-volumen","Retentions-volumen","Retentions-volumen"]
["Fachplaner",null,{"$f":"Eingabe!B9&\", \"&Eingabe!B10&\", \"&Eingabe!B11","v":", , "}]
[null,null,null,null,null,null,null,null,null,null,null,null,null,null,null,null,null,null,null,null,null,null,null,null,"t","r (z = 5)","Qzu","Vzu","r (z = 10)","Qzu","Vzu","Vab","Vab","Vab","Vab","Vret (z=5)","Vret (z=10)"]
["Terrainhöhe",null,null,null,null,"m ü. M.",null,null,null,null,null,null,null,null,null,null,null,null,null,null,null,null,null,null,"[min]","[l/s*ha]","[l/s]","[m3]","[l/s*ha]","[l/s]","[m3]","m3","m3","m3","m3","m3","m3"]
["Zu entwässernde reduzierte Flächen",null,null,"Fred,R1",{"$f":"IF(T11<>\"\",T11,T12)","v":0},"m2",null,null,null,null,null,null,null,null,null,null,null,null,"Fred1,man",null,"m2",null,null,null,10,{"$f":"5300/(Y11+10)","v":265},{"$f":"E$11*Z11/10000","v":0},{"$f":"Y11*AA11*60/1000","v":0},{"$f":"6175/(Y11+10)","v":308.75},{"$f":"E$11*AC11/10000","v":0},{"$f":"Y11*AD11*60/1000","v":0},{"$f":"IF($D$17=Codes!$B$59,$E$13/$E$14*$E$43*Y11/1000,IF($D$17=Codes!$B$61,$E$13/$E$14*$E$43*Y11/1000,0))","v":{"$error":"#N/A"}},{"$f":"IF($D$17=Codes!$B$60,$E$13/$E$14*$E$29*Y11/1000,0)","v":0},{"$f":"IF($D$17=Codes!$B$62,$E$13/$E$14*$E$61*Y11/1000,0)","v":0},{"$f":"IF($D$17=Codes!$B$63,$E$13/$E$14*$E$80*Y11/1000,0)","v":0},{"$f":"AB11-SUM(AF11:AI11)","v":{"$error":"#N/A"}},{"$f":"AE11-SUM(AF11:AI11)","v":{"$error":"#N/A"}}]
["Versickerungszone",null,null,null,null,null,null,null,null,null,null,null,null,null,null,null,null,null,"Fred1,ber",{"$f":"SUMIF(Abl_Versickerung[[#All],[Spalte8]],Z1,Abl_Versickerung[[#All],[Spalte6]])","v":0},"m2",null,null,null,15,212,0,0,247,0,0,{"$f":"IF($D$17=Codes!$B$59,$E$13/$E$14*$E$43*Y12/1000,IF($D$17=Codes!$B$61,$E$13/$E$14*$E$43*Y12/1000,0))","v":{"$error":"#N/A"}},{"$f":"IF($D$17=Codes!$B$60,$E$13/$E$14*$E$29*Y12/1000,0)","v":0},{"$f":"IF($D$17=Codes!$B$62,$E$13/$E$14*$E$61*Y12/1000,0)","v":0},{"$f":"IF($D$17=Codes!$B$63,$E$13/$E$14*$E$80*Y12/1000,0)","v":0},{"$f":"AB12-SUM(AF12:AI12)","v":{"$error":"#N/A"}},{"$f":"AE12-SUM(AF12:AI12)","v":{"$error":"#N/A"}}]
["Spezifische Sickerleistung",null,null,"Sspezif ",null,"l/min m2",null,null,null,null,null,null,null,null,null,null,null,null,null,null,null,null,null,null,30,132.5,0,0,154.375,0,0,{"$f":"IF($D$17=Codes!$B$59,$E$13/$E$14*$E$43*Y13/1000,IF($D$17=Codes!$B$61,$E$13/$E$14*$E$43*Y13/1000,0))","v":{"$error":"#N/A"}},{"$f":"IF($D$17=Codes!$B$60,$E$13/$E$14*$E$29*Y13/1000,0)","v":0},{"$f":"IF($D$17=Codes!$B$62,$E$13/$E$14*$E$61*Y13/1000,0)","v":0},{"$f":"IF($D$17=Codes!$B$63,$E$13/$E$14*$E$80*Y13/1000,0)","v":0},{"$error":"#N/A"},{"$error":"#N/A"}]
["Sicherheitsfaktor",null,null,"SF",1.5,null,null,null,null,null,null,null,null,null,null,null,null,null,null,null,null,null,null,null,60,75.714285714285708,0,0,88.214285714285708,0,0,{"$f":"IF($D$17=Codes!$B$59,$E$13/$E$14*$E$43*Y14/1000,IF($D$17=Codes!$B$61,$E$13/$E$14*$E$43*Y14/1000,0))","v":{"$error":"#N/A"}},{"$f":"IF($D$17=Codes!$B$60,$E$13/$E$14*$E$29*Y14/1000,0)","v":0},{"$f":"IF($D$17=Codes!$B$62,$E$13/$E$14*$E$61*Y14/1000,0)","v":0},{"$f":"IF($D$17=Codes!$B$63,$E$13/$E$14*$E$80*Y14/1000,0)","v":0},{"$error":"#N/A"},{"$error":"#N/A"}]
["Jährlichkeit",null,null,"z",10,"Jahre",null,null,null,null,null,null,null,null,null,null,null,null,null,null,null,null,null,null,120,40.769230769230766,0,0,47.5,0,0,{"$f":"IF($D$17=Codes!$B$59,$E$13/$E$14*$E$43*Y15/1000,IF($D$17=Codes!$B$61,$E$13/$E$14*$E$43*Y15/1000,0))","v":{"$error":"#N/A"}},{"$f":"IF($D$17=Codes!$B$60,$E$13/$E$14*$E$29*Y15/1000,0)","v":0},{"$f":"IF($D$17=Codes!$B$62,$E$13/$E$14*$E$61*Y15/1000,0)","v":0},{"$f":"IF($D$17=Codes!$B$63,$E$13/$E$14*$E$80*Y15/1000,0)","v":0},{"$error":"#N/A"},{"$error":"#N/A"}]
[null,null,null,null,null,null,null,null,null,null,null,null,null,null,null,null,null,null,null,null,null,null,null,null,240,21.2,0,0,24.7,0,0,{"$f":"IF($D$17=Codes!$B$59,$E$13/$E$14*$E$43*Y16/1000,IF($D$17=Codes!$B$61,$E$13/$E$14*$E$43*Y16/1000,0))","v":{"$error":"#N/A"}},{"$f":"IF($D$17=Codes!$B$60,$E$13/$E$14*$E$29*Y16/1000,0)","v":0},{"$f":"IF($D$17=Codes!$B$62,$E$13/$E$14*$E$61*Y16/1000,0)","v":0},{"$f":"IF($D$17=Codes!$B$63,$E$13/$E$14*$E$80*Y16/1000,0)","v":0},{"$error":"#N/A"},{"$error":"#N/A"}]
["Versickerungsanlage",null,null,{"$f":"INDEX(Codes!B59:B63,P17,1)","v":"Typ 2:    Kieskörper"},null,null,null,null,null,null,null,null,null,null,null,1,{"$f":"VLOOKUP(P17,Codes!F56:H65,2,FALSE)","v":32},{"$f":"VLOOKUP(P17,Codes!F56:H65,3,FALSE)","v":45}]
[]
["Sickerschacht (Typ 3a)",null,null,null,null,null,null,null,null,null,null,null,null,"Berechnungsfall Sickerkörper"]
[]
["Mächtigkeit der Deckschicht",null,null,"h1",null,"m"]
["Grabentiefe",null,null,"t",null,"m"]
["Grabendurchmesser",null,null,"DG",null,"m"]
["Schachtdurchmesser",null,null,"DN",null,"m"]
["Mächtigkeit der Filterschicht",null,null,"h2",{"$f":"E22-E21","v":0},"m"]
["Porosität der Filterschicht",null,null,"n",20,"%"]
[]
["Speichervolumen Sickerschacht",null,null,"VSiS",{"$f":"(E23^2*PI()/4-E24^2*PI()/4)*E25*E26/100+E24^2*PI()/4*(E22-E21)","v":0},"m3"]
["Versickerungswirksame Fläche",null,null,"Fv",{"$f":"E23^2*PI()/4+E25/2*E23*PI()","v":0},"m2"]
["Versickerungsleistung",null,null,"Lv",{"$f":"E29*E13","v":0},"l/min"]
[]
["Sickerkörper (Typ 2 / 3b)",null,null,null,null,null,null,null,null,null,null,null,null,"Berechnungsfall Sickerkörper"]
[]
["Berechnungsfall Sickerkörper"]
["Mächtigkeit der Deckschicht",null,null,"h1",null,"m"]
["Grabentiefe",null,null,"t",null,"m"]
["Grabenbreite",null,null,"B",null,"m"]
["Grabenlänge",null,null,"L",null,"m"]
["Mächtigkeit der Filterschicht",null,null,"h2",{"$f":"E36-E35","v":0},"m"]
["Porosität der Filterschicht",null,null,"n",20,"%"]
[]
["Speichervolumen Sickerkörper",null,null,"VSiK",{"$f":"E37*E38*E39*E40/100","v":0},"m3",null,null,null,null,null,null,null,null,null,1,{"$f":"E37*E38+E39/2*(E37+E38)*2","v":0}]
["Versickerungswirksame Fläche",null,null,"Fv",{"$f":"VLOOKUP(E34,P42:Q44,2,FALSE)","v":{"$error":"#N/A"}},"m2",null,null,null,null,null,null,null,null,null,2,{"$f":"E37*E38+E39/2*(2*E37+E38)","v":0}]
["Versickerungsleistung",null,null,"Lv",{"$f":"E43*E13","v":{"$error":"#N/A"}},"l/min",null,null,null,null,null,null,null,null,null,3,{"$f":"E37*E38+E39/2*2*E37","v":0}]
[]
["Sickerkörper (Typ 3c)",null,null,null,null,null,null,null,null,null,null,null,null,"Berechnungsfall Sickerkörper"]
[]
["Berechnungsfall Sickerkörper"]
["Mächtigkeit der Deckschicht",null,null,"h1",null,"m"]
["Grabentiefe",null,null,"t",null,"m"]
["Grabendurchmesser",null,null,"DG",{"$f":"1+E52","v":1},"m"]
["Schachtdurchmesser",null,null,"DN",null,"m"]
["Grabenbreite",null,null,"B",null,"m"]
["Grabenlänge",null,null,"L",null,"m"]
["Mächtigkeit der Filterschicht",null,null,"h2",{"$f":"E50-E49","v":0},"m"]
["Porosität der Filterschicht",null,null,"n",20,"%",null,null,null,null,null,null,null,null,null,1,{"$f":"E53*E54+E55/2*(E53+E54)*2","v":0}]
[null,null,null,null,null,null,null,null,null,null,null,null,null,null,null,2,{"$f":"E53*E54+E55/2*(2*E53+E54)","v":0}]
["Speichervolumen Sickerschacht",null,null,"VSiS",{"$f":"(E51^2*PI()/4-E52^2*PI()/4)*E55*E56/100+E52^2*PI()/4*(E50-E49)","v":0},"m3",null,null,null,null,null,null,null,null,null,3,{"$f":"E53*E54+E55/2*2*E53","v":0}]
["Speichervolumen Sickerkörper",null,null,"VSiK",{"$f":"E53*E54*E55*E56/100","v":0},"m3"]
["Speichervolumen Gesamt",null,null,"VGes",{"$f":"E58+E59","v":0},"m3"]
["Versickerungswirksame Fläche",null,null,"Fv",{"$f":"VLOOKUP(E48,P56:Q58,2,FALSE)","v":{"$error":"#N/A"}},"m2"]
["Versickerungsleistung",null,null,"Lv",{"$f":"E61*E22","v":{"$error":"#N/A"}},"l/min"]
[]
["Versickerungskörbe (Typ 3d)",null,null,null,null,null,null,null,null,null,null,null,null,"Berechnungsfall Sickerkörper"]
[]
["Berechnungsfall Sickerkörper"]
["Länge",null,null,"L",null,"m"]
["Breite",null,null,"B",null,"m"]
["Höhe",null,null,"H",null,"m"]
["Volumenanteil Hohlraum / Porosität",null,null,"n",null,"%"]
[]
["Speichervolumen Körbe",null,null,"VSiK",{"$f":"E67*E68*E69*E70/100","v":0},"m3"]
["Zusätzliches Behältervolumen",null,null,"VB",null,"m3"]
[]
["Speichervolumen gesamt",null,null,"Vges",{"$f":"E72+E73","v":0},"m3"]
[]
["Versickerungswirksame Fläche Körbe",null,null,"ASiK",{"$f":"VLOOKUP($E$66,$P$80:$Q$82,2,FALSE)","v":{"$error":"#N/A"}},"m2"]
["Versickerungswirksw. Fläche Behälter",null,null,"AB",null,"m2"]
[]
["Versickerungswirksame Fläche ges.",null,null,"Ages",{"$f":"E77+E78","v":{"$error":"#N/A"}},"m2",null,null,null,null,null,null,null,null,null,1,{"$f":"E67*E68+2*(E67+E68)*E69/2","v":0}]
[null,null,null,null,null,null,null,null,null,null,null,null,null,null,null,2,{"$f":"E67*E68+(E67+2*E68)*E69/2","v":0}]
[null,null,null,null,null,null,null,null,null,null,null,null,null,null,null,3,{"$f":"E67*E68+E68*2*E69/2","v":0}]
["Erforderliches Retentionsvolumen",null,null,"Verf",{"$f":"MAX(AK11:AK16)","v":{"$error":"#N/A"}},"m3"]
["Vorhandenes Retentionsvolumen",null,null,"Vvorh",{"$f":"IF(P17=1,E42,IF(P17=2,E28,IF(P17=3,E42,IF(P17=4,E60,E75))))","v":0},"m3",{"$f":"IF(E84>E83,\"erfüllt!   Sicherheit: \"&ROUND(E84/E83*100,0)&\" %\",\"NICHT erfüllt!   Sicherheit: \"&ROUND(E84/E83*100,0)&\" %\")","v":{"$error":"#N/A"}}]
[]
[]
[{"$f":"\"Vorreinigung zu Versickerungsanlage \"&Z1","v":"Vorreinigung zu Versickerungsanlage 2"}]
[]
["Rahmenbedingungen Vorreinigung Versickerungsanlage"]
[]
["Sinkgeschwindigkeit",null,null,"v",18,"m/h","gem. SN 592 000 Kap. 7.6.3"]
["Aufenthaltszeit",null,null,"t",120,"s"]
["Regenintensität",null,null,"r",3.5999999999999997E-2,"l/s m2"]
[]
["Vorreinigung 1 (Schlammsammler mit erhöhten Anforderungen)",null,null,null,null,null,null,null,null,null,null,null,null,null,null,{"$f":"Z$1*10+1","v":21}]
[]
["Minimale Schlammraumtiefe",null,null,"K",0.5,"m"]
["Tiefe des Abscheideraumes",null,null,"h1",0.6,"m"]
["Nutztiefe (min. 1.10 m)",null,null,"NT",{"$f":"IF(E98=\"\",\"\",E98+E97)","v":1.1000000000000001},"m"]
[{"$f":"IF(E99<1.1,\"Minimale Nutztiefe unterschritten\",\"\")","v":""}]
["Reduzierte abflusswirksame Fläche",null,null,"Fred,V1",{"$f":"IF(T101<>\"\",T101,T102)","v":0},"m2",null,null,null,null,null,null,null,null,null,null,null,null,"Fred1,man",null,"m2"]
["Zufluss in Vorreinigung",null,null,"Qzu,V1",{"$f":"E101*E$93","v":0},"l/s",null,null,null,null,null,null,null,null,null,null,null,null,"Fred1,ber",{"$f":"SUMIF(Abl_Versickerung[[#All],[Spalte18]],P95,Abl_Versickerung[[#All],[Spalte6]])","v":0},"m2"]
[]
["Gewählter Normschacht",null,null,"NW",null,"m"]
[{"$f":"IF(E98=\"\",\"\",\"Die minimale Nennweite beträgt NW = \"&ROUND(SQRT(4*E107/PI()),2)&\" m\")","v":"Die minimale Nennweite beträgt NW = 0 m"}]
[]
["Erforderliche Abscheideoberfläche",null,null,"Aerf",{"$f":"IFERROR($E102/1000*$E$92/$E98,\"\")","v":0},"m2"]
["Vorhandene Abscheideoberfläche",null,null,"Avorh",{"$f":"$E104^2*PI()/4","v":0},"m2",{"$f":"IFERROR(IF(E108>E107,\"erfüllt!   Sicherheit: \"&ROUND(E108/E107*100,0)&\" %\",\"NICHT erfüllt!   Sicherheit: \"&ROUND(E108/E107*100,0)&\" %\"),\"\")","v":""},null,null,null,null,null,null,null,null,null,null,{"$f":"IF(E108>0,ROW(),\"\")","v":""}]
[]
["Vorreinigung 2 (Schlammsammler mit erhöhten Anforderungen)",null,null,null,null,null,null,null,null,null,null,null,null,null,null,{"$f":"Z$1*10+2","v":22}]
[]
["Minimale Schlammraumtiefe",null,null,"K",0.5,"m"]
["Tiefe des Abscheideraumes",null,null,"h1",0.6,"m"]
["Nutztiefe (min. 1.10 m)",null,null,"NT",{"$f":"IF(E113=\"\",\"\",E113+E112)","v":1.1000000000000001},"m"]
[{"$f":"IF(E114<1.1,\"Minimale Nutztiefe unterschritten\",\"\")","v":""}]
["Reduzierte abflusswirksame Fläche",null,null,"Fred,V1",{"$f":"IF(T116<>\"\",T116,T117)","v":0},"m2",null,null,null,null,null,null,null,null,null,null,null,null,"Fred1,man",null,"m2"]
["Zufluss in Vorreinigung",null,null,"Qzu,V1",{"$f":"E116*E$93","v":0},"l/s",null,null,null,null,null,null,null,null,null,null,null,null,"Fred1,ber",{"$f":"SUMIF(Abl_Versickerung[[#All],[Spalte18]],P110,Abl_Versickerung[[#All],[Spalte6]])","v":0},"m2"]
[]
["Gewählter Normschacht",null,null,"NW",null,"m"]
[{"$f":"IF(E113=\"\",\"\",\"Die minimale Nennweite beträgt NW = \"&ROUND(SQRT(4*E122/PI()),2)&\" m\")","v":"Die minimale Nennweite beträgt NW = 0 m"}]
[]
["Erforderliche Abscheideoberfläche",null,null,"Aerf",{"$f":"IFERROR($E117/1000*$E$92/$E113,\"\")","v":0},"m2"]
["Vorhandene Abscheideoberfläche",null,null,"Avorh",{"$f":"$E119^2*PI()/4","v":0},"m2",{"$f":"IFERROR(IF(E123>E122,\"erfüllt!   Sicherheit: \"&ROUND(E123/E122*100,0)&\" %\",\"NICHT erfüllt!   Sicherheit: \"&ROUND(E123/E122*100,0)&\" %\"),\"\")","v":""},null,null,null,null,null,null,null,null,null,null,{"$f":"IF(E123>0,ROW(),\"\")","v":""}]
[]
["Vorreinigung 3 (Schlammsammler mit erhöhten Anforderungen)",null,null,null,null,null,null,null,null,null,null,null,null,null,null,{"$f":"Z$1*10+3","v":23}]
[]
["Minimale Schlammraumtiefe",null,null,"K",0.5,"m"]
["Tiefe des Abscheideraumes",null,null,"h1",0.6,"m"]
["Nutztiefe (min. 1.10 m)",null,null,"NT",{"$f":"IF(E128=\"\",\"\",E128+E127)","v":1.1000000000000001},"m"]
[{"$f":"IF(E129<1.1,\"Minimale Nutztiefe unterschritten\",\"\")","v":""}]
["Reduzierte abflusswirksame Fläche",null,null,"Fred,V1",{"$f":"IF(T131<>\"\",T131,T132)","v":0},"m2",null,null,null,null,null,null,null,null,null,null,null,null,"Fred1,man",null,"m2"]
["Zufluss in Vorreinigung",null,null,"Qzu,V1",{"$f":"E131*E$93","v":0},"l/s",null,null,null,null,null,null,null,null,null,null,null,null,"Fred1,ber",{"$f":"SUMIF(Abl_Versickerung[[#All],[Spalte18]],P125,Abl_Versickerung[[#All],[Spalte6]])","v":0},"m2"]
[]
["Gewählter Normschacht",null,null,"NW",null,"m"]
[{"$f":"IF(E128=\"\",\"\",\"Die minimale Nennweite beträgt NW = \"&ROUND(SQRT(4*E137/PI()),2)&\" m\")","v":"Die minimale Nennweite beträgt NW = 0 m"}]
[]
["Erforderliche Abscheideoberfläche",null,null,"Aerf",{"$f":"IFERROR($E132/1000*$E$92/$E128,\"\")","v":0},"m2"]
["Vorhandene Abscheideoberfläche",null,null,"Avorh",{"$f":"$E134^2*PI()/4","v":0},"m2",{"$f":"IFERROR(IF(E138>E137,\"erfüllt!   Sicherheit: \"&ROUND(E138/E137*100,0)&\" %\",\"NICHT erfüllt!   Sicherheit: \"&ROUND(E138/E137*100,0)&\" %\"),\"\")","v":""},null,null,null,null,null,null,null,null,null,null,{"$f":"IF(E138>0,ROW(),\"\")","v":""}]

{"sheet":"D13","index":10,"n_rows":138,"n_cols":37,"rows_kept":138,"cut":false,"hidden":false,"merged":[[6,26,7,26],[6,27,7,27],[6,28,7,28],[6,29,7,29],[3,0,3,1],[4,0,4,1],[4,2,4,11],[5,0,5,1],[5,2,5,11],[6,0,6,1],[6,2,6,11],[31,0,31,2],[6,36,7,36],[7,0,7,1],[7,2,7,11],[9,0,9,2],[10,0,10,2],[11,0,11,2],[11,4,11,8],[6,30,7,30],[6,31,7,31],[6,32,7,32],[6,33,7,33],[6,34,7,34],[6,35,7,35],[6,24,7,24],[6,25,7,25],[12,0,12,2],[13,0,13,2],[14,0,14,2],[18,0,18,2],[20,0,20,2],[47,0,47,2],[33,0,33,2],[34,0,34,2],[35,0,35,2],[36,0,36,2],[37,0,37,2],[38,0,38,2],[39,0,39,2],[41,0,41,2],[42,0,42,2],[43,0,43,2],[45,0,45,2],[66,0,66,2],[48,0,48,2],[49,0,49,2],[52,0,52,2],[53,0,53,2],[54,0,54,2],[55,0,55,2],[58,0,58,2],[60,0,60,2],[61,0,61,2],[63,0,63,3],[65,0,65,2],[115,0,115,2],[71,0,71,2],[72,0,72,2],[74,0,74,2],[90,0,90,2],[91,0,91,2],[96,0,96,2],[100,0,100,2],[101,0,101,2],[103,0,103,2],[104,0,104,6],[111,0,111,2],[133,0,133,2],[116,0,116,2],[118,0,118,2],[119,0,119,6],[126,0,126,2],[130,0,130,2],[131,0,131,2]]}
[{"$f":"\"D\"&Z1&\".1\"","v":"D3.1"},{"$f":"\"Dimensionierung Versickerungsanlage \"&Z1","v":"Dimensionierung Versickerungsanlage 3"},null,null,null,null,null,null,null,null,null,null,null,null,null,null,null,{"$f":"MAX(R108:R138,108)","v":108},null,null,null,null,null,null,"Anlage",3]
[null,"Liegenschaftsentwässerung"]
[]
["Gemeinde",null,{"$f":"Eingabe!B16","v":0},null,"Parzellen-Nr.",{"$f":"Eingabe!B23","v":0}]
["Objekt",null,{"$f":"Eingabe!B17","v":0}]
["Bauherr",null,{"$f":"Eingabe!B18","v":0},null,null,null,null,null,null,null,null,null,null,null,null,null,null,null,null,null,null,null,null,null,null,null,null,null,null,null,null,"Typ2/3b","Typ 3a","Typ 3c","Typ 3d"]
["Architekt",null,{"$f":"Eingabe!B19","v":0},null,null,null,null,null,null,null,null,null,null,null,null,null,null,null,null,null,null,null,null,null,"Regendauer","Regen-intensität","Momentan-zufluss","Zufluss-volumen","Regen-intensität","Momentan-zufluss","Zufluss-volumen","Abfluss-volumen","Abfluss-volumen","Abfluss-volumen","Abfluss-volumen","Retentions-volumen","Retentions-volumen"]
["Fachplaner",null,{"$f":"Eingabe!B9&\", \"&Eingabe!B10&\", \"&Eingabe!B11","v":", , "}]
[null,null,null,null,null,null,null,null,null,null,null,null,null,null,null,null,null,null,null,null,null,null,null,null,"t","r (z = 5)","Qzu","Vzu","r (z = 10)","Qzu","Vzu","Vab","Vab","Vab","Vab","Vret (z=5)","Vret (z=10)"]
["Terrainhöhe",null,null,null,null,"m ü. M.",null,null,null,null,null,null,null,null,null,null,null,null,null,null,null,null,null,null,"[min]","[l/s*ha]","[l/s]","[m3]","[l/s*ha]","[l/s]","[m3]","m3","m3","m3","m3","m3","m3"]
["Zu entwässernde reduzierte Flächen",null,null,"Fred,R1",{"$f":"IF(T11<>\"\",T11,T12)","v":0},"m2",null,null,null,null,null,null,null,null,null,null,null,null,"Fred1,man",null,"m2",null,null,null,10,{"$f":"5300/(Y11+10)","v":265},{"$f":"E$11*Z11/10000","v":0},{"$f":"Y11*AA11*60/1000","v":0},{"$f":"6175/(Y11+10)","v":308.75},{"$f":"E$11*AC11/10000","v":0},{"$f":"Y11*AD11*60/1000","v":0},{"$f":"IF($D$17=Codes!$B$59,$E$13/$E$14*$E$43*Y11/1000,IF($D$17=Codes!$B$61,$E$13/$E$14*$E$43*Y11/1000,0))","v":{"$error":"#N/A"}},{"$f":"IF($D$17=Codes!$B$60,$E$13/$E$14*$E$29*Y11/1000,0)","v":0},{"$f":"IF($D$17=Codes!$B$62,$E$13/$E$14*$E$61*Y11/1000,0)","v":0},{"$f":"IF($D$17=Codes!$B$63,$E$13/$E$14*$E$80*Y11/1000,0)","v":0},{"$f":"AB11-SUM(AF11:AI11)","v":{"$error":"#N/A"}},{"$f":"AE11-SUM(AF11:AI11)","v":{"$error":"#N/A"}}]
["Versickerungszone",null,null,null,null,null,null,null,null,null,null,null,null,null,null,null,null,null,"Fred1,ber",{"$f":"SUMIF(Abl_Versickerung[[#All],[Spalte8]],Z1,Abl_Versickerung[[#All],[Spalte6]])","v":0},"m2",null,null,null,15,212,0,0,247,0,0,{"$f":"IF($D$17=Codes!$B$59,$E$13/$E$14*$E$43*Y12/1000,IF($D$17=Codes!$B$61,$E$13/$E$14*$E$43*Y12/1000,0))","v":{"$error":"#N/A"}},{"$f":"IF($D$17=Codes!$B$60,$E$13/$E$14*$E$29*Y12/1000,0)","v":0},{"$f":"IF($D$17=Codes!$B$62,$E$13/$E$14*$E$61*Y12/1000,0)","v":0},{"$f":"IF($D$17=Codes!$B$63,$E$13/$E$14*$E$80*Y12/1000,0)","v":0},{"$f":"AB12-SUM(AF12:AI12)","v":{"$error":"#N/A"}},{"$f":"AE12-SUM(AF12:AI12)","v":{"$error":"#N/A"}}]
["Spezifische Sickerleistung",null,null,"Sspezif ",null,"l/min m2",null,null,null,null,null,null,null,null,null,null,null,null,null,null,null,null,null,null,30,132.5,0,0,154.375,0,0,{"$f":"IF($D$17=Codes!$B$59,$E$13/$E$14*$E$43*Y13/1000,IF($D$17=Codes!$B$61,$E$13/$E$14*$E$43*Y13/1000,0))","v":{"$error":"#N/A"}},{"$f":"IF($D$17=Codes!$B$60,$E$13/$E$14*$E$29*Y13/1000,0)","v":0},{"$f":"IF($D$17=Codes!$B$62,$E$13/$E$14*$E$61*Y13/1000,0)","v":0},{"$f":"IF($D$17=Codes!$B$63,$E$13/$E$14*$E$80*Y13/1000,0)","v":0},{"$error":"#N/A"},{"$error":"#N/A"}]
["Sicherheitsfaktor",null,null,"SF",1.5,null,null,null,null,null,null,null,null,null,null,null,null,null,null,null,null,null,null,null,60,75.714285714285708,0,0,88.214285714285708,0,0,{"$f":"IF($D$17=Codes!$B$59,$E$13/$E$14*$E$43*Y14/1000,IF($D$17=Codes!$B$61,$E$13/$E$14*$E$43*Y14/1000,0))","v":{"$error":"#N/A"}},{"$f":"IF($D$17=Codes!$B$60,$E$13/$E$14*$E$29*Y14/1000,0)","v":0},{"$f":"IF($D$17=Codes!$B$62,$E$13/$E$14*$E$61*Y14/1000,0)","v":0},{"$f":"IF($D$17=Codes!$B$63,$E$13/$E$14*$E$80*Y14/1000,0)","v":0},{"$error":"#N/A"},{"$error":"#N/A"}]
["Jährlichkeit",null,null,"z",10,"Jahre",null,null,null,null,null,null,null,null,null,null,null,null,null,null,null,null,null,null,120,40.769230769230766,0,0,47.5,0,0,{"$f":"IF($D$17=Codes!$B$59,$E$13/$E$14*$E$43*Y15/1000,IF($D$17=Codes!$B$61,$E$13/$E$14*$E$43*Y15/1000,0))","v":{"$error":"#N/A"}},{"$f":"IF($D$17=Codes!$B$60,$E$13/$E$14*$E$29*Y15/1000,0)","v":0},{"$f":"IF($D$17=Codes!$B$62,$E$13/$E$14*$E$61*Y15/1000,0)","v":0},{"$f":"IF($D$17=Codes!$B$63,$E$13/$E$14*$E$80*Y15/1000,0)","v":0},{"$error":"#N/A"},{"$error":"#N/A"}]
[null,null,null,null,null,null,null,null,null,null,null,null,null,null,null,null,null,null,null,null,null,null,null,null,240,21.2,0,0,24.7,0,0,{"$f":"IF($D$17=Codes!$B$59,$E$13/$E$14*$E$43*Y16/1000,IF($D$17=Codes!$B$61,$E$13/$E$14*$E$43*Y16/1000,0))","v":{"$error":"#N/A"}},{"$f":"IF($D$17=Codes!$B$60,$E$13/$E$14*$E$29*Y16/1000,0)","v":0},{"$f":"IF($D$17=Codes!$B$62,$E$13/$E$14*$E$61*Y16/1000,0)","v":0},{"$f":"IF($D$17=Codes!$B$63,$E$13/$E$14*$E$80*Y16/1000,0)","v":0},{"$error":"#N/A"},{"$error":"#N/A"}]
["Versickerungsanlage",null,null,{"$f":"INDEX(Codes!B59:B63,P17,1)","v":"Typ 2:    Kieskörper"},null,null,null,null,null,null,null,null,null,null,null,1,{"$f":"VLOOKUP(P17,Codes!F56:H65,2,FALSE)","v":32},{"$f":"VLOOKUP(P17,Codes!F56:H65,3,FALSE)","v":45}]
[]
["Sickerschacht (Typ 3a)",null,null,null,null,null,null,null,null,null,null,null,null,"Berechnungsfall Sickerkörper"]
[]
["Mächtigkeit der Deckschicht",null,null,"h1",null,"m"]
["Grabentiefe",null,null,"t",null,"m"]
["Grabendurchmesser",null,null,"DG",null,"m"]
["Schachtdurchmesser",null,null,"DN",null,"m"]
["Mächtigkeit der Filterschicht",null,null,"h2",{"$f":"E22-E21","v":0},"m"]
["Porosität der Filterschicht",null,null,"n",20,"%"]
[]
["Speichervolumen Sickerschacht",null,null,"VSiS",{"$f":"(E23^2*PI()/4-E24^2*PI()/4)*E25*E26/100+E24^2*PI()/4*(E22-E21)","v":0},"m3"]
["Versickerungswirksame Fläche",null,null,"Fv",{"$f":"E23^2*PI()/4+E25/2*E23*PI()","v":0},"m2"]
["Versickerungsleistung",null,null,"Lv",{"$f":"E29*E13","v":0},"l/min"]
[]
["Sickerkörper (Typ 2 / 3b)",null,null,null,null,null,null,null,null,null,null,null,null,"Berechnungsfall Sickerkörper"]
[]
["Berechnungsfall Sickerkörper"]
["Mächtigkeit der Deckschicht",null,null,"h1",null,"m"]
["Grabentiefe",null,null,"t",null,"m"]
["Grabenbreite",null,null,"B",null,"m"]
["Grabenlänge",null,null,"L",null,"m"]
["Mächtigkeit der Filterschicht",null,null,"h2",{"$f":"E36-E35","v":0},"m"]
["Porosität der Filterschicht",null,null,"n",20,"%"]
[]
["Speichervolumen Sickerkörper",null,null,"VSiK",{"$f":"E37*E38*E39*E40/100","v":0},"m3",null,null,null,null,null,null,null,null,null,1,{"$f":"E37*E38+E39/2*(E37+E38)*2","v":0}]
["Versickerungswirksame Fläche",null,null,"Fv",{"$f":"VLOOKUP(E34,P42:Q44,2,FALSE)","v":{"$error":"#N/A"}},"m2",null,null,null,null,null,null,null,null,null,2,{"$f":"E37*E38+E39/2*(2*E37+E38)","v":0}]
["Versickerungsleistung",null,null,"Lv",{"$f":"E43*E13","v":{"$error":"#N/A"}},"l/min",null,null,null,null,null,null,null,null,null,3,{"$f":"E37*E38+E39/2*2*E37","v":0}]
[]
["Sickerkörper (Typ 3c)",null,null,null,null,null,null,null,null,null,null,null,null,"Berechnungsfall Sickerkörper"]
[]
["Berechnungsfall Sickerkörper"]
["Mächtigkeit der Deckschicht",null,null,"h1",null,"m"]
["Grabentiefe",null,null,"t",null,"m"]
["Grabendurchmesser",null,null,"DG",{"$f":"1+E52","v":1},"m"]
["Schachtdurchmesser",null,null,"DN",null,"m"]
["Grabenbreite",null,null,"B",null,"m"]
["Grabenlänge",null,null,"L",null,"m"]
["Mächtigkeit der Filterschicht",null,null,"h2",{"$f":"E50-E49","v":0},"m"]
["Porosität der Filterschicht",null,null,"n",20,"%",null,null,null,null,null,null,null,null,null,1,{"$f":"E53*E54+E55/2*(E53+E54)*2","v":0}]
[null,null,null,null,null,null,null,null,null,null,null,null,null,null,null,2,{"$f":"E53*E54+E55/2*(2*E53+E54)","v":0}]
["Speichervolumen Sickerschacht",null,null,"VSiS",{"$f":"(E51^2*PI()/4-E52^2*PI()/4)*E55*E56/100+E52^2*PI()/4*(E50-E49)","v":0},"m3",null,null,null,null,null,null,null,null,null,3,{"$f":"E53*E54+E55/2*2*E53","v":0}]
["Speichervolumen Sickerkörper",null,null,"VSiK",{"$f":"E53*E54*E55*E56/100","v":0},"m3"]
["Speichervolumen Gesamt",null,null,"VGes",{"$f":"E58+E59","v":0},"m3"]
["Versickerungswirksame Fläche",null,null,"Fv",{"$f":"VLOOKUP(E48,P56:Q58,2,FALSE)","v":{"$error":"#N/A"}},"m2"]
["Versickerungsleistung",null,null,"Lv",{"$f":"E61*E22","v":{"$error":"#N/A"}},"l/min"]
[]
["Versickerungskörbe (Typ 3d)",null,null,null,null,null,null,null,null,null,null,null,null,"Berechnungsfall Sickerkörper"]
[]
["Berechnungsfall Sickerkörper"]
["Länge",null,null,"L",null,"m"]
["Breite",null,null,"B",null,"m"]
["Höhe",null,null,"H",null,"m"]
["Volumenanteil Hohlraum / Porosität",null,null,"n",null,"%"]
[]
["Speichervolumen Körbe",null,null,"VSiK",{"$f":"E67*E68*E69*E70/100","v":0},"m3"]
["Zusätzliches Behältervolumen",null,null,"VB",null,"m3"]
[]
["Speichervolumen gesamt",null,null,"Vges",{"$f":"E72+E73","v":0},"m3"]
[]
["Versickerungswirksame Fläche Körbe",null,null,"ASiK",{"$f":"VLOOKUP($E$66,$P$80:$Q$82,2,FALSE)","v":{"$error":"#N/A"}},"m2"]
["Versickerungswirksw. Fläche Behälter",null,null,"AB",null,"m2"]
[]
["Versickerungswirksame Fläche ges.",null,null,"Ages",{"$f":"E77+E78","v":{"$error":"#N/A"}},"m2",null,null,null,null,null,null,null,null,null,1,{"$f":"E67*E68+2*(E67+E68)*E69/2","v":0}]
[null,null,null,null,null,null,null,null,null,null,null,null,null,null,null,2,{"$f":"E67*E68+(E67+2*E68)*E69/2","v":0}]
[null,null,null,null,null,null,null,null,null,null,null,null,null,null,null,3,{"$f":"E67*E68+E68*2*E69/2","v":0}]
["Erforderliches Retentionsvolumen",null,null,"Verf",{"$f":"MAX(AK11:AK16)","v":{"$error":"#N/A"}},"m3"]
["Vorhandenes Retentionsvolumen",null,null,"Vvorh",{"$f":"IF(P17=1,E42,IF(P17=2,E28,IF(P17=3,E42,IF(P17=4,E60,E75))))","v":0},"m3",{"$f":"IF(E84>E83,\"erfüllt!   Sicherheit: \"&ROUND(E84/E83*100,0)&\" %\",\"NICHT erfüllt!   Sicherheit: \"&ROUND(E84/E83*100,0)&\" %\")","v":{"$error":"#N/A"}}]
[]
[]
[{"$f":"\"Vorreinigung zu Versickerungsanlage \"&Z1","v":"Vorreinigung zu Versickerungsanlage 3"}]
[]
["Rahmenbedingungen Vorreinigung Versickerungsanlage"]
[]
["Sinkgeschwindigkeit",null,null,"v",18,"m/h","gem. SN 592 000 Kap. 7.6.3"]
["Aufenthaltszeit",null,null,"t",120,"s"]
["Regenintensität",null,null,"r",3.5999999999999997E-2,"l/s m2"]
[]
["Vorreinigung 1 (Schlammsammler mit erhöhten Anforderungen)",null,null,null,null,null,null,null,null,null,null,null,null,null,null,{"$f":"Z$1*10+1","v":31}]
[]
["Minimale Schlammraumtiefe",null,null,"K",0.5,"m"]
["Tiefe des Abscheideraumes",null,null,"h1",0.6,"m"]
["Nutztiefe (min. 1.10 m)",null,null,"NT",{"$f":"IF(E98=\"\",\"\",E98+E97)","v":1.1000000000000001},"m"]
[{"$f":"IF(E99<1.1,\"Minimale Nutztiefe unterschritten\",\"\")","v":""}]
["Reduzierte abflusswirksame Fläche",null,null,"Fred,V1",{"$f":"IF(T101<>\"\",T101,T102)","v":0},"m2",null,null,null,null,null,null,null,null,null,null,null,null,"Fred1,man",null,"m2"]
["Zufluss in Vorreinigung",null,null,"Qzu,V1",{"$f":"E101*E$93","v":0},"l/s",null,null,null,null,null,null,null,null,null,null,null,null,"Fred1,ber",{"$f":"SUMIF(Abl_Versickerung[[#All],[Spalte18]],P95,Abl_Versickerung[[#All],[Spalte6]])","v":0},"m2"]
[]
["Gewählter Normschacht",null,null,"NW",null,"m"]
[{"$f":"IF(E98=\"\",\"\",\"Die minimale Nennweite beträgt NW = \"&ROUND(SQRT(4*E107/PI()),2)&\" m\")","v":"Die minimale Nennweite beträgt NW = 0 m"}]
[]
["Erforderliche Abscheideoberfläche",null,null,"Aerf",{"$f":"IFERROR($E102/1000*$E$92/$E98,\"\")","v":0},"m2"]
["Vorhandene Abscheideoberfläche",null,null,"Avorh",{"$f":"$E104^2*PI()/4","v":0},"m2",{"$f":"IFERROR(IF(E108>E107,\"erfüllt!   Sicherheit: \"&ROUND(E108/E107*100,0)&\" %\",\"NICHT erfüllt!   Sicherheit: \"&ROUND(E108/E107*100,0)&\" %\"),\"\")","v":""},null,null,null,null,null,null,null,null,null,null,{"$f":"IF(E108>0,ROW(),\"\")","v":""}]
[]
["Vorreinigung 2 (Schlammsammler mit erhöhten Anforderungen)",null,null,null,null,null,null,null,null,null,null,null,null,null,null,{"$f":"Z$1*10+2","v":32}]
[]
["Minimale Schlammraumtiefe",null,null,"K",0.5,"m"]
["Tiefe des Abscheideraumes",null,null,"h1",0.6,"m"]
["Nutztiefe (min. 1.10 m)",null,null,"NT",{"$f":"IF(E113=\"\",\"\",E113+E112)","v":1.1000000000000001},"m"]
[{"$f":"IF(E114<1.1,\"Minimale Nutztiefe unterschritten\",\"\")","v":""}]
["Reduzierte abflusswirksame Fläche",null,null,"Fred,V1",{"$f":"IF(T116<>\"\",T116,T117)","v":0},"m2",null,null,null,null,null,null,null,null,null,null,null,null,"Fred1,man",null,"m2"]
["Zufluss in Vorreinigung",null,null,"Qzu,V1",{"$f":"E116*E$93","v":0},"l/s",null,null,null,null,null,null,null,null,null,null,null,null,"Fred1,ber",{"$f":"SUMIF(Abl_Versickerung[[#All],[Spalte18]],P110,Abl_Versickerung[[#All],[Spalte6]])","v":0},"m2"]
[]
["Gewählter Normschacht",null,null,"NW",null,"m"]
[{"$f":"IF(E113=\"\",\"\",\"Die minimale Nennweite beträgt NW = \"&ROUND(SQRT(4*E122/PI()),2)&\" m\")","v":"Die minimale Nennweite beträgt NW = 0 m"}]
[]
["Erforderliche Abscheideoberfläche",null,null,"Aerf",{"$f":"IFERROR($E117/1000*$E$92/$E113,\"\")","v":0},"m2"]
["Vorhandene Abscheideoberfläche",null,null,"Avorh",{"$f":"$E119^2*PI()/4","v":0},"m2",{"$f":"IFERROR(IF(E123>E122,\"erfüllt!   Sicherheit: \"&ROUND(E123/E122*100,0)&\" %\",\"NICHT erfüllt!   Sicherheit: \"&ROUND(E123/E122*100,0)&\" %\"),\"\")","v":""},null,null,null,null,null,null,null,null,null,null,{"$f":"IF(E123>0,ROW(),\"\")","v":""}]
[]
["Vorreinigung 3 (Schlammsammler mit erhöhten Anforderungen)",null,null,null,null,null,null,null,null,null,null,null,null,null,null,{"$f":"Z$1*10+3","v":33}]
[]
["Minimale Schlammraumtiefe",null,null,"K",0.5,"m"]
["Tiefe des Abscheideraumes",null,null,"h1",0.6,"m"]
["Nutztiefe (min. 1.10 m)",null,null,"NT",{"$f":"IF(E128=\"\",\"\",E128+E127)","v":1.1000000000000001},"m"]
[{"$f":"IF(E129<1.1,\"Minimale Nutztiefe unterschritten\",\"\")","v":""}]
["Reduzierte abflusswirksame Fläche",null,null,"Fred,V1",{"$f":"IF(T131<>\"\",T131,T132)","v":0},"m2",null,null,null,null,null,null,null,null,null,null,null,null,"Fred1,man",null,"m2"]
["Zufluss in Vorreinigung",null,null,"Qzu,V1",{"$f":"E131*E$93","v":0},"l/s",null,null,null,null,null,null,null,null,null,null,null,null,"Fred1,ber",{"$f":"SUMIF(Abl_Versickerung[[#All],[Spalte18]],P125,Abl_Versickerung[[#All],[Spalte6]])","v":0},"m2"]
[]
["Gewählter Normschacht",null,null,"NW",null,"m"]
[{"$f":"IF(E128=\"\",\"\",\"Die minimale Nennweite beträgt NW = \"&ROUND(SQRT(4*E137/PI()),2)&\" m\")","v":"Die minimale Nennweite beträgt NW = 0 m"}]
[]
["Erforderliche Abscheideoberfläche",null,null,"Aerf",{"$f":"IFERROR($E132/1000*$E$92/$E128,\"\")","v":0},"m2"]
["Vorhandene Abscheideoberfläche",null,null,"Avorh",{"$f":"$E134^2*PI()/4","v":0},"m2",{"$f":"IFERROR(IF(E138>E137,\"erfüllt!   Sicherheit: \"&ROUND(E138/E137*100,0)&\" %\",\"NICHT erfüllt!   Sicherheit: \"&ROUND(E138/E137*100,0)&\" %\"),\"\")","v":""},null,null,null,null,null,null,null,null,null,null,{"$f":"IF(E138>0,ROW(),\"\")","v":""}]

{"sheet":"E11","index":11,"n_rows":62,"n_cols":26,"rows_kept":62,"cut":false,"hidden":false,"merged":[[46,3,46,4],[8,15,8,25],[9,24,10,24],[9,25,10,25],[9,15,10,15],[9,16,10,16],[9,17,10,17],[9,18,10,18],[9,19,10,19],[9,20,10,20],[9,21,10,21],[9,22,10,22],[9,23,10,23],[9,0,9,8],[22,0,22,8],[4,2,4,8],[5,2,5,8],[6,2,6,8],[7,2,7,8],[3,0,3,1],[4,0,4,1],[5,0,5,1],[6,0,6,1],[7,0,7,1]]}
[{"$f":"\"E\"&R1&\".1\"","v":"E1.1"},{"$f":"\"Dimensionierung Retentionsanlage \"&R1","v":"Dimensionierung Retentionsanlage 1"},null,null,null,null,null,null,null,null,null,null,null,null,null,null,"Anlage",1]
[null,"Liegenschaftsentwässerung"]
[]
["Gemeinde",null,{"$f":"IF('B21'!$C$4:$D$4=\"\",\"\",'B21'!$C$4:$D$4)","v":0},null,"Parzellen-Nr.",{"$f":"IF('B21'!$G$4=\"\",\"\",'B21'!$G$4)","v":0}]
["Objekt",null,{"$f":"IF('B21'!$C$5:$J$5=\"\",\"\",'B21'!$C$5:$J$5)","v":0}]
["Bauherr",null,{"$f":"IF('B21'!$C$6:$J$6=\"\",\"\",'B21'!$C$6:$J$6)","v":0}]
["Architekt",null,{"$f":"IF('B21'!$C$7:$J$7=\"\",\"\",'B21'!$C$7:$J$7)","v":0}]
["Fachplaner",null,{"$f":"IF('B21'!$C$8:$J$8=\"\",\"\",'B21'!$C$8:$J$8)","v":", , "}]
[null,null,null,null,null,null,null,null,null,null,null,null,null,null,null,"Retentionsanlage:   R1"]
["Erforderliches Retentionsvolumen",null,null,null,null,null,null,null,null,null,null,null,null,null,null,"Regendauer","Regen-intensität","Momentan-zufluss","Zufluss-volumen","Regen-intensität","Momentan-zufluss","Zufluss-volumen","Maximal Abfluss","Abfluss-volumen","Retentions-volumen","Retentions-volumen"]
[]
["Regenintensität",null,null,"r",250,"l/s ha",null,null,null,null,null,null,null,null,null,"t","r (z = 5)","Qzu","Vzu","r (z = 10)","Qzu","Vzu","Qab","Vab","Vret (z=5)","Vret (z=10)"]
["Reduzierte Flächen",null,null,"Fred,R1",{"$f":"IF(M13<>\"\",M13,M14)","v":0},"m2",null,null,null,null,null,"Fred1,man",null,"m2",null,"[min]","[l/s*ha]","[l/s]","[m3]","[l/s*ha]","[l/s]","[m3]","l/s","m3","m3","m3"]
["Reduktionsbeiwert Retention",null,null,"jR1",{"$f":"B5a!G10","v":0},"-",null,null,null,null,null,"Fred1,ber",{"$f":"SUMIF('B22'!H24:H26,R1,'B22'!F24:F26)+SUMIF('B22'!H32:H34,R1,'B22'!F32:F34)","v":0},"m2",null,1,{"$f":"MIN(353,5300/(P14+10))","v":353},{"$f":"$E$13*Q14/10000","v":0},{"$f":"P14*R14*60/1000","v":0},{"$f":"MIN(412,6175/(P14+10))","v":412},{"$f":"$E$13*T14/10000","v":0},{"$f":"P14*U14*60/1000","v":0},{"$f":"$E$15","v":0},{"$f":"P14*W14*60/1000","v":0},{"$f":"MAX(S14-X14,0)","v":0},{"$f":"MAX(V14-X14,0)","v":0}]
["Abfluss aus Retention",null,null,"Qab,R1",{"$f":"E13*E14*E$12/10000","v":0},"l/s",null,null,null,null,null,null,null,null,null,2,{"$f":"MIN(353,5300/(P15+10))","v":353},{"$f":"$E$13*Q15/10000","v":0},{"$f":"P15*R15*60/1000","v":0},{"$f":"MIN(412,6175/(P15+10))","v":412},0,{"$f":"P15*U15*60/1000","v":0},0,0,0,{"$f":"MAX(V15-X15,0)","v":0}]
[null,null,null,null,null,null,null,null,null,null,null,null,null,null,null,3,353,0,0,412,0,0,0,0,0,0]
["Drossel mittels Abflussdrosselorgan",null,null,null,null,null,null,null,null,null,null,null,null,null,null,4,353,0,0,412,0,0,0,0,0,0]
["Erforderliches Retentionsvolumen",null,null,"Verf,R1",{"$f":"MAX(MAX(Z14:Z62),0)","v":0},"m3",null,null,null,null,null,null,null,null,null,5,353,0,0,411.66666666666669,0,0,0,0,0,0]
[null,null,null,null,null,null,null,null,null,null,null,null,null,null,null,6,331.25,0,0,385.9375,0,0,0,0,0,0]
["Drossel mittels einfacher Lochdrossel",null,null,null,null,null,null,null,null,null,null,null,null,null,null,7,311.76470588235293,0,0,363.23529411764707,0,0,0,0,0,0]
["Erforderliches Retentionsvolumen",null,null,"Verf,R1",{"$f":"2*E18","v":0},"m3",null,null,null,null,null,null,null,null,null,8,294.44444444444446,0,0,343.05555555555554,0,0,0,0,0,0]
[null,null,null,null,null,null,null,null,null,null,null,null,null,null,null,10,265,0,0,308.75,0,0,0,0,0,0]
["Vorhandenes Retentionsvolumen",null,null,null,null,null,null,null,null,null,null,null,null,null,null,11,252.38095238095238,0,0,294.04761904761904,0,0,0,0,0,0]
["Schacht",null,null,null,null,null,null,null,null,null,null,null,null,null,null,12,240.90909090909091,0,0,280.68181818181819,0,0,0,0,0,0]
["Durchmesser",null,null,"DN",null,"cm","D =",null,"m ü. M.",null,null,null,null,null,null,13,230.43478260869566,0,0,268.47826086956519,0,0,0,0,0,0]
["Überlauf",null,null,"h1",null,"m","Ü =",{"$f":"H25-E26","v":0},"m ü. M.",null,null,null,null,null,null,14,220.83333333333334,0,0,257.29166666666669,0,0,0,0,0,0]
["Auslauf",null,null,"h2",null,"m","A =",{"$f":"H25-E27","v":0},"m ü. M.",null,null,null,null,null,null,15,212,0,0,247,0,0,0,0,0,0]
["Sumpftiefe",null,null,"ST",null,"m","S =",{"$f":"H27-E28","v":0},"m ü. M.",null,null,null,null,null,null,16,203.84615384615384,0,0,237.5,0,0,0,0,0,0]
["Schachttiefe",null,null,"T",{"$f":"E27+E28","v":0},"m",null,null,null,null,null,null,null,null,null,17,196.2962962962963,0,0,228.7037037037037,0,0,0,0,0,0]
["Stauhöhe",null,null,"hret",{"$f":"E27-E26","v":0},"m",null,null,null,null,null,null,null,null,null,18,189.28571428571428,0,0,220.53571428571428,0,0,0,0,0,0]
["Theoretischer Lochdurchmesser",null,null,"D",{"$f":"IFERROR(SQRT(4*E15/1000/PI()/0.6/SQRT(2*9.81*E30))*1000,0)","v":0},"mm",null,null,null,null,null,null,null,null,null,19,182.75862068965517,0,0,212.93103448275863,0,0,0,0,0,0]
["Vorhandenes Volumen",null,null,"Vvorh",{"$f":"(E25/100)^2*PI()/4*(E27-E26)","v":0},"m3",null,null,null,null,null,null,null,null,null,20,176.66666666666666,0,0,205.83333333333334,0,0,0,0,0,0]
[null,null,null,null,null,null,null,null,null,null,null,null,null,null,null,21,170.96774193548387,0,0,199.19354838709677,0,0,0,0,0,0]
["Staukanal",null,null,null,null,null,null,null,null,null,null,null,null,null,null,22,165.625,0,0,192.96875,0,0,0,0,0,0]
["Durchmesser",null,null,"DNi",null,"mm",null,null,null,null,null,null,null,null,null,23,160.60606060606059,0,0,187.12121212121212,0,0,0,0,0,0]
["Länge",null,null,"L",null,"m",null,null,null,null,null,null,null,null,null,24,155.88235294117646,0,0,181.61764705882354,0,0,0,0,0,0]
["Vorhandenes Volumen",null,null,"Vvorh",{"$f":"(E35/1000)^2*PI()/4*E36","v":0},"m3",null,null,null,null,null,null,null,null,null,25,151.42857142857142,0,0,176.42857142857142,0,0,0,0,0,0]
[null,null,null,null,null,null,null,null,null,null,null,null,null,null,null,26,147.22222222222223,0,0,171.52777777777777,0,0,0,0,0,0]
["Retentionsbecken",null,null,null,null,null,null,null,null,null,null,null,null,null,null,27,143.24324324324326,0,0,166.8918918918919,0,0,0,0,0,0]
["Länge",null,null,"L",null,"m",null,null,null,null,null,null,null,null,null,28,139.47368421052633,0,0,162.5,0,0,0,0,0,0]
["Breite",null,null,"B",null,"m",null,null,null,null,null,null,null,null,null,29,135.89743589743588,0,0,158.33333333333334,0,0,0,0,0,0]
["Höhe",null,null,"H",null,"m",null,null,null,null,null,null,null,null,null,30,132.5,0,0,154.375,0,0,0,0,0,0]
["Auflockerungsfaktor",null,null,"j",null,"-",null,null,null,null,null,null,null,null,null,31,129.26829268292684,0,0,150.60975609756099,0,0,0,0,0,0]
["Vorhandenes Volumen",null,null,"Vvorh",{"$f":"E40*E41*E42*E43","v":0},"m3",null,null,null,null,null,null,null,null,null,33,123.25581395348837,{"$f":"$E$13*Q44/10000","v":0},0,143.6046511627907,{"$f":"$E$13*T44/10000","v":0},0,{"$f":"$E$15","v":0},0,0,0]
[null,null,null,null,null,null,null,null,null,null,null,null,null,null,null,34,120.45454545454545,0,0,140.34090909090909,0,0,0,0,0,0]
["Zusammenfassung",null,null,null,null,null,null,null,null,null,{"$f":"IF(D47=\"Lochdrossel\",1,0)","v":0},null,null,null,null,35,117.77777777777777,0,0,137.22222222222223,0,0,0,0,0,0]
["Drosselorgan",null,null,null,null,{"$f":"IF(D47=\"Lochdrossel\",\"Drosseldurchmesser: \"&IF(E31<10,10,ROUNDUP(E31,0))&\" mm\",\"z.B. Wirbeldrossel\")","v":"z.B. Wirbeldrossel"},null,null,null,null,{"$f":"IF(D47=\"Abflussorgan\",1,0)","v":0},null,null,null,null,36,115.21739130434783,0,0,134.2391304347826,0,0,0,0,0,0]
["Erforderliches Retentionsvolumen",null,null,"Verf",{"$f":"IF(D47=\"Lochdrossel\",E21,E18)","v":0},"m3",null,null,null,null,null,null,null,null,null,37,112.76595744680851,0,0,131.38297872340425,0,0,0,0,0,0]
["Vorhandenes Retentionsvolumen",null,null,"Vvorh",{"$f":"E44+E37+E32","v":0},"m3",null,{"$f":"IF(E49>E48,\"erfüllt!   Sicherheit: \"&ROUND(E49/E48*100,0)&\" %\",\"NICHT erfüllt!   Sicherheit: \"&ROUND(E49/E48*100,0)&\" %\")","v":{"$error":"#DIV/0!"}},null,null,null,null,null,null,null,38,110.41666666666667,0,0,128.64583333333334,0,0,0,0,0,0]
[{"$f":"IFERROR(IF($D$47=\"Lochdrossel\",IF(SQRT(4*E15/1000/PI()/0.6/SQRT(2*9.81*E30))*1000<10,\"Achtung: Drosselwassermenge überschritten! Minimaler Lochdrosseldurchmesser 10 mm.\",\"\"),\"\"),\"\")","v":""},null,null,null,null,null,null,null,null,null,null,null,null,null,null,39,108.16326530612245,0,0,126.0204081632653,0,0,0,0,0,0]
[null,null,null,null,null,null,null,null,null,null,null,null,null,null,null,40,106,0,0,123.5,0,0,0,0,0,0]
[null,null,null,null,null,null,null,null,null,null,null,null,null,null,null,41,103.92156862745098,0,0,121.07843137254902,0,0,0,0,0,0]
[null,null,null,null,null,null,null,null,null,null,null,null,null,null,null,42,101.92307692307692,0,0,118.75,0,0,0,0,0,0]
[null,null,null,null,null,null,null,null,null,null,null,null,null,null,null,43,100,0,0,116.50943396226415,0,0,0,0,0,0]
[null,null,null,null,null,null,null,null,null,null,null,null,null,null,null,44,98.148148148148152,0,0,114.35185185185185,0,0,0,0,0,0]
[null,null,null,null,null,null,null,null,null,null,null,null,null,null,null,45,96.36363636363636,0,0,112.27272727272727,0,0,0,0,0,0]
[null,null,null,null,null,null,null,null,null,null,null,null,null,null,null,46,94.642857142857139,0,0,110.26785714285714,0,0,0,0,0,0]
[null,null,null,null,null,null,null,null,null,null,null,null,null,null,null,47,92.982456140350877,0,0,108.33333333333333,0,0,0,0,0,0]
[null,null,null,null,null,null,null,null,null,null,null,null,null,null,null,48,91.379310344827587,0,0,106.46551724137932,0,0,0,0,0,0]
[null,null,null,null,null,null,null,null,null,null,null,null,null,null,null,49,89.830508474576277,0,0,104.66101694915254,0,0,0,0,0,0]
[null,null,null,null,null,null,null,null,null,null,null,null,null,null,null,50,88.333333333333329,0,0,102.91666666666667,0,0,0,0,0,0]
[null,null,null,null,null,null,null,null,null,null,null,null,null,null,null,51,86.885245901639351,0,0,101.22950819672131,0,0,0,0,0,0]

{"sheet":"E12","index":12,"n_rows":62,"n_cols":26,"rows_kept":62,"cut":false,"hidden":false,"merged":[[46,3,46,4],[9,21,10,21],[9,22,10,22],[9,23,10,23],[9,24,10,24],[9,25,10,25],[22,0,22,8],[7,0,7,1],[7,2,7,8],[8,15,8,25],[9,0,9,8],[9,15,10,15],[9,16,10,16],[9,17,10,17],[9,18,10,18],[9,19,10,19],[9,20,10,20],[6,0,6,1],[6,2,6,8],[3,0,3,1],[4,0,4,1],[4,2,4,8],[5,0,5,1],[5,2,5,8]]}
[{"$f":"\"E\"&R1&\".1\"","v":"E2.1"},{"$f":"\"Dimensionierung Retentionsanlage \"&R1","v":"Dimensionierung Retentionsanlage 2"},null,null,null,null,null,null,null,null,null,null,null,null,null,null,"Anlage",2]
[null,"Liegenschaftsentwässerung"]
[]
["Gemeinde",null,{"$f":"IF('B21'!$C$4:$D$4=\"\",\"\",'B21'!$C$4:$D$4)","v":0},null,"Parzellen-Nr.",{"$f":"IF('B21'!$G$4=\"\",\"\",'B21'!$G$4)","v":0}]
["Objekt",null,{"$f":"IF('B21'!$C$5:$J$5=\"\",\"\",'B21'!$C$5:$J$5)","v":0}]
["Bauherr",null,{"$f":"IF('B21'!$C$6:$J$6=\"\",\"\",'B21'!$C$6:$J$6)","v":0}]
["Architekt",null,{"$f":"IF('B21'!$C$7:$J$7=\"\",\"\",'B21'!$C$7:$J$7)","v":0}]
["Fachplaner",null,{"$f":"IF('B21'!$C$8:$J$8=\"\",\"\",'B21'!$C$8:$J$8)","v":", , "}]
[null,null,null,null,null,null,null,null,null,null,null,null,null,null,null,"Retentionsanlage:   R1"]
["Erforderliches Retentionsvolumen",null,null,null,null,null,null,null,null,null,null,null,null,null,null,"Regendauer","Regen-intensität","Momentan-zufluss","Zufluss-volumen","Regen-intensität","Momentan-zufluss","Zufluss-volumen","Maximal Abfluss","Abfluss-volumen","Retentions-volumen","Retentions-volumen"]
[]
["Regenintensität",null,null,"r",250,"l/s ha",null,null,null,null,null,null,null,null,null,"t","r (z = 5)","Qzu","Vzu","r (z = 10)","Qzu","Vzu","Qab","Vab","Vret (z=5)","Vret (z=10)"]
["Reduzierte Flächen",null,null,"Fred,R1",{"$f":"IF(M13<>\"\",M13,M14)","v":0},"m2",null,null,null,null,null,"Fred1,man",null,"m2",null,"[min]","[l/s*ha]","[l/s]","[m3]","[l/s*ha]","[l/s]","[m3]","l/s","m3","m3","m3"]
["Reduktionsbeiwert Retention",null,null,"jR1",{"$f":"B5a!G24","v":0},"-",null,null,null,null,null,"Fred1,ber",{"$f":"SUMIF('B22'!H24:H26,R1,'B22'!F24:F26)+SUMIF('B22'!H32:H34,R1,'B22'!F32:F34)","v":0},"m2",null,1,{"$f":"MIN(353,5300/(P14+10))","v":353},{"$f":"$E$13*Q14/10000","v":0},{"$f":"P14*R14*60/1000","v":0},{"$f":"MIN(412,6175/(P14+10))","v":412},{"$f":"$E$13*T14/10000","v":0},{"$f":"P14*U14*60/1000","v":0},{"$f":"$E$15","v":0},{"$f":"P14*W14*60/1000","v":0},{"$f":"MAX(S14-X14,0)","v":0},{"$f":"MAX(V14-X14,0)","v":0}]
["Abfluss aus Retention",null,null,"Qab,R1",{"$f":"E13*E14*E$12/10000","v":0},"l/s",null,null,null,null,null,null,null,null,null,2,{"$f":"MIN(353,5300/(P15+10))","v":353},{"$f":"$E$13*Q15/10000","v":0},{"$f":"P15*R15*60/1000","v":0},{"$f":"MIN(412,6175/(P15+10))","v":412},0,{"$f":"P15*U15*60/1000","v":0},0,0,0,{"$f":"MAX(V15-X15,0)","v":0}]
[null,null,null,null,null,null,null,null,null,null,null,null,null,null,null,3,353,0,0,412,0,0,0,0,0,0]
["Drossel mittels Abflussdrosselorgan",null,null,null,null,null,null,null,null,null,null,null,null,null,null,4,353,0,0,412,0,0,0,0,0,0]
["Erforderliches Retentionsvolumen",null,null,"Verf,R1",{"$f":"MAX(MAX(Z14:Z62),0)","v":0},"m3",null,null,null,null,null,null,null,null,null,5,353,0,0,411.66666666666669,0,0,0,0,0,0]
[null,null,null,null,null,null,null,null,null,null,null,null,null,null,null,6,331.25,0,0,385.9375,0,0,0,0,0,0]
["Drossel mittels einfacher Lochdrossel",null,null,null,null,null,null,null,null,null,null,null,null,null,null,7,311.76470588235293,0,0,363.23529411764707,0,0,0,0,0,0]
["Erforderliches Retentionsvolumen",null,null,"Verf,R1",{"$f":"2*E18","v":0},"m3",null,null,null,null,null,null,null,null,null,8,294.44444444444446,0,0,343.05555555555554,0,0,0,0,0,0]
[null,null,null,null,null,null,null,null,null,null,null,null,null,null,null,10,265,0,0,308.75,0,0,0,0,0,0]
["Vorhandenes Retentionsvolumen",null,null,null,null,null,null,null,null,null,null,null,null,null,null,11,252.38095238095238,0,0,294.04761904761904,0,0,0,0,0,0]
["Schacht",null,null,null,null,null,null,null,null,null,null,null,null,null,null,12,240.90909090909091,0,0,280.68181818181819,0,0,0,0,0,0]
["Durchmesser",null,null,"DN",null,"cm","D =",null,"m ü. M.",null,null,null,null,null,null,13,230.43478260869566,0,0,268.47826086956519,0,0,0,0,0,0]
["Überlauf",null,null,"h1",null,"m","Ü =",{"$f":"H25-E26","v":0},"m ü. M.",null,null,null,null,null,null,14,220.83333333333334,0,0,257.29166666666669,0,0,0,0,0,0]
["Auslauf",null,null,"h2",null,"m","A =",{"$f":"H25-E27","v":0},"m ü. M.",null,null,null,null,null,null,15,212,0,0,247,0,0,0,0,0,0]
["Sumpftiefe",null,null,"ST",null,"m","S =",{"$f":"H27-E28","v":0},"m ü. M.",null,null,null,null,null,null,16,203.84615384615384,0,0,237.5,0,0,0,0,0,0]
["Schachttiefe",null,null,"T",{"$f":"E27+E28","v":0},"m",null,null,null,null,null,null,null,null,null,17,196.2962962962963,0,0,228.7037037037037,0,0,0,0,0,0]
["Stauhöhe",null,null,"hret",{"$f":"E27-E26","v":0},"m",null,null,null,null,null,null,null,null,null,18,189.28571428571428,0,0,220.53571428571428,0,0,0,0,0,0]
["Theoretischer Lochdurchmesser",null,null,"D",{"$f":"IFERROR(SQRT(4*E15/1000/PI()/0.6/SQRT(2*9.81*E30))*1000,0)","v":0},"mm",null,null,null,null,null,null,null,null,null,19,182.75862068965517,0,0,212.93103448275863,0,0,0,0,0,0]
["Vorhandenes Volumen",null,null,"Vvorh",{"$f":"(E25/100)^2*PI()/4*(E27-E26)","v":0},"m3",null,null,null,null,null,null,null,null,null,20,176.66666666666666,0,0,205.83333333333334,0,0,0,0,0,0]
[null,null,null,null,null,null,null,null,null,null,null,null,null,null,null,21,170.96774193548387,0,0,199.19354838709677,0,0,0,0,0,0]
["Staukanal",null,null,null,null,null,null,null,null,null,null,null,null,null,null,22,165.625,0,0,192.96875,0,0,0,0,0,0]
["Durchmesser",null,null,"DNi",null,"mm",null,null,null,null,null,null,null,null,null,23,160.60606060606059,0,0,187.12121212121212,0,0,0,0,0,0]
["Länge",null,null,"L",null,"m",null,null,null,null,null,null,null,null,null,24,155.88235294117646,0,0,181.61764705882354,0,0,0,0,0,0]
["Vorhandenes Volumen",null,null,"Vvorh",{"$f":"(E35/1000)^2*PI()/4*E36","v":0},"m3",null,null,null,null,null,null,null,null,null,25,151.42857142857142,0,0,176.42857142857142,0,0,0,0,0,0]
[null,null,null,null,null,null,null,null,null,null,null,null,null,null,null,26,147.22222222222223,0,0,171.52777777777777,0,0,0,0,0,0]
["Retentionsbecken",null,null,null,null,null,null,null,null,null,null,null,null,null,null,27,143.24324324324326,0,0,166.8918918918919,0,0,0,0,0,0]
["Länge",null,null,"L",null,"m",null,null,null,null,null,null,null,null,null,28,139.47368421052633,0,0,162.5,0,0,0,0,0,0]
["Breite",null,null,"B",null,"m",null,null,null,null,null,null,null,null,null,29,135.89743589743588,0,0,158.33333333333334,0,0,0,0,0,0]
["Höhe",null,null,"H",null,"m",null,null,null,null,null,null,null,null,null,30,132.5,0,0,154.375,0,0,0,0,0,0]
["Auflockerungsfaktor",null,null,"j",null,"-",null,null,null,null,null,null,null,null,null,31,129.26829268292684,0,0,150.60975609756099,0,0,0,0,0,0]
["Vorhandenes Volumen",null,null,"Vvorh",{"$f":"E40*E41*E42*E43","v":0},"m3",null,null,null,null,null,null,null,null,null,33,123.25581395348837,0,0,143.6046511627907,0,0,0,0,0,0]
[null,null,null,null,null,null,null,null,null,null,null,null,null,null,null,34,120.45454545454545,0,0,140.34090909090909,0,0,0,0,0,0]
["Zusammenfassung",null,null,null,null,null,null,null,null,null,{"$f":"IF(D47=\"Lochdrossel\",1,0)","v":0},null,null,null,null,35,117.77777777777777,0,0,137.22222222222223,0,0,0,0,0,0]
["Drosselorgan",null,null,null,null,{"$f":"IF(D47=\"Lochdrossel\",\"Drosseldurchmesser: \"&IF(E31<10,10,ROUNDUP(E31,0))&\" mm\",\"z.B. Wirbeldrossel\")","v":"z.B. Wirbeldrossel"},null,null,null,null,{"$f":"IF(D47=\"Abflussorgan\",1,0)","v":0},null,null,null,null,36,115.21739130434783,0,0,134.2391304347826,0,0,0,0,0,0]
["Erforderliches Retentionsvolumen",null,null,"Verf",{"$f":"IF(D47=\"Lochdrossel\",E21,E18)","v":0},"m3",null,null,null,null,null,null,null,null,null,37,112.76595744680851,0,0,131.38297872340425,0,0,0,0,0,0]
["Vorhandenes Retentionsvolumen",null,null,"Vvorh",{"$f":"E44+E37+E32","v":0},"m3",null,{"$f":"IF(E49>E48,\"erfüllt!   Sicherheit: \"&ROUND(E49/E48*100,0)&\" %\",\"NICHT erfüllt!   Sicherheit: \"&ROUND(E49/E48*100,0)&\" %\")","v":{"$error":"#DIV/0!"}},null,null,null,null,null,null,null,38,110.41666666666667,0,0,128.64583333333334,0,0,0,0,0,0]
[{"$f":"IFERROR(IF($D$47=\"Lochdrossel\",IF(SQRT(4*E15/1000/PI()/0.6/SQRT(2*9.81*E30))*1000<10,\"Achtung: Drosselwassermenge überschritten! Minimaler Lochdrosseldurchmesser 10 mm.\",\"\"),\"\"),\"\")","v":""},null,null,null,null,null,null,null,null,null,null,null,null,null,null,39,108.16326530612245,0,0,126.0204081632653,0,0,0,0,0,0]
[null,null,null,null,null,null,null,null,null,null,null,null,null,null,null,40,106,0,0,123.5,0,0,0,0,0,0]
[null,null,null,null,null,null,null,null,null,null,null,null,null,null,null,41,103.92156862745098,0,0,121.07843137254902,0,0,0,0,0,0]
[null,null,null,null,null,null,null,null,null,null,null,null,null,null,null,42,101.92307692307692,0,0,118.75,0,0,0,0,0,0]
[null,null,null,null,null,null,null,null,null,null,null,null,null,null,null,43,100,0,0,116.50943396226415,0,0,0,0,0,0]
[null,null,null,null,null,null,null,null,null,null,null,null,null,null,null,44,98.148148148148152,0,0,114.35185185185185,0,0,0,0,0,0]
[null,null,null,null,null,null,null,null,null,null,null,null,null,null,null,45,96.36363636363636,0,0,112.27272727272727,0,0,0,0,0,0]
[null,null,null,null,null,null,null,null,null,null,null,null,null,null,null,46,94.642857142857139,0,0,110.26785714285714,0,0,0,0,0,0]
[null,null,null,null,null,null,null,null,null,null,null,null,null,null,null,47,92.982456140350877,0,0,108.33333333333333,0,0,0,0,0,0]
[null,null,null,null,null,null,null,null,null,null,null,null,null,null,null,48,91.379310344827587,0,0,106.46551724137932,0,0,0,0,0,0]
[null,null,null,null,null,null,null,null,null,null,null,null,null,null,null,49,89.830508474576277,0,0,104.66101694915254,0,0,0,0,0,0]
[null,null,null,null,null,null,null,null,null,null,null,null,null,null,null,50,88.333333333333329,0,0,102.91666666666667,0,0,0,0,0,0]
[null,null,null,null,null,null,null,null,null,null,null,null,null,null,null,51,86.885245901639351,0,0,101.22950819672131,0,0,0,0,0,0]

{"sheet":"E13","index":13,"n_rows":62,"n_cols":26,"rows_kept":62,"cut":false,"hidden":false,"merged":[[46,3,46,4],[9,21,10,21],[9,22,10,22],[9,23,10,23],[9,24,10,24],[9,25,10,25],[22,0,22,8],[7,0,7,1],[7,2,7,8],[8,15,8,25],[9,0,9,8],[9,15,10,15],[9,16,10,16],[9,17,10,17],[9,18,10,18],[9,19,10,19],[9,20,10,20],[6,0,6,1],[6,2,6,8],[3,0,3,1],[4,0,4,1],[4,2,4,8],[5,0,5,1],[5,2,5,8]]}
[{"$f":"\"E\"&R1&\".1\"","v":"E3.1"},{"$f":"\"Dimensionierung Retentionsanlage \"&R1","v":"Dimensionierung Retentionsanlage 3"},null,null,null,null,null,null,null,null,null,null,null,null,null,null,"Anlage",3]
[null,"Liegenschaftsentwässerung"]
[]
["Gemeinde",null,{"$f":"IF('B21'!$C$4:$D$4=\"\",\"\",'B21'!$C$4:$D$4)","v":0},null,"Parzellen-Nr.",{"$f":"IF('B21'!$G$4=\"\",\"\",'B21'!$G$4)","v":0}]
["Objekt",null,{"$f":"IF('B21'!$C$5:$J$5=\"\",\"\",'B21'!$C$5:$J$5)","v":0}]
["Bauherr",null,{"$f":"IF('B21'!$C$6:$J$6=\"\",\"\",'B21'!$C$6:$J$6)","v":0}]
["Architekt",null,{"$f":"IF('B21'!$C$7:$J$7=\"\",\"\",'B21'!$C$7:$J$7)","v":0}]
["Fachplaner",null,{"$f":"IF('B21'!$C$8:$J$8=\"\",\"\",'B21'!$C$8:$J$8)","v":", , "}]
[null,null,null,null,null,null,null,null,null,null,null,null,null,null,null,"Retentionsanlage:   R1"]
["Erforderliches Retentionsvolumen",null,null,null,null,null,null,null,null,null,null,null,null,null,null,"Regendauer","Regen-intensität","Momentan-zufluss","Zufluss-volumen","Regen-intensität","Momentan-zufluss","Zufluss-volumen","Maximal Abfluss","Abfluss-volumen","Retentions-volumen","Retentions-volumen"]
[]
["Regenintensität",null,null,"r",250,"l/s ha",null,null,null,null,null,null,null,null,null,"t","r (z = 5)","Qzu","Vzu","r (z = 10)","Qzu","Vzu","Qab","Vab","Vret (z=5)","Vret (z=10)"]
["Reduzierte Flächen",null,null,"Fred,R1",{"$f":"IF(M13<>\"\",M13,M14)","v":0},"m2",null,null,null,null,null,"Fred1,man",null,"m2",null,"[min]","[l/s*ha]","[l/s]","[m3]","[l/s*ha]","[l/s]","[m3]","l/s","m3","m3","m3"]
["Reduktionsbeiwert Retention",null,null,"jR1",{"$f":"B5a!G38","v":0},"-",null,null,null,null,null,"Fred1,ber",{"$f":"SUMIF('B22'!H24:H26,R1,'B22'!F24:F26)+SUMIF('B22'!H32:H34,R1,'B22'!F32:F34)","v":0},"m2",null,1,{"$f":"MIN(353,5300/(P14+10))","v":353},{"$f":"$E$13*Q14/10000","v":0},{"$f":"P14*R14*60/1000","v":0},{"$f":"MIN(412,6175/(P14+10))","v":412},{"$f":"$E$13*T14/10000","v":0},{"$f":"P14*U14*60/1000","v":0},{"$f":"$E$15","v":0},{"$f":"P14*W14*60/1000","v":0},{"$f":"MAX(S14-X14,0)","v":0},{"$f":"MAX(V14-X14,0)","v":0}]
["Abfluss aus Retention",null,null,"Qab,R1",{"$f":"E13*E14*E$12/10000","v":0},"l/s",null,null,null,null,null,null,null,null,null,2,{"$f":"MIN(353,5300/(P15+10))","v":353},{"$f":"$E$13*Q15/10000","v":0},{"$f":"P15*R15*60/1000","v":0},{"$f":"MIN(412,6175/(P15+10))","v":412},0,{"$f":"P15*U15*60/1000","v":0},0,0,0,{"$f":"MAX(V15-X15,0)","v":0}]
[null,null,null,null,null,null,null,null,null,null,null,null,null,null,null,3,353,0,0,412,0,0,0,0,0,0]
["Drossel mittels Abflussdrosselorgan",null,null,null,null,null,null,null,null,null,null,null,null,null,null,4,353,0,0,412,0,0,0,0,0,0]
["Erforderliches Retentionsvolumen",null,null,"Verf,R1",{"$f":"MAX(MAX(Z14:Z62),0)","v":0},"m3",null,null,null,null,null,null,null,null,null,5,353,0,0,411.66666666666669,0,0,0,0,0,0]
[null,null,null,null,null,null,null,null,null,null,null,null,null,null,null,6,331.25,0,0,385.9375,0,0,0,0,0,0]
["Drossel mittels einfacher Lochdrossel",null,null,null,null,null,null,null,null,null,null,null,null,null,null,7,311.76470588235293,0,0,363.23529411764707,0,0,0,0,0,0]
["Erforderliches Retentionsvolumen",null,null,"Verf,R1",{"$f":"2*E18","v":0},"m3",null,null,null,null,null,null,null,null,null,8,294.44444444444446,0,0,343.05555555555554,0,0,0,0,0,0]
[null,null,null,null,null,null,null,null,null,null,null,null,null,null,null,10,265,0,0,308.75,0,0,0,0,0,0]
["Vorhandenes Retentionsvolumen",null,null,null,null,null,null,null,null,null,null,null,null,null,null,11,252.38095238095238,0,0,294.04761904761904,0,0,0,0,0,0]
["Schacht",null,null,null,null,null,null,null,null,null,null,null,null,null,null,12,240.90909090909091,0,0,280.68181818181819,0,0,0,0,0,0]
["Durchmesser",null,null,"DN",null,"cm","D =",null,"m ü. M.",null,null,null,null,null,null,13,230.43478260869566,0,0,268.47826086956519,0,0,0,0,0,0]
["Überlauf",null,null,"h1",null,"m","Ü =",{"$f":"H25-E26","v":0},"m ü. M.",null,null,null,null,null,null,14,220.83333333333334,0,0,257.29166666666669,0,0,0,0,0,0]
["Auslauf",null,null,"h2",null,"m","A =",{"$f":"H25-E27","v":0},"m ü. M.",null,null,null,null,null,null,15,212,0,0,247,0,0,0,0,0,0]
["Sumpftiefe",null,null,"ST",null,"m","S =",{"$f":"H27-E28","v":0},"m ü. M.",null,null,null,null,null,null,16,203.84615384615384,0,0,237.5,0,0,0,0,0,0]
["Schachttiefe",null,null,"T",{"$f":"E27+E28","v":0},"m",null,null,null,null,null,null,null,null,null,17,196.2962962962963,0,0,228.7037037037037,0,0,0,0,0,0]
["Stauhöhe",null,null,"hret",{"$f":"E27-E26","v":0},"m",null,null,null,null,null,null,null,null,null,18,189.28571428571428,0,0,220.53571428571428,0,0,0,0,0,0]
["Theoretischer Lochdurchmesser",null,null,"D",{"$f":"IFERROR(SQRT(4*E15/1000/PI()/0.6/SQRT(2*9.81*E30))*1000,0)","v":0},"mm",null,null,null,null,null,null,null,null,null,19,182.75862068965517,0,0,212.93103448275863,0,0,0,0,0,0]
["Vorhandenes Volumen",null,null,"Vvorh",{"$f":"(E25/100)^2*PI()/4*(E27-E26)","v":0},"m3",null,null,null,null,null,null,null,null,null,20,176.66666666666666,0,0,205.83333333333334,0,0,0,0,0,0]
[null,null,null,null,null,null,null,null,null,null,null,null,null,null,null,21,170.96774193548387,0,0,199.19354838709677,0,0,0,0,0,0]
["Staukanal",null,null,null,null,null,null,null,null,null,null,null,null,null,null,22,165.625,0,0,192.96875,0,0,0,0,0,0]
["Durchmesser",null,null,"DNi",null,"mm",null,null,null,null,null,null,null,null,null,23,160.60606060606059,0,0,187.12121212121212,0,0,0,0,0,0]
["Länge",null,null,"L",null,"m",null,null,null,null,null,null,null,null,null,24,155.88235294117646,0,0,181.61764705882354,0,0,0,0,0,0]
["Vorhandenes Volumen",null,null,"Vvorh",{"$f":"(E35/1000)^2*PI()/4*E36","v":0},"m3",null,null,null,null,null,null,null,null,null,25,151.42857142857142,0,0,176.42857142857142,0,0,0,0,0,0]
[null,null,null,null,null,null,null,null,null,null,null,null,null,null,null,26,147.22222222222223,0,0,171.52777777777777,0,0,0,0,0,0]
["Retentionsbecken",null,null,null,null,null,null,null,null,null,null,null,null,null,null,27,143.24324324324326,0,0,166.8918918918919,0,0,0,0,0,0]
["Länge",null,null,"L",null,"m",null,null,null,null,null,null,null,null,null,28,139.47368421052633,0,0,162.5,0,0,0,0,0,0]
["Breite",null,null,"B",null,"m",null,null,null,null,null,null,null,null,null,29,135.89743589743588,0,0,158.33333333333334,0,0,0,0,0,0]
["Höhe",null,null,"H",null,"m",null,null,null,null,null,null,null,null,null,30,132.5,0,0,154.375,0,0,0,0,0,0]
["Auflockerungsfaktor",null,null,"j",null,"-",null,null,null,null,null,null,null,null,null,31,129.26829268292684,0,0,150.60975609756099,0,0,0,0,0,0]
["Vorhandenes Volumen",null,null,"Vvorh",{"$f":"E40*E41*E42*E43","v":0},"m3",null,null,null,null,null,null,null,null,null,33,123.25581395348837,0,0,143.6046511627907,0,0,0,0,0,0]
[null,null,null,null,null,null,null,null,null,null,null,null,null,null,null,34,120.45454545454545,0,0,140.34090909090909,0,0,0,0,0,0]
["Zusammenfassung",null,null,null,null,null,null,null,null,null,{"$f":"IF(D47=\"Lochdrossel\",1,0)","v":0},null,null,null,null,35,117.77777777777777,0,0,137.22222222222223,0,0,0,0,0,0]
["Drosselorgan",null,null,null,null,{"$f":"IF(D47=\"Lochdrossel\",\"Drosseldurchmesser: \"&IF(E31<10,10,ROUNDUP(E31,0))&\" mm\",\"z.B. Wirbeldrossel\")","v":"z.B. Wirbeldrossel"},null,null,null,null,{"$f":"IF(D47=\"Abflussorgan\",1,0)","v":0},null,null,null,null,36,115.21739130434783,0,0,134.2391304347826,0,0,0,0,0,0]
["Erforderliches Retentionsvolumen",null,null,"Verf",{"$f":"IF(D47=\"Lochdrossel\",E21,E18)","v":0},"m3",null,null,null,null,null,null,null,null,null,37,112.76595744680851,0,0,131.38297872340425,0,0,0,0,0,0]
["Vorhandenes Retentionsvolumen",null,null,"Vvorh",{"$f":"E44+E37+E32","v":0},"m3",null,{"$f":"IF(E49>E48,\"erfüllt!   Sicherheit: \"&ROUND(E49/E48*100,0)&\" %\",\"NICHT erfüllt!   Sicherheit: \"&ROUND(E49/E48*100,0)&\" %\")","v":{"$error":"#DIV/0!"}},null,null,null,null,null,null,null,38,110.41666666666667,0,0,128.64583333333334,0,0,0,0,0,0]
[{"$f":"IFERROR(IF($D$47=\"Lochdrossel\",IF(SQRT(4*E15/1000/PI()/0.6/SQRT(2*9.81*E30))*1000<10,\"Achtung: Drosselwassermenge überschritten! Minimaler Lochdrosseldurchmesser 10 mm.\",\"\"),\"\"),\"\")","v":""},null,null,null,null,null,null,null,null,null,null,null,null,null,null,39,108.16326530612245,0,0,126.0204081632653,0,0,0,0,0,0]
[null,null,null,null,null,null,null,null,null,null,null,null,null,null,null,40,106,0,0,123.5,0,0,0,0,0,0]
[null,null,null,null,null,null,null,null,null,null,null,null,null,null,null,41,103.92156862745098,0,0,121.07843137254902,0,0,0,0,0,0]
[null,null,null,null,null,null,null,null,null,null,null,null,null,null,null,42,101.92307692307692,0,0,118.75,0,0,0,0,0,0]
[null,null,null,null,null,null,null,null,null,null,null,null,null,null,null,43,100,0,0,116.50943396226415,0,0,0,0,0,0]
[null,null,null,null,null,null,null,null,null,null,null,null,null,null,null,44,98.148148148148152,0,0,114.35185185185185,0,0,0,0,0,0]
[null,null,null,null,null,null,null,null,null,null,null,null,null,null,null,45,96.36363636363636,0,0,112.27272727272727,0,0,0,0,0,0]
[null,null,null,null,null,null,null,null,null,null,null,null,null,null,null,46,94.642857142857139,0,0,110.26785714285714,0,0,0,0,0,0]
[null,null,null,null,null,null,null,null,null,null,null,null,null,null,null,47,92.982456140350877,0,0,108.33333333333333,0,0,0,0,0,0]
[null,null,null,null,null,null,null,null,null,null,null,null,null,null,null,48,91.379310344827587,0,0,106.46551724137932,0,0,0,0,0,0]
[null,null,null,null,null,null,null,null,null,null,null,null,null,null,null,49,89.830508474576277,0,0,104.66101694915254,0,0,0,0,0,0]
[null,null,null,null,null,null,null,null,null,null,null,null,null,null,null,50,88.333333333333329,0,0,102.91666666666667,0,0,0,0,0,0]
[null,null,null,null,null,null,null,null,null,null,null,null,null,null,null,51,86.885245901639351,0,0,101.22950819672131,0,0,0,0,0,0]

{"sheet":"E14","index":14,"n_rows":62,"n_cols":26,"rows_kept":62,"cut":false,"hidden":false,"merged":[[6,0,6,1],[6,2,6,8],[3,0,3,1],[4,0,4,1],[4,2,4,8],[5,0,5,1],[5,2,5,8],[9,25,10,25],[22,0,22,8],[7,0,7,1],[7,2,7,8],[8,15,8,25],[9,0,9,8],[9,15,10,15],[9,16,10,16],[9,17,10,17],[9,18,10,18],[9,19,10,19],[9,20,10,20],[46,3,46,4],[9,21,10,21],[9,22,10,22],[9,23,10,23],[9,24,10,24]]}
[{"$f":"\"E\"&R1&\".1\"","v":"E4.1"},{"$f":"\"Dimensionierung Retentionsanlage \"&R1","v":"Dimensionierung Retentionsanlage 4"},null,null,null,null,null,null,null,null,null,null,null,null,null,null,"Anlage",4]
[null,"Liegenschaftsentwässerung"]
[]
["Gemeinde",null,{"$f":"IF('B21'!$C$4:$D$4=\"\",\"\",'B21'!$C$4:$D$4)","v":0},null,"Parzellen-Nr.",{"$f":"IF('B21'!$G$4=\"\",\"\",'B21'!$G$4)","v":0}]
["Objekt",null,{"$f":"IF('B21'!$C$5:$J$5=\"\",\"\",'B21'!$C$5:$J$5)","v":0}]
["Bauherr",null,{"$f":"IF('B21'!$C$6:$J$6=\"\",\"\",'B21'!$C$6:$J$6)","v":0}]
["Architekt",null,{"$f":"IF('B21'!$C$7:$J$7=\"\",\"\",'B21'!$C$7:$J$7)","v":0}]
["Fachplaner",null,{"$f":"IF('B21'!$C$8:$J$8=\"\",\"\",'B21'!$C$8:$J$8)","v":", , "}]
[null,null,null,null,null,null,null,null,null,null,null,null,null,null,null,"Retentionsanlage:   R1"]
["Erforderliches Retentionsvolumen",null,null,null,null,null,null,null,null,null,null,null,null,null,null,"Regendauer","Regen-intensität","Momentan-zufluss","Zufluss-volumen","Regen-intensität","Momentan-zufluss","Zufluss-volumen","Maximal Abfluss","Abfluss-volumen","Retentions-volumen","Retentions-volumen"]
[]
["Regenintensität",null,null,"r",250,"l/s ha",null,null,null,null,null,null,null,null,null,"t","r (z = 5)","Qzu","Vzu","r (z = 10)","Qzu","Vzu","Qab","Vab","Vret (z=5)","Vret (z=10)"]
["Reduzierte Flächen",null,null,"Fred,R1",{"$f":"IF(M13<>\"\",M13,M14)","v":0},"m2",null,null,null,null,null,"Fred1,man",null,"m2",null,"[min]","[l/s*ha]","[l/s]","[m3]","[l/s*ha]","[l/s]","[m3]","l/s","m3","m3","m3"]
["Reduktionsbeiwert Retention",null,null,"jR1",{"$f":"B5a!G52","v":0},"-",null,null,null,null,null,"Fred1,ber",{"$f":"SUMIF('B22'!H24:H26,R1,'B22'!F24:F26)+SUMIF('B22'!H32:H34,R1,'B22'!F32:F34)","v":0},"m2",null,1,{"$f":"MIN(353,5300/(P14+10))","v":353},{"$f":"$E$13*Q14/10000","v":0},{"$f":"P14*R14*60/1000","v":0},{"$f":"MIN(412,6175/(P14+10))","v":412},{"$f":"$E$13*T14/10000","v":0},{"$f":"P14*U14*60/1000","v":0},{"$f":"$E$15","v":0},{"$f":"P14*W14*60/1000","v":0},{"$f":"MAX(S14-X14,0)","v":0},{"$f":"MAX(V14-X14,0)","v":0}]
["Abfluss aus Retention",null,null,"Qab,R1",{"$f":"E13*E14*E$12/10000","v":0},"l/s",null,null,null,null,null,null,null,null,null,2,{"$f":"MIN(353,5300/(P15+10))","v":353},{"$f":"$E$13*Q15/10000","v":0},{"$f":"P15*R15*60/1000","v":0},{"$f":"MIN(412,6175/(P15+10))","v":412},0,{"$f":"P15*U15*60/1000","v":0},0,0,0,{"$f":"MAX(V15-X15,0)","v":0}]
[null,null,null,null,null,null,null,null,null,null,null,null,null,null,null,3,353,0,0,412,0,0,0,0,0,0]
["Drossel mittels Abflussdrosselorgan",null,null,null,null,null,null,null,null,null,null,null,null,null,null,4,353,0,0,412,0,0,0,0,0,0]
["Erforderliches Retentionsvolumen",null,null,"Verf,R1",{"$f":"MAX(MAX(Z14:Z62),0)","v":0},"m3",null,null,null,null,null,null,null,null,null,5,353,0,0,411.66666666666669,0,0,0,0,0,0]
[null,null,null,null,null,null,null,null,null,null,null,null,null,null,null,6,331.25,0,0,385.9375,0,0,0,0,0,0]
["Drossel mittels einfacher Lochdrossel",null,null,null,null,null,null,null,null,null,null,null,null,null,null,7,311.76470588235293,0,0,363.23529411764707,0,0,0,0,0,0]
["Erforderliches Retentionsvolumen",null,null,"Verf,R1",{"$f":"2*E18","v":0},"m3",null,null,null,null,null,null,null,null,null,8,294.44444444444446,0,0,343.05555555555554,0,0,0,0,0,0]
[null,null,null,null,null,null,null,null,null,null,null,null,null,null,null,10,265,0,0,308.75,0,0,0,0,0,0]
["Vorhandenes Retentionsvolumen",null,null,null,null,null,null,null,null,null,null,null,null,null,null,11,252.38095238095238,0,0,294.04761904761904,0,0,0,0,0,0]
["Schacht",null,null,null,null,null,null,null,null,null,null,null,null,null,null,12,240.90909090909091,0,0,280.68181818181819,0,0,0,0,0,0]
["Durchmesser",null,null,"DN",null,"cm","D =",null,"m ü. M.",null,null,null,null,null,null,13,230.43478260869566,0,0,268.47826086956519,0,0,0,0,0,0]
["Überlauf",null,null,"h1",null,"m","Ü =",{"$f":"H25-E26","v":0},"m ü. M.",null,null,null,null,null,null,14,220.83333333333334,0,0,257.29166666666669,0,0,0,0,0,0]
["Auslauf",null,null,"h2",null,"m","A =",{"$f":"H25-E27","v":0},"m ü. M.",null,null,null,null,null,null,15,212,0,0,247,0,0,0,0,0,0]
["Sumpftiefe",null,null,"ST",null,"m","S =",{"$f":"H27-E28","v":0},"m ü. M.",null,null,null,null,null,null,16,203.84615384615384,0,0,237.5,0,0,0,0,0,0]
["Schachttiefe",null,null,"T",{"$f":"E27+E28","v":0},"m",null,null,null,null,null,null,null,null,null,17,196.2962962962963,0,0,228.7037037037037,0,0,0,0,0,0]
["Stauhöhe",null,null,"hret",{"$f":"E27-E26","v":0},"m",null,null,null,null,null,null,null,null,null,18,189.28571428571428,0,0,220.53571428571428,0,0,0,0,0,0]
["Theoretischer Lochdurchmesser",null,null,"D",{"$f":"IFERROR(SQRT(4*E15/1000/PI()/0.6/SQRT(2*9.81*E30))*1000,0)","v":0},"mm",null,null,null,null,null,null,null,null,null,19,182.75862068965517,0,0,212.93103448275863,0,0,0,0,0,0]
["Vorhandenes Volumen",null,null,"Vvorh",{"$f":"(E25/100)^2*PI()/4*(E27-E26)","v":0},"m3",null,null,null,null,null,null,null,null,null,20,176.66666666666666,0,0,205.83333333333334,0,0,0,0,0,0]
[null,null,null,null,null,null,null,null,null,null,null,null,null,null,null,21,170.96774193548387,0,0,199.19354838709677,0,0,0,0,0,0]
["Staukanal",null,null,null,null,null,null,null,null,null,null,null,null,null,null,22,165.625,0,0,192.96875,0,0,0,0,0,0]
["Durchmesser",null,null,"DNi",null,"mm",null,null,null,null,null,null,null,null,null,23,160.60606060606059,0,0,187.12121212121212,0,0,0,0,0,0]
["Länge",null,null,"L",null,"m",null,null,null,null,null,null,null,null,null,24,155.88235294117646,0,0,181.61764705882354,0,0,0,0,0,0]
["Vorhandenes Volumen",null,null,"Vvorh",{"$f":"(E35/1000)^2*PI()/4*E36","v":0},"m3",null,null,null,null,null,null,null,null,null,25,151.42857142857142,0,0,176.42857142857142,0,0,0,0,0,0]
[null,null,null,null,null,null,null,null,null,null,null,null,null,null,null,26,147.22222222222223,0,0,171.52777777777777,0,0,0,0,0,0]
["Retentionsbecken",null,null,null,null,null,null,null,null,null,null,null,null,null,null,27,143.24324324324326,0,0,166.8918918918919,0,0,0,0,0,0]
["Länge",null,null,"L",null,"m",null,null,null,null,null,null,null,null,null,28,139.47368421052633,0,0,162.5,0,0,0,0,0,0]
["Breite",null,null,"B",null,"m",null,null,null,null,null,null,null,null,null,29,135.89743589743588,0,0,158.33333333333334,0,0,0,0,0,0]
["Höhe",null,null,"H",null,"m",null,null,null,null,null,null,null,null,null,30,132.5,0,0,154.375,0,0,0,0,0,0]
["Auflockerungsfaktor",null,null,"j",null,"-",null,null,null,null,null,null,null,null,null,31,129.26829268292684,0,0,150.60975609756099,0,0,0,0,0,0]
["Vorhandenes Volumen",null,null,"Vvorh",{"$f":"E40*E41*E42*E43","v":0},"m3",null,null,null,null,null,null,null,null,null,33,123.25581395348837,0,0,143.6046511627907,0,0,0,0,0,0]
[null,null,null,null,null,null,null,null,null,null,null,null,null,null,null,34,120.45454545454545,0,0,140.34090909090909,0,0,0,0,0,0]
["Zusammenfassung",null,null,null,null,null,null,null,null,null,{"$f":"IF(D47=\"Lochdrossel\",1,0)","v":0},null,null,null,null,35,117.77777777777777,0,0,137.22222222222223,0,0,0,0,0,0]
["Drosselorgan",null,null,null,null,{"$f":"IF(D47=\"Lochdrossel\",\"Drosseldurchmesser: \"&IF(E31<10,10,ROUNDUP(E31,0))&\" mm\",\"z.B. Wirbeldrossel\")","v":"z.B. Wirbeldrossel"},null,null,null,null,{"$f":"IF(D47=\"Abflussorgan\",1,0)","v":0},null,null,null,null,36,115.21739130434783,0,0,134.2391304347826,0,0,0,0,0,0]
["Erforderliches Retentionsvolumen",null,null,"Verf",{"$f":"IF(D47=\"Lochdrossel\",E21,E18)","v":0},"m3",null,null,null,null,null,null,null,null,null,37,112.76595744680851,0,0,131.38297872340425,0,0,0,0,0,0]
["Vorhandenes Retentionsvolumen",null,null,"Vvorh",{"$f":"E44+E37+E32","v":0},"m3",null,{"$f":"IF(E49>E48,\"erfüllt!   Sicherheit: \"&ROUND(E49/E48*100,0)&\" %\",\"NICHT erfüllt!   Sicherheit: \"&ROUND(E49/E48*100,0)&\" %\")","v":{"$error":"#DIV/0!"}},null,null,null,null,null,null,null,38,110.41666666666667,0,0,128.64583333333334,0,0,0,0,0,0]
[{"$f":"IFERROR(IF($D$47=\"Lochdrossel\",IF(SQRT(4*E15/1000/PI()/0.6/SQRT(2*9.81*E30))*1000<10,\"Achtung: Drosselwassermenge überschritten! Minimaler Lochdrosseldurchmesser 10 mm.\",\"\"),\"\"),\"\")","v":""},null,null,null,null,null,null,null,null,null,null,null,null,null,null,39,108.16326530612245,0,0,126.0204081632653,0,0,0,0,0,0]
[null,null,null,null,null,null,null,null,null,null,null,null,null,null,null,40,106,0,0,123.5,0,0,0,0,0,0]
[null,null,null,null,null,null,null,null,null,null,null,null,null,null,null,41,103.92156862745098,0,0,121.07843137254902,0,0,0,0,0,0]
[null,null,null,null,null,null,null,null,null,null,null,null,null,null,null,42,101.92307692307692,0,0,118.75,0,0,0,0,0,0]
[null,null,null,null,null,null,null,null,null,null,null,null,null,null,null,43,100,0,0,116.50943396226415,0,0,0,0,0,0]
[null,null,null,null,null,null,null,null,null,null,null,null,null,null,null,44,98.148148148148152,0,0,114.35185185185185,0,0,0,0,0,0]
[null,null,null,null,null,null,null,null,null,null,null,null,null,null,null,45,96.36363636363636,0,0,112.27272727272727,0,0,0,0,0,0]
[null,null,null,null,null,null,null,null,null,null,null,null,null,null,null,46,94.642857142857139,0,0,110.26785714285714,0,0,0,0,0,0]
[null,null,null,null,null,null,null,null,null,null,null,null,null,null,null,47,92.982456140350877,0,0,108.33333333333333,0,0,0,0,0,0]
[null,null,null,null,null,null,null,null,null,null,null,null,null,null,null,48,91.379310344827587,0,0,106.46551724137932,0,0,0,0,0,0]
[null,null,null,null,null,null,null,null,null,null,null,null,null,null,null,49,89.830508474576277,0,0,104.66101694915254,0,0,0,0,0,0]
[null,null,null,null,null,null,null,null,null,null,null,null,null,null,null,50,88.333333333333329,0,0,102.91666666666667,0,0,0,0,0,0]
[null,null,null,null,null,null,null,null,null,null,null,null,null,null,null,51,86.885245901639351,0,0,101.22950819672131,0,0,0,0,0,0]

{"sheet":"E15","index":15,"n_rows":62,"n_cols":26,"rows_kept":62,"cut":false,"hidden":false,"merged":[[6,0,6,1],[6,2,6,8],[3,0,3,1],[4,0,4,1],[4,2,4,8],[5,0,5,1],[5,2,5,8],[9,25,10,25],[22,0,22,8],[7,0,7,1],[7,2,7,8],[8,15,8,25],[9,0,9,8],[9,15,10,15],[9,16,10,16],[9,17,10,17],[9,18,10,18],[9,19,10,19],[9,20,10,20],[46,3,46,4],[9,21,10,21],[9,22,10,22],[9,23,10,23],[9,24,10,24]]}
[{"$f":"\"E\"&R1&\".1\"","v":"E5.1"},{"$f":"\"Dimensionierung Retentionsanlage \"&R1","v":"Dimensionierung Retentionsanlage 5"},null,null,null,null,null,null,null,null,null,null,null,null,null,null,"Anlage",5]
[null,"Liegenschaftsentwässerung"]
[]
["Gemeinde",null,{"$f":"IF('B21'!$C$4:$D$4=\"\",\"\",'B21'!$C$4:$D$4)","v":0},null,"Parzellen-Nr.",{"$f":"IF('B21'!$G$4=\"\",\"\",'B21'!$G$4)","v":0}]
["Objekt",null,{"$f":"IF('B21'!$C$5:$J$5=\"\",\"\",'B21'!$C$5:$J$5)","v":0}]
["Bauherr",null,{"$f":"IF('B21'!$C$6:$J$6=\"\",\"\",'B21'!$C$6:$J$6)","v":0}]
["Architekt",null,{"$f":"IF('B21'!$C$7:$J$7=\"\",\"\",'B21'!$C$7:$J$7)","v":0}]
["Fachplaner",null,{"$f":"IF('B21'!$C$8:$J$8=\"\",\"\",'B21'!$C$8:$J$8)","v":", , "}]
[null,null,null,null,null,null,null,null,null,null,null,null,null,null,null,"Retentionsanlage:   R1"]
["Erforderliches Retentionsvolumen",null,null,null,null,null,null,null,null,null,null,null,null,null,null,"Regendauer","Regen-intensität","Momentan-zufluss","Zufluss-volumen","Regen-intensität","Momentan-zufluss","Zufluss-volumen","Maximal Abfluss","Abfluss-volumen","Retentions-volumen","Retentions-volumen"]
[]
["Regenintensität",null,null,"r",250,"l/s ha",null,null,null,null,null,null,null,null,null,"t","r (z = 5)","Qzu","Vzu","r (z = 10)","Qzu","Vzu","Qab","Vab","Vret (z=5)","Vret (z=10)"]
["Reduzierte Flächen",null,null,"Fred,R1",{"$f":"IF(M13<>\"\",M13,M14)","v":0},"m2",null,null,null,null,null,"Fred1,man",null,"m2",null,"[min]","[l/s*ha]","[l/s]","[m3]","[l/s*ha]","[l/s]","[m3]","l/s","m3","m3","m3"]
["Reduktionsbeiwert Retention",null,null,"jR1",{"$f":"B5a!G66","v":0},"-",null,null,null,null,null,"Fred1,ber",{"$f":"SUMIF('B22'!H24:H26,R1,'B22'!F24:F26)+SUMIF('B22'!H32:H34,R1,'B22'!F32:F34)","v":0},"m2",null,1,{"$f":"MIN(353,5300/(P14+10))","v":353},{"$f":"$E$13*Q14/10000","v":0},{"$f":"P14*R14*60/1000","v":0},{"$f":"MIN(412,6175/(P14+10))","v":412},{"$f":"$E$13*T14/10000","v":0},{"$f":"P14*U14*60/1000","v":0},{"$f":"$E$15","v":0},{"$f":"P14*W14*60/1000","v":0},{"$f":"MAX(S14-X14,0)","v":0},{"$f":"MAX(V14-X14,0)","v":0}]
["Abfluss aus Retention",null,null,"Qab,R1",{"$f":"E13*E14*E$12/10000","v":0},"l/s",null,null,null,null,null,null,null,null,null,2,{"$f":"MIN(353,5300/(P15+10))","v":353},{"$f":"$E$13*Q15/10000","v":0},{"$f":"P15*R15*60/1000","v":0},{"$f":"MIN(412,6175/(P15+10))","v":412},0,{"$f":"P15*U15*60/1000","v":0},0,0,0,{"$f":"MAX(V15-X15,0)","v":0}]
[null,null,null,null,null,null,null,null,null,null,null,null,null,null,null,3,353,0,0,412,0,0,0,0,0,0]
["Drossel mittels Abflussdrosselorgan",null,null,null,null,null,null,null,null,null,null,null,null,null,null,4,353,0,0,412,0,0,0,0,0,0]
["Erforderliches Retentionsvolumen",null,null,"Verf,R1",{"$f":"MAX(MAX(Z14:Z62),0)","v":0},"m3",null,null,null,null,null,null,null,null,null,5,353,0,0,411.66666666666669,0,0,0,0,0,0]
[null,null,null,null,null,null,null,null,null,null,null,null,null,null,null,6,331.25,0,0,385.9375,0,0,0,0,0,0]
["Drossel mittels einfacher Lochdrossel",null,null,null,null,null,null,null,null,null,null,null,null,null,null,7,311.76470588235293,0,0,363.23529411764707,0,0,0,0,0,0]
["Erforderliches Retentionsvolumen",null,null,"Verf,R1",{"$f":"2*E18","v":0},"m3",null,null,null,null,null,null,null,null,null,8,294.44444444444446,0,0,343.05555555555554,0,0,0,0,0,0]
[null,null,null,null,null,null,null,null,null,null,null,null,null,null,null,10,265,0,0,308.75,0,0,0,0,0,0]
["Vorhandenes Retentionsvolumen",null,null,null,null,null,null,null,null,null,null,null,null,null,null,11,252.38095238095238,0,0,294.04761904761904,0,0,0,0,0,0]
["Schacht",null,null,null,null,null,null,null,null,null,null,null,null,null,null,12,240.90909090909091,0,0,280.68181818181819,0,0,0,0,0,0]
["Durchmesser",null,null,"DN",null,"cm","D =",null,"m ü. M.",null,null,null,null,null,null,13,230.43478260869566,0,0,268.47826086956519,0,0,0,0,0,0]
["Überlauf",null,null,"h1",null,"m","Ü =",{"$f":"H25-E26","v":0},"m ü. M.",null,null,null,null,null,null,14,220.83333333333334,0,0,257.29166666666669,0,0,0,0,0,0]
["Auslauf",null,null,"h2",null,"m","A =",{"$f":"H25-E27","v":0},"m ü. M.",null,null,null,null,null,null,15,212,0,0,247,0,0,0,0,0,0]
["Sumpftiefe",null,null,"ST",null,"m","S =",{"$f":"H27-E28","v":0},"m ü. M.",null,null,null,null,null,null,16,203.84615384615384,0,0,237.5,0,0,0,0,0,0]
["Schachttiefe",null,null,"T",{"$f":"E27+E28","v":0},"m",null,null,null,null,null,null,null,null,null,17,196.2962962962963,0,0,228.7037037037037,0,0,0,0,0,0]
["Stauhöhe",null,null,"hret",{"$f":"E27-E26","v":0},"m",null,null,null,null,null,null,null,null,null,18,189.28571428571428,0,0,220.53571428571428,0,0,0,0,0,0]
["Theoretischer Lochdurchmesser",null,null,"D",{"$f":"IFERROR(SQRT(4*E15/1000/PI()/0.6/SQRT(2*9.81*E30))*1000,0)","v":0},"mm",null,null,null,null,null,null,null,null,null,19,182.75862068965517,0,0,212.93103448275863,0,0,0,0,0,0]
["Vorhandenes Volumen",null,null,"Vvorh",{"$f":"(E25/100)^2*PI()/4*(E27-E26)","v":0},"m3",null,null,null,null,null,null,null,null,null,20,176.66666666666666,0,0,205.83333333333334,0,0,0,0,0,0]
[null,null,null,null,null,null,null,null,null,null,null,null,null,null,null,21,170.96774193548387,0,0,199.19354838709677,0,0,0,0,0,0]
["Staukanal",null,null,null,null,null,null,null,null,null,null,null,null,null,null,22,165.625,0,0,192.96875,0,0,0,0,0,0]
["Durchmesser",null,null,"DNi",null,"mm",null,null,null,null,null,null,null,null,null,23,160.60606060606059,0,0,187.12121212121212,0,0,0,0,0,0]
["Länge",null,null,"L",null,"m",null,null,null,null,null,null,null,null,null,24,155.88235294117646,0,0,181.61764705882354,0,0,0,0,0,0]
["Vorhandenes Volumen",null,null,"Vvorh",{"$f":"(E35/1000)^2*PI()/4*E36","v":0},"m3",null,null,null,null,null,null,null,null,null,25,151.42857142857142,0,0,176.42857142857142,0,0,0,0,0,0]
[null,null,null,null,null,null,null,null,null,null,null,null,null,null,null,26,147.22222222222223,0,0,171.52777777777777,0,0,0,0,0,0]
["Retentionsbecken",null,null,null,null,null,null,null,null,null,null,null,null,null,null,27,143.24324324324326,0,0,166.8918918918919,0,0,0,0,0,0]
["Länge",null,null,"L",null,"m",null,null,null,null,null,null,null,null,null,28,139.47368421052633,0,0,162.5,0,0,0,0,0,0]
["Breite",null,null,"B",null,"m",null,null,null,null,null,null,null,null,null,29,135.89743589743588,0,0,158.33333333333334,0,0,0,0,0,0]
["Höhe",null,null,"H",null,"m",null,null,null,null,null,null,null,null,null,30,132.5,0,0,154.375,0,0,0,0,0,0]
["Auflockerungsfaktor",null,null,"j",null,"-",null,null,null,null,null,null,null,null,null,31,129.26829268292684,0,0,150.60975609756099,0,0,0,0,0,0]
["Vorhandenes Volumen",null,null,"Vvorh",{"$f":"E40*E41*E42*E43","v":0},"m3",null,null,null,null,null,null,null,null,null,33,123.25581395348837,0,0,143.6046511627907,0,0,0,0,0,0]
[null,null,null,null,null,null,null,null,null,null,null,null,null,null,null,34,120.45454545454545,0,0,140.34090909090909,0,0,0,0,0,0]
["Zusammenfassung",null,null,null,null,null,null,null,null,null,{"$f":"IF(D47=\"Lochdrossel\",1,0)","v":0},null,null,null,null,35,117.77777777777777,0,0,137.22222222222223,0,0,0,0,0,0]
["Drosselorgan",null,null,null,null,{"$f":"IF(D47=\"Lochdrossel\",\"Drosseldurchmesser: \"&IF(E31<10,10,ROUNDUP(E31,0))&\" mm\",\"z.B. Wirbeldrossel\")","v":"z.B. Wirbeldrossel"},null,null,null,null,{"$f":"IF(D47=\"Abflussorgan\",1,0)","v":0},null,null,null,null,36,115.21739130434783,0,0,134.2391304347826,0,0,0,0,0,0]
["Erforderliches Retentionsvolumen",null,null,"Verf",{"$f":"IF(D47=\"Lochdrossel\",E21,E18)","v":0},"m3",null,null,null,null,null,null,null,null,null,37,112.76595744680851,0,0,131.38297872340425,0,0,0,0,0,0]
["Vorhandenes Retentionsvolumen",null,null,"Vvorh",{"$f":"E44+E37+E32","v":0},"m3",null,{"$f":"IF(E49>E48,\"erfüllt!   Sicherheit: \"&ROUND(E49/E48*100,0)&\" %\",\"NICHT erfüllt!   Sicherheit: \"&ROUND(E49/E48*100,0)&\" %\")","v":{"$error":"#DIV/0!"}},null,null,null,null,null,null,null,38,110.41666666666667,0,0,128.64583333333334,0,0,0,0,0,0]
[{"$f":"IFERROR(IF($D$47=\"Lochdrossel\",IF(SQRT(4*E15/1000/PI()/0.6/SQRT(2*9.81*E30))*1000<10,\"Achtung: Drosselwassermenge überschritten! Minimaler Lochdrosseldurchmesser 10 mm.\",\"\"),\"\"),\"\")","v":""},null,null,null,null,null,null,null,null,null,null,null,null,null,null,39,108.16326530612245,0,0,126.0204081632653,0,0,0,0,0,0]
[null,null,null,null,null,null,null,null,null,null,null,null,null,null,null,40,106,0,0,123.5,0,0,0,0,0,0]
[null,null,null,null,null,null,null,null,null,null,null,null,null,null,null,41,103.92156862745098,0,0,121.07843137254902,0,0,0,0,0,0]
[null,null,null,null,null,null,null,null,null,null,null,null,null,null,null,42,101.92307692307692,0,0,118.75,0,0,0,0,0,0]
[null,null,null,null,null,null,null,null,null,null,null,null,null,null,null,43,100,0,0,116.50943396226415,0,0,0,0,0,0]
[null,null,null,null,null,null,null,null,null,null,null,null,null,null,null,44,98.148148148148152,0,0,114.35185185185185,0,0,0,0,0,0]
[null,null,null,null,null,null,null,null,null,null,null,null,null,null,null,45,96.36363636363636,0,0,112.27272727272727,0,0,0,0,0,0]
[null,null,null,null,null,null,null,null,null,null,null,null,null,null,null,46,94.642857142857139,0,0,110.26785714285714,0,0,0,0,0,0]
[null,null,null,null,null,null,null,null,null,null,null,null,null,null,null,47,92.982456140350877,0,0,108.33333333333333,0,0,0,0,0,0]
[null,null,null,null,null,null,null,null,null,null,null,null,null,null,null,48,91.379310344827587,0,0,106.46551724137932,0,0,0,0,0,0]
[null,null,null,null,null,null,null,null,null,null,null,null,null,null,null,49,89.830508474576277,0,0,104.66101694915254,0,0,0,0,0,0]
[null,null,null,null,null,null,null,null,null,null,null,null,null,null,null,50,88.333333333333329,0,0,102.91666666666667,0,0,0,0,0,0]
[null,null,null,null,null,null,null,null,null,null,null,null,null,null,null,51,86.885245901639351,0,0,101.22950819672131,0,0,0,0,0,0]

{"sheet":"F11","index":16,"n_rows":58,"n_cols":23,"rows_kept":58,"cut":false,"hidden":false,"merged":[[41,0,41,3],[35,0,35,3],[36,0,36,3],[37,0,37,3],[38,0,38,3],[39,0,39,3],[40,0,40,3],[34,0,34,3],[23,0,23,3],[24,0,24,3],[25,0,25,3],[26,0,26,3],[27,0,27,3],[28,0,28,3],[29,0,29,3],[30,0,30,3],[31,0,31,3],[32,0,32,3],[33,0,33,3],[22,0,22,3],[13,0,13,3],[14,0,14,3],[15,0,15,3],[16,0,16,3],[17,0,17,3],[18,0,18,3],[19,0,19,3],[20,0,20,3],[21,0,21,3]]}
[{"$f":"\"F\"&O1&\".1\"","v":"F1.1"},{"$f":"\"Dimensionierung Abwasserhebeanlage \"&O1","v":"Dimensionierung Abwasserhebeanlage 1"},null,null,null,null,null,null,null,null,null,null,null,"Anlage",1,{"$f":"ROW(A47)","v":47}]
[null,"Liegenschaftsentwässerung",null,null,null,null,null,null,null,null,null,null,null,null,null,{"$f":"ROW(D52)","v":52}]
[]
[]
[]
[]
[]
[]
[]
[null,null,"Abflusskennzahl   K =",{"$f":"'B4'!E11","v":0.5},"-"]
[null,null,"Sicherheitsfaktor  SF =",{"$f":"'B21'!D19","v":1},"-"]
[]
["Tabelle 1: Schmutzwasserabfluss QSW DU-Werte in Abwasserhebeanlage",null,null,null,null,null,null,null,"Nicht verwendete Zeilen ausblenden bzw. alle Zeilen wieder einblenden"]
["Entwässerungsgegenstand",null,null,null,"Schmutz-wasserwert\nDU [l/s]","Anzahl","Total\nDU [l/s]",null,null,null,null,null,null,null,null,"min DU"]
["Urinal wasserlos",null,null,null,0.1,null,{"$f":"E15*F15","v":0},null,null,null,null,null,null,null,null,{"$f":"IF(F15=\"\",\"\",E15)","v":""},{"$f":"IF(F15=\"\",\"\",1)","v":""}]
["Standurinal pro Person",null,null,null,0.2,null,{"$f":"E16*F16","v":0},null,null,null,null,null,null,null,null,{"$f":"IF(F16=\"\",\"\",E16)","v":""},""]
["Waschtisch, Wandbecken, Bidet",null,null,null,0.5,null,0,null,null,null,null,null,null,null,null,"","",null,null,null,null,null,{"$f":"IF(Q17=\"\",\"\",P17)","v":""}]
["Urinal mit Druckspüler",null,null,null,0.5,null,0,null,null,null,null,null,null,null,null,"","",null,null,null,null,null,{"$f":"IF(Q18=\"\",\"\",P18)","v":""}]
["Schulwandbrunnen",null,null,null,0.5,null,0,null,null,null,null,null,null,null,null,"","",null,null,null,null,null,""]
["Waschrinne mit 3 Entnahmestellen",null,null,null,0.5,null,0,null,null,null,null,null,null,null,null,"","",null,null,null,null,null,""]
["Wäschezentrifuge bis 10 kg",null,null,null,0.5,null,0,null,null,null,null,null,null,null,null,"","",null,null,null,null,null,""]
["Dusche nicht staubar",null,null,null,0.6,null,0,null,null,null,null,null,null,null,null,"","",null,null,null,null,null,""]
["Bodenablauf DN 50",null,null,null,0.8,null,0,null,null,null,null,null,null,null,null,"","",null,null,null,null,null,""]
["Dusche staubar",null,null,null,0.8,null,0,null,null,null,null,null,null,null,null,"","",null,null,null,null,null,""]
["Urinal mit Spülkasten",null,null,null,0.8,null,0,null,null,null,null,null,null,null,null,"","",null,null,null,null,null,""]
["Badewanne",null,null,null,0.8,null,0,null,null,null,null,null,null,null,null,"","",null,null,null,null,null,""]
["Waschrinne 4-10 Entnahmestellen",null,null,null,0.8,null,0,null,null,null,null,null,null,null,null,"","",null,null,null,null,null,""]
["Wandausgussbecken, Spültisch 1- und 2-fach",null,null,null,0.8,null,0,null,null,null,null,null,null,null,null,"","",null,null,null,null,null,""]
["Waschfontäne 6-10 Entnahmestellen",null,null,null,0.8,null,0,null,null,null,null,null,null,null,null,"",""]
["Waschtrog, Geschirrspülmaschine Haushalt",null,null,null,0.8,null,0,null,null,null,null,null,null,null,null,"",""]
["Waschmaschine bis 6kg",null,null,null,0.8,null,0,null,null,null,null,null,null,null,null,"",""]
["Bodenablauf DN 56",null,null,null,1,null,0,null,null,null,null,null,null,null,null,"",""]
["Waschmaschine 7-12 kg",null,null,null,1.5,null,0,null,null,null,null,null,null,null,null,"",""]
["Geschirrspülmaschine Gewerbe",null,null,null,1.5,null,0,null,null,null,null,null,null,null,null,"",""]
["Bodenablauf DN 70",null,null,null,1.5,null,0,null,null,null,null,null,null,null,null,"",""]
["Klosettanlage 6l oder 7.5l Spülwassermenge",null,null,null,2,null,0,null,null,null,null,null,null,null,null,"",""]
["Klosettanlage 9l Spülwassermenge",null,null,null,2,null,0,null,null,null,null,null,null,null,null,"",""]
["Stand-/Wandausguss (Fäkalien/Putzwasser)",null,null,null,2.5,null,0,null,null,null,null,null,null,null,null,"",""]
["Waschmaschine 13-40 kg",null,null,null,2.5,null,0,null,null,null,null,null,null,null,null,"",""]
["Steckbeckenapparat",null,null,null,2.5,null,0,null,null,null,null,null,null,null,null,"",""]
["Bodenablauf DN 100",null,null,null,2.5,null,0,null,null,null,null,null,null,null,null,"",""]
["Grosswanne, Saunatauchbecken",null,null,null,2.5,null,0,null,null,null,null,null,null,null,null,"",""]
["Summe DU",null,null,null,null,null,{"$f":"SUM(G15:G42)","v":0}]
[]
["Tabelle 2: Regenwasserabfluss QRW in Abwasserhebeanlage",null,null,null,null,null,null,null,"Neue Zeilen in die entsprechend vorbereiteten Tabellen einfügen bzw. löschen"]
[null,null,null,"Fläche","yH","Fred","Abfluss"]
["Nr.","Art der Fläche bzw. Entwässerung","Teilfläche","[m2]","[-]","[m2]","[l/s]"]
["Nr.","Bezeichnung","Teilfläche","Fläche","C","Fred","Abfluss"]
[null,null,null,null,{"$f":"IF(RW_PS_1[[#This Row],[Fläche]]=\"\",\"\",VLOOKUP(RW_PS_1[[#This Row],[Teilfläche]],Codes!$B$2:$E$24,4,FALSE))","v":""},{"$f":"IF(RW_PS_1[[#This Row],[Fläche]]=\"\",\"\",RW_PS_1[[#This Row],[C]]*RW_PS_1[[#This Row],[Fläche]])","v":""},{"$f":"IF(RW_PS_1[[#This Row],[Fläche]]=\"\",\"\",RW_PS_1[[#This Row],[Fred]]*'B21'!$D$18*$D$11)","v":""}]
[null,null,null,null,{"$f":"IF(RW_PS_1[[#This Row],[Fläche]]=\"\",\"\",VLOOKUP(RW_PS_1[[#This Row],[Teilfläche]],Codes!$B$2:$E$24,4,FALSE))","v":""},{"$f":"IF(RW_PS_1[[#This Row],[Fläche]]=\"\",\"\",RW_PS_1[[#This Row],[C]]*RW_PS_1[[#This Row],[Fläche]])","v":""},{"$f":"IF(RW_PS_1[[#This Row],[Fläche]]=\"\",\"\",RW_PS_1[[#This Row],[Fred]]*'B21'!$D$18*$D$11)","v":""}]
[null,null,null,null,{"$f":"IF(RW_PS_1[[#This Row],[Fläche]]=\"\",\"\",VLOOKUP(RW_PS_1[[#This Row],[Teilfläche]],Codes!$B$2:$E$24,4,FALSE))","v":""},{"$f":"IF(RW_PS_1[[#This Row],[Fläche]]=\"\",\"\",RW_PS_1[[#This Row],[C]]*RW_PS_1[[#This Row],[Fläche]])","v":""},{"$f":"IF(RW_PS_1[[#This Row],[Fläche]]=\"\",\"\",RW_PS_1[[#This Row],[Fred]]*'B21'!$D$18*$D$11)","v":""}]
[null,null,"Total",{"$f":"SUM(D49:D51)","v":0},null,{"$f":"SUM(F49:F51)","v":0},{"$f":"SUM(G49:G51)","v":0}]
[{"$f":"IF(D52>30,\"Beregnete Fläche > 30m2; Empfehlung: Anordnung Pumpschacht ausserhalb Gebäude (SN 590'000, 8.8.1)\",\"\")","v":""}]
["Bemessungsabfluss"]
["Schmutzwasserabfluss",null,null,null,null,null,null,null,null,null,null,null,null,null,null,"QSW",{"$f":"IF(D10*SQRT(G43)<MAX(P15:P42),MAX(P15:P42),D10*SQRT(G43))","v":0},"l/s",{"$f":"IF(D10*SQRT(G43)<MAX(P15:P42),\"Der Schmutzwasserabfluss muss mindestens der Leistung des grössten Entwässerungsgegenstands entsprechen.\",\"\")","v":""}]
["Regenwasserabfluss",null,null,null,null,null,null,null,null,null,null,null,null,null,null,"QRW",{"$f":"G52","v":0},"l/s"]
["Dauerabfluss",null,null,null,null,null,null,null,"Dauerabfluss","QDA",null,"l/s",null,null,null,"QDA",{"$f":"K57","v":0},"l/s"]
["Gesamtabfluss/Bemessungsabfluss",null,null,null,null,null,null,null,null,null,null,null,null,null,null,"Qbem",{"$f":"SUM(Q55:Q57)","v":0},"l/s"]

{"sheet":"F12","index":17,"n_rows":56,"n_cols":21,"rows_kept":56,"cut":false,"hidden":false,"merged":[]}
[{"$f":"\"F\"&U1&\".1\"","v":"F1.1"},{"$f":"\"Dimensionierung Abwasserhebeanlage \"&U1","v":"Dimensionierung Abwasserhebeanlage 1"},null,null,null,null,null,null,null,null,null,null,null,null,null,null,null,null,null,"Anlage",1]
[null,"Liegenschaftsentwässerung"]
[]
["Dimensionierung Pumpenschacht"]
[]
["Schachtwahl (Grundriss Schacht)",null,null,null,{"$f":"INDEX(Codes!B210:B212,O6,1)","v":"rund"},null,null,null,null,null,null,null,null,null,1]
["Nennweite kreisrunder Schacht",null,null,"NW",200,"cm"]
["Länge rechteckiger Schacht",null,null,"L",100,"cm"]
["Breite rechteckiger Schacht",null,null,"B",100,"cm"]
["Querschnittsfläche Freifläche",null,null,"A",2,"m2"]
[]
["Deckel",null,null,"D",0,"m",null,null,{"$f":"IF(H12=\"\",\"\",\" m ü. M\")","v":""}]
["Einlauf 1",null,null,"E1",null,"m",null,{"$f":"IF(E13=\"\",\"\",H$12-E13)","v":""},{"$f":"IF(H13=\"\",\"\",\" m ü. M\")","v":""},{"$f":"IF(H13=MIN(H$13:H$15),\"massgebender Einlauf für Wasserspiegel\",\"\")","v":""}]
["Einlauf 2",null,null,"E2",null,"m",null,{"$f":"IF(E14=\"\",\"\",H$12-E14)","v":""},{"$f":"IF(H14=\"\",\"\",\" m ü. M\")","v":""},{"$f":"IF(H14=MIN(H$13:H$15),\"massgebender Einlauf für Wasserspiegel\",\"\")","v":""}]
["Einlauf 3",null,null,"E3",null,"m",null,{"$f":"IF(E15=\"\",\"\",H$12-E15)","v":""},{"$f":"IF(H15=\"\",\"\",\" m ü. M\")","v":""},""]
[]
[{"$f":"INDEX(O18:O19,S17,1)","v":"Wasserspiegel: 5 cm unter tiefstem Einlauf (Standard)"},null,null,null,null,null,null,{"$f":"S18","v":-0.05},{"$f":"IF(H17=\"\",\"\",\" m ü. M\")","v":" m ü. M"},{"$f":"IF(H17>H12,\"Wasserspiegel kann nicht höher als Deckel sein\",\"\")","v":""},null,null,null,null,null,null,null,null,1]
["Abstand:   Deckel - WSP",null,null,null,null,null,"h1 =",{"$f":"H12-H17","v":0.05},"m",null,null,null,null,null,"Wasserspiegel: 5 cm unter tiefstem Einlauf (Standard)",null,null,null,{"$f":"MIN(H13:H15)-0.05","v":-0.05}]
["Abstand:   WSP - tiefster Einlauf",null,null,null,null,null,"h2 =",{"$f":"H17-MIN(H13:H15)","v":-0.05},"m",{"$f":"IF(H19>0,\"Rückstauebene liegt über Einlauf\",\"\")","v":""},null,null,null,null,"Wasserspiegel: manuell (separater Nachweis erforderlich)"]
[]
["Erforderliches Volumen",null,null,null,null,null,null,null,null,null,null,null,null,null,null,null,"rund","rechteck","frei"]
["Pumpemsumpf",null,null,"VSU",{"$f":"HLOOKUP($E$6,$Q$21:$S$25,2,FALSE)","v":0},"m3","hSU",null,"cm",null,null,null,null,null,"VSU",{"$f":"E22","v":0},{"$f":"$E$7^2*PI()/4*$H$22/1000/1000","v":0},{"$f":"$E$8*$E$9*$H$22/1000/1000","v":0},{"$f":"E10*H22/100","v":0}]
["Nutzvolumen",null,null,"VN",{"$f":"60*'F11'!Q$58/1000","v":0},"m3","hN",{"$f":"HLOOKUP($E$6,$Q$21:$S$25,3,FALSE)","v":0},"cm",null,null,null,null,null,"hN",{"$f":"E23","v":0},{"$f":"4*P23/(PI()*($E$7/100)^2)*100","v":0},{"$f":"P23/($E$8*$E$9/10000)*100","v":0},{"$f":"P23/E10*100","v":0}]
["Reservevolumen",null,null,"Vres",{"$f":"2*E23","v":0},"m3","hRes",{"$f":"HLOOKUP($E$6,$Q$21:$S$25,4,FALSE)","v":0},"cm",{"$f":"IF(E24=P24,\"\",\"zusätzliches Reservevolumen berücksichtigt\")","v":""},null,null,null,null,"hRes",{"$f":"IF(SUM(E22:E24)>E30,E30-SUM(P22:P23),E24)","v":0},{"$f":"4*P24/(PI()*($E$7/100)^2)*100","v":0},{"$f":"P24/($E$8*$E$9/10000)*100","v":0},{"$f":"P24/E10*100","v":0}]
["Reservevolumen RW",null,null,"Vres,RW",{"$f":"'F11'!D52*50/1000","v":0},"m3","hRes,RW",{"$f":"HLOOKUP($E$6,$Q$21:$S$25,5,FALSE)","v":0},"cm",{"$f":"IF(E25=P25,\"\",\"zusätzliches Reservevolumen berücksichtigt\")","v":""},null,null,null,null,"hRes,RW",{"$f":"IF(SUM(E22:E25)>E30,E30-SUM(P22:P24),E25)","v":0},{"$f":"4*P25/(PI()*($E$7/100)^2)*100","v":0},{"$f":"P25/($E$8*$E$9/10000)*100","v":0},{"$f":"P25/E10*100","v":0}]
["Gesamtvolumen",null,null,"VGes",{"$f":"SUM(E22:E25)","v":0},"m3"]
[]
["Zus. Reservevolumen",null,null,"Vres,RW",null,"m3","Zusätzliches Reservevolumen ausserhalb Pumpschacht"]
[null,null,null,null,null,null,"(z.B. separater Schacht, Überfluten Tiefgarage, etc.)"]
["Gesamtvolumen Schacht",null,null,"VPumpschacht",{"$f":"E26-E28","v":0},"m3"]
[]
["Schachtdaten"]
["Reservehöhe Regenabwasser",null,null,"HRes,RW",{"$f":"H12-H17","v":0.05},"m",null,{"$f":"IF(E33=\"\",\"\",H$12-E33)","v":-0.05},{"$f":"IF(H33=\"\",\"\",\" m ü. M\")","v":" m ü. M"}]
["Reservehöhe",null,null,"Hres",{"$f":"H25/100+E33","v":0.05},"m",null,{"$f":"IF(E34=\"\",\"\",H$12-E34)","v":-0.05}," m ü. M"]
["Nutzhöhe",null,null,"HN",{"$f":"H24/100+E34","v":0.05},"m",null,{"$f":"IF(E35=\"\",\"\",H$12-E35)","v":-0.05}," m ü. M",{"$f":"IF(H35<MIN(H13:H15),\"\",\"Nutzvolumen muss unter dem tiefsten Einlauf liegen!\")","v":""}]
["Pumpensumpf",null,null,"HSU",{"$f":"H23/100+E35","v":0.05},"m",null,{"$f":"IF(E36=\"\",\"\",H$12-E36)","v":-0.05}," m ü. M",{"$f":"IF(H35<MIN(H13:H15),\"\",\"zusätzliches Reservevolumen reduzieren oder Wasserspiegel herabsetzen\")","v":""}]
["Sohle / Schachttiefe",null,null,"S resp. T",{"$f":"H22/100+E36","v":0.05},"m",null,{"$f":"IF(E37=\"\",\"\",H$12-E37)","v":-0.05}," m ü. M"]
[]
["max. Förderhöhe",null,null,"HF,max",null,null,null,null," m ü. M"]
["Geodätische Höhe",null,null,"Hgeod",{"$f":"IFERROR(H39-H36,\"\")","v":0.05},"m"]
[]
[]
[]
[]
[]
[]
[]
[]
[]
[]
[]
[]
[]
[]
[null,null,null,null,null,null,null,null,null,"Abmessungen Schacht",null,{"$f":"IF(E6=\"rund\",\"NW \"&E7&\" cm\",IF(E6=\"rechteck\",E8&\" x \"&E9&\" cm\",E10&\" m2\"))","v":"NW 200 cm"}]
[null,null,null,null,null,null,null,null,null,"Schachttiefe",null,{"$f":"ROUND(E37,2)&\" m\"","v":"0.05 m"}]

{"sheet":"F21","index":18,"n_rows":58,"n_cols":23,"rows_kept":58,"cut":false,"hidden":false,"merged":[[24,0,24,3],[13,0,13,3],[14,0,14,3],[15,0,15,3],[16,0,16,3],[17,0,17,3],[18,0,18,3],[19,0,19,3],[20,0,20,3],[21,0,21,3],[22,0,22,3],[23,0,23,3],[36,0,36,3],[25,0,25,3],[26,0,26,3],[27,0,27,3],[28,0,28,3],[29,0,29,3],[30,0,30,3],[31,0,31,3],[32,0,32,3],[33,0,33,3],[34,0,34,3],[35,0,35,3],[37,0,37,3],[38,0,38,3],[39,0,39,3],[40,0,40,3],[41,0,41,3]]}
[{"$f":"\"F\"&O1&\".1\"","v":"F2.1"},{"$f":"\"Dimensionierung Abwasserhebeanlage \"&O1","v":"Dimensionierung Abwasserhebeanlage 2"},null,null,null,null,null,null,null,null,null,null,null,"Anlage",2,{"$f":"ROW(A47)","v":47}]
[null,"Liegenschaftsentwässerung",null,null,null,null,null,null,null,null,null,null,null,null,null,{"$f":"ROW(D52)","v":52}]
[]
[]
[]
[]
[]
[]
[]
[null,null,"Abflusskennzahl   K =",{"$f":"'B4'!E11","v":0.5},"-"]
[null,null,"Sicherheitsfaktor  SF =",{"$f":"'B21'!D19","v":1},"-"]
[]
["Tabelle 1: Schmutzwasserabfluss QSW DU-Werte in Abwasserhebeanlage",null,null,null,null,null,null,null,"Nicht verwendete Zeilen ausblenden bzw. alle Zeilen wieder einblenden"]
["Entwässerungsgegenstand",null,null,null,"Schmutz-wasserwert\nDU [l/s]","Anzahl","Total\nDU [l/s]",null,null,null,null,null,null,null,null,"min DU"]
["Urinal wasserlos",null,null,null,0.1,null,{"$f":"E15*F15","v":0},null,null,null,null,null,null,null,null,{"$f":"IF(F15=\"\",\"\",E15)","v":""},{"$f":"IF(F15=\"\",\"\",1)","v":""}]
["Standurinal pro Person",null,null,null,0.2,null,{"$f":"E16*F16","v":0},null,null,null,null,null,null,null,null,{"$f":"IF(F16=\"\",\"\",E16)","v":""},""]
["Waschtisch, Wandbecken, Bidet",null,null,null,0.5,null,0,null,null,null,null,null,null,null,null,"","",null,null,null,null,null,{"$f":"IF(Q17=\"\",\"\",P17)","v":""}]
["Urinal mit Druckspüler",null,null,null,0.5,null,0,null,null,null,null,null,null,null,null,"","",null,null,null,null,null,{"$f":"IF(Q18=\"\",\"\",P18)","v":""}]
["Schulwandbrunnen",null,null,null,0.5,null,0,null,null,null,null,null,null,null,null,"","",null,null,null,null,null,""]
["Waschrinne mit 3 Entnahmestellen",null,null,null,0.5,null,0,null,null,null,null,null,null,null,null,"","",null,null,null,null,null,""]
["Wäschezentrifuge bis 10 kg",null,null,null,0.5,null,0,null,null,null,null,null,null,null,null,"","",null,null,null,null,null,""]
["Dusche nicht staubar",null,null,null,0.6,null,0,null,null,null,null,null,null,null,null,"","",null,null,null,null,null,""]
["Bodenablauf DN 50",null,null,null,0.8,null,0,null,null,null,null,null,null,null,null,"","",null,null,null,null,null,""]
["Dusche staubar",null,null,null,0.8,null,0,null,null,null,null,null,null,null,null,"","",null,null,null,null,null,""]
["Urinal mit Spülkasten",null,null,null,0.8,null,0,null,null,null,null,null,null,null,null,"","",null,null,null,null,null,""]
["Badewanne",null,null,null,0.8,null,0,null,null,null,null,null,null,null,null,"","",null,null,null,null,null,""]
["Waschrinne 4-10 Entnahmestellen",null,null,null,0.8,null,0,null,null,null,null,null,null,null,null,"","",null,null,null,null,null,""]
["Wandausgussbecken, Spültisch 1- und 2-fach",null,null,null,0.8,null,0,null,null,null,null,null,null,null,null,"","",null,null,null,null,null,""]
["Waschfontäne 6-10 Entnahmestellen",null,null,null,0.8,null,0,null,null,null,null,null,null,null,null,"",""]
["Waschtrog, Geschirrspülmaschine Haushalt",null,null,null,0.8,null,0,null,null,null,null,null,null,null,null,"",""]
["Waschmaschine bis 6kg",null,null,null,0.8,null,0,null,null,null,null,null,null,null,null,"",""]
["Bodenablauf DN 56",null,null,null,1,null,0,null,null,null,null,null,null,null,null,"",""]
["Waschmaschine 7-12 kg",null,null,null,1.5,null,0,null,null,null,null,null,null,null,null,"",""]
["Geschirrspülmaschine Gewerbe",null,null,null,1.5,null,0,null,null,null,null,null,null,null,null,"",""]
["Bodenablauf DN 70",null,null,null,1.5,null,0,null,null,null,null,null,null,null,null,"",""]
["Klosettanlage 6l oder 7.5l Spülwassermenge",null,null,null,2,null,0,null,null,null,null,null,null,null,null,"",""]
["Klosettanlage 9l Spülwassermenge",null,null,null,2,null,0,null,null,null,null,null,null,null,null,"",""]
["Stand-/Wandausguss (Fäkalien/Putzwasser)",null,null,null,2.5,null,0,null,null,null,null,null,null,null,null,"",""]
["Waschmaschine 13-40 kg",null,null,null,2.5,null,0,null,null,null,null,null,null,null,null,"",""]
["Steckbeckenapparat",null,null,null,2.5,null,0,null,null,null,null,null,null,null,null,"",""]
["Bodenablauf DN 100",null,null,null,2.5,null,0,null,null,null,null,null,null,null,null,"",""]
["Grosswanne, Saunatauchbecken",null,null,null,2.5,null,0,null,null,null,null,null,null,null,null,"",""]
["Summe DU",null,null,null,null,null,{"$f":"SUM(G15:G42)","v":0}]
[]
["Tabelle 2: Regenwasserabfluss QRW in Abwasserhebeanlage",null,null,null,null,null,null,null,"Neue Zeilen in die entsprechend vorbereiteten Tabellen einfügen bzw. löschen"]
[null,null,null,"Fläche","yH","Fred","Abfluss"]
["Nr.","Art der Fläche bzw. Entwässerung","Teilfläche","[m2]","[-]","[m2]","[l/s]"]
["Nr.","Bezeichnung","Teilfläche","Fläche","C","Fred","Abfluss"]
[null,null,null,null,{"$f":"IF(RW_PS_16[[#This Row],[Fläche]]=\"\",\"\",VLOOKUP(RW_PS_16[[#This Row],[Teilfläche]],Codes!$B$2:$E$24,4,FALSE))","v":""},{"$f":"IF(RW_PS_16[[#This Row],[Fläche]]=\"\",\"\",RW_PS_16[[#This Row],[C]]*RW_PS_16[[#This Row],[Fläche]])","v":""},{"$f":"IF(RW_PS_16[[#This Row],[Fläche]]=\"\",\"\",RW_PS_16[[#This Row],[Fred]]*'B21'!$D$18*$D$11)","v":""}]
[null,null,null,null,{"$f":"IF(RW_PS_16[[#This Row],[Fläche]]=\"\",\"\",VLOOKUP(RW_PS_16[[#This Row],[Teilfläche]],Codes!$B$2:$E$24,4,FALSE))","v":""},{"$f":"IF(RW_PS_16[[#This Row],[Fläche]]=\"\",\"\",RW_PS_16[[#This Row],[C]]*RW_PS_16[[#This Row],[Fläche]])","v":""},{"$f":"IF(RW_PS_16[[#This Row],[Fläche]]=\"\",\"\",RW_PS_16[[#This Row],[Fred]]*'B21'!$D$18*$D$11)","v":""}]
[null,null,null,null,{"$f":"IF(RW_PS_16[[#This Row],[Fläche]]=\"\",\"\",VLOOKUP(RW_PS_16[[#This Row],[Teilfläche]],Codes!$B$2:$E$24,4,FALSE))","v":""},{"$f":"IF(RW_PS_16[[#This Row],[Fläche]]=\"\",\"\",RW_PS_16[[#This Row],[C]]*RW_PS_16[[#This Row],[Fläche]])","v":""},{"$f":"IF(RW_PS_16[[#This Row],[Fläche]]=\"\",\"\",RW_PS_16[[#This Row],[Fred]]*'B21'!$D$18*$D$11)","v":""}]
[null,null,"Total",{"$f":"SUM(D49:D51)","v":0},null,{"$f":"SUM(F49:F51)","v":0},{"$f":"SUM(G49:G51)","v":0}]
[{"$f":"IF(D52>30,\"Beregnete Fläche > 30m2; Empfehlung: Anordnung Pumpschacht ausserhalb Gebäude (SN 590'000, 8.8.1)\",\"\")","v":""}]
["Bemessungsabfluss"]
["Schmutzwasserabfluss",null,null,null,null,null,null,null,null,null,null,null,null,null,null,"QSW",{"$f":"IF(D10*SQRT(G43)<MAX(P15:P42),MAX(P15:P42),D10*SQRT(G43))","v":0},"l/s",{"$f":"IF(D10*SQRT(G43)<MAX(P15:P42),\"Der Schmutzwasserabfluss muss mindestens der Leistung des grössten Entwässerungsgegenstands entsprechen.\",\"\")","v":""}]
["Regenwasserabfluss",null,null,null,null,null,null,null,null,null,null,null,null,null,null,"QRW",{"$f":"G52","v":0},"l/s"]
["Dauerabfluss",null,null,null,null,null,null,null,"Dauerabfluss","QDA",null,"l/s",null,null,null,"QDA",{"$f":"K57","v":0},"l/s"]
["Gesamtabfluss/Bemessungsabfluss",null,null,null,null,null,null,null,null,null,null,null,null,null,null,"Qbem",{"$f":"SUM(Q55:Q57)","v":0},"l/s"]

{"sheet":"F22","index":19,"n_rows":56,"n_cols":21,"rows_kept":56,"cut":false,"hidden":false,"merged":[]}
[{"$f":"\"F\"&U1&\".1\"","v":"F2.1"},{"$f":"\"Dimensionierung Abwasserhebeanlage \"&U1","v":"Dimensionierung Abwasserhebeanlage 2"},null,null,null,null,null,null,null,null,null,null,null,null,null,null,null,null,null,"Anlage",2]
[null,"Liegenschaftsentwässerung"]
[]
["Dimensionierung Pumpenschacht"]
[]
["Schachtwahl (Grundriss Schacht)",null,null,null,{"$f":"INDEX(Codes!B210:B212,O6,1)","v":"rund"},null,null,null,null,null,null,null,null,null,1]
["Nennweite kreisrunder Schacht",null,null,"NW",null,"cm"]
["Länge rechteckiger Schacht",null,null,"L",100,"cm"]
["Breite rechteckiger Schacht",null,null,"B",100,"cm"]
["Querschnittsfläche Freifläche",null,null,"A",2,"m2"]
[]
["Deckel",null,null,"D",0,"m",null,null,{"$f":"IF(H12=\"\",\"\",\" m ü. M\")","v":""}]
["Einlauf 1",null,null,"E1",null,"m",null,{"$f":"IF(E13=\"\",\"\",H$12-E13)","v":""},{"$f":"IF(H13=\"\",\"\",\" m ü. M\")","v":""},{"$f":"IF(H13=MIN(H$13:H$15),\"massgebender Einlauf für Wasserspiegel\",\"\")","v":""}]
["Einlauf 2",null,null,"E2",null,"m",null,{"$f":"IF(E14=\"\",\"\",H$12-E14)","v":""},{"$f":"IF(H14=\"\",\"\",\" m ü. M\")","v":""},{"$f":"IF(H14=MIN(H$13:H$15),\"massgebender Einlauf für Wasserspiegel\",\"\")","v":""}]
["Einlauf 3",null,null,"E3",null,"m",null,{"$f":"IF(E15=\"\",\"\",H$12-E15)","v":""},{"$f":"IF(H15=\"\",\"\",\" m ü. M\")","v":""},""]
[]
[{"$f":"INDEX(O18:O19,S17,1)","v":"Wasserspiegel: 5 cm unter tiefstem Einlauf (Standard)"},null,null,null,null,null,null,{"$f":"S18","v":-0.05},{"$f":"IF(H17=\"\",\"\",\" m ü. M\")","v":" m ü. M"},{"$f":"IF(H17>H12,\"Wasserspiegel kann nicht höher als Deckel sein\",\"\")","v":""},null,null,null,null,null,null,null,null,1]
["Abstand:   Deckel - WSP",null,null,null,null,null,"h1 =",{"$f":"H12-H17","v":0.05},"m",null,null,null,null,null,"Wasserspiegel: 5 cm unter tiefstem Einlauf (Standard)",null,null,null,{"$f":"MIN(H13:H15)-0.05","v":-0.05}]
["Abstand:   WSP - tiefster Einlauf",null,null,null,null,null,"h2 =",{"$f":"H17-MIN(H13:H15)","v":-0.05},"m",{"$f":"IF(H19>0,\"Rückstauebene liegt über Einlauf\",\"\")","v":""},null,null,null,null,"Wasserspiegel: manuell (separater Nachweis erforderlich)"]
[]
["Erforderliches Volumen",null,null,null,null,null,null,null,null,null,null,null,null,null,null,null,"rund","rechteck","frei"]
["Pumpemsumpf",null,null,"VSU",{"$f":"HLOOKUP($E$6,$Q$21:$S$25,2,FALSE)","v":0},"m3","hSU",null,"cm",null,null,null,null,null,"VSU",{"$f":"E22","v":0},{"$f":"$E$7^2*PI()/4*$H$22/1000/1000","v":0},{"$f":"$E$8*$E$9*$H$22/1000/1000","v":0},{"$f":"E10*H22/100","v":0}]
["Nutzvolumen",null,null,"VN",{"$f":"60*'F21'!Q$58/1000","v":0},"m3","hN",{"$f":"HLOOKUP($E$6,$Q$21:$S$25,3,FALSE)","v":{"$error":"#DIV/0!"}},"cm",null,null,null,null,null,"hN",{"$f":"E23","v":0},{"$f":"4*P23/(PI()*($E$7/100)^2)*100","v":{"$error":"#DIV/0!"}},{"$f":"P23/($E$8*$E$9/10000)*100","v":0},{"$f":"P23/E10*100","v":0}]
["Reservevolumen",null,null,"Vres",{"$f":"2*E23","v":0},"m3","hRes",{"$f":"HLOOKUP($E$6,$Q$21:$S$25,4,FALSE)","v":{"$error":"#DIV/0!"}},"cm",{"$f":"IF(E24=P24,\"\",\"zusätzliches Reservevolumen berücksichtigt\")","v":""},null,null,null,null,"hRes",{"$f":"IF(SUM(E22:E24)>E30,E30-SUM(P22:P23),E24)","v":0},{"$f":"4*P24/(PI()*($E$7/100)^2)*100","v":{"$error":"#DIV/0!"}},{"$f":"P24/($E$8*$E$9/10000)*100","v":0},{"$f":"P24/E10*100","v":0}]
["Reservevolumen RW",null,null,"Vres,RW",{"$f":"'F21'!D52*50/1000","v":0},"m3","hRes,RW",{"$f":"HLOOKUP($E$6,$Q$21:$S$25,5,FALSE)","v":{"$error":"#DIV/0!"}},"cm",{"$f":"IF(E25=P25,\"\",\"zusätzliches Reservevolumen berücksichtigt\")","v":""},null,null,null,null,"hRes,RW",{"$f":"IF(SUM(E22:E25)>E30,E30-SUM(P22:P24),E25)","v":0},{"$f":"4*P25/(PI()*($E$7/100)^2)*100","v":{"$error":"#DIV/0!"}},{"$f":"P25/($E$8*$E$9/10000)*100","v":0},{"$f":"P25/E10*100","v":0}]
["Gesamtvolumen",null,null,"VGes",{"$f":"SUM(E22:E25)","v":0},"m3"]
[]
["Zus. Reservevolumen",null,null,"Vres,RW",null,"m3","Zusätzliches Reservevolumen ausserhalb Pumpschacht"]
[null,null,null,null,null,null,"(z.B. separater Schacht, Überfluten Tiefgarage, etc.)"]
["Gesamtvolumen Schacht",null,null,"VPumpschacht",{"$f":"E26-E28","v":0},"m3"]
[]
["Schachtdaten"]
["Reservehöhe Regenabwasser",null,null,"HRes,RW",{"$f":"H12-H17","v":0.05},"m",null,{"$f":"IF(E33=\"\",\"\",H$12-E33)","v":-0.05},{"$f":"IF(H33=\"\",\"\",\" m ü. M\")","v":" m ü. M"}]
["Reservehöhe",null,null,"Hres",{"$f":"H25/100+E33","v":{"$error":"#DIV/0!"}},"m",null,{"$f":"IF(E34=\"\",\"\",H$12-E34)","v":{"$error":"#DIV/0!"}},{"$error":"#DIV/0!"}]
["Nutzhöhe",null,null,"HN",{"$f":"H24/100+E34","v":{"$error":"#DIV/0!"}},"m",null,{"$f":"IF(E35=\"\",\"\",H$12-E35)","v":{"$error":"#DIV/0!"}},{"$error":"#DIV/0!"},{"$f":"IF(H35<MIN(H13:H15),\"\",\"Nutzvolumen muss unter dem tiefsten Einlauf liegen!\")","v":{"$error":"#DIV/0!"}}]
["Pumpensumpf",null,null,"HSU",{"$f":"H23/100+E35","v":{"$error":"#DIV/0!"}},"m",null,{"$f":"IF(E36=\"\",\"\",H$12-E36)","v":{"$error":"#DIV/0!"}},{"$error":"#DIV/0!"},{"$f":"IF(H35<MIN(H13:H15),\"\",\"zusätzliches Reservevolumen reduzieren oder Wasserspiegel herabsetzen\")","v":{"$error":"#DIV/0!"}}]
["Sohle / Schachttiefe",null,null,"S resp. T",{"$f":"H22/100+E36","v":{"$error":"#DIV/0!"}},"m",null,{"$f":"IF(E37=\"\",\"\",H$12-E37)","v":{"$error":"#DIV/0!"}},{"$error":"#DIV/0!"}]
[]
["max. Förderhöhe",null,null,"HF,max",null,null,null,null," m ü. M"]
["Geodätische Höhe",null,null,"Hgeod",{"$f":"IFERROR(H39-H36,\"\")","v":""},"m"]
[]
[]
[]
[]
[]
[]
[]
[]
[]
[]
[]
[]
[]
[]
[null,null,null,null,null,null,null,null,null,"Abmessungen Schacht",null,{"$f":"IF(E6=\"rund\",\"NW \"&E7&\" cm\",IF(E6=\"rechteck\",E8&\" x \"&E9&\" cm\",E10&\" m2\"))","v":"NW  cm"}]
[null,null,null,null,null,null,null,null,null,"Schachttiefe",null,{"$f":"ROUND(E37,2)&\" m\"","v":{"$error":"#DIV/0!"}}]

{"sheet":"F31","index":20,"n_rows":58,"n_cols":23,"rows_kept":58,"cut":false,"hidden":false,"merged":[[24,0,24,3],[13,0,13,3],[14,0,14,3],[15,0,15,3],[16,0,16,3],[17,0,17,3],[18,0,18,3],[19,0,19,3],[20,0,20,3],[21,0,21,3],[22,0,22,3],[23,0,23,3],[36,0,36,3],[25,0,25,3],[26,0,26,3],[27,0,27,3],[28,0,28,3],[29,0,29,3],[30,0,30,3],[31,0,31,3],[32,0,32,3],[33,0,33,3],[34,0,34,3],[35,0,35,3],[37,0,37,3],[38,0,38,3],[39,0,39,3],[40,0,40,3],[41,0,41,3]]}
[{"$f":"\"F\"&O1&\".1\"","v":"F3.1"},{"$f":"\"Dimensionierung Abwasserhebeanlage \"&O1","v":"Dimensionierung Abwasserhebeanlage 3"},null,null,null,null,null,null,null,null,null,null,null,"Anlage",3,{"$f":"ROW(A47)","v":47}]
[null,"Liegenschaftsentwässerung",null,null,null,null,null,null,null,null,null,null,null,null,null,{"$f":"ROW(D52)","v":52}]
[]
[]
[]
[]
[]
[]
[]
[null,null,"Abflusskennzahl   K =",{"$f":"'B4'!E11","v":0.5},"-"]
[null,null,"Sicherheitsfaktor  SF =",{"$f":"'B21'!D19","v":1},"-"]
[]
["Tabelle 1: Schmutzwasserabfluss QSW DU-Werte in Abwasserhebeanlage",null,null,null,null,null,null,null,"Nicht verwendete Zeilen ausblenden bzw. alle Zeilen wieder einblenden"]
["Entwässerungsgegenstand",null,null,null,"Schmutz-wasserwert\nDU [l/s]","Anzahl","Total\nDU [l/s]",null,null,null,null,null,null,null,null,"min DU"]
["Urinal wasserlos",null,null,null,0.1,null,{"$f":"E15*F15","v":0},null,null,null,null,null,null,null,null,{"$f":"IF(F15=\"\",\"\",E15)","v":""},{"$f":"IF(F15=\"\",\"\",1)","v":""}]
["Standurinal pro Person",null,null,null,0.2,null,{"$f":"E16*F16","v":0},null,null,null,null,null,null,null,null,{"$f":"IF(F16=\"\",\"\",E16)","v":""},""]
["Waschtisch, Wandbecken, Bidet",null,null,null,0.5,null,0,null,null,null,null,null,null,null,null,"","",null,null,null,null,null,{"$f":"IF(Q17=\"\",\"\",P17)","v":""}]
["Urinal mit Druckspüler",null,null,null,0.5,null,0,null,null,null,null,null,null,null,null,"","",null,null,null,null,null,{"$f":"IF(Q18=\"\",\"\",P18)","v":""}]
["Schulwandbrunnen",null,null,null,0.5,null,0,null,null,null,null,null,null,null,null,"","",null,null,null,null,null,""]
["Waschrinne mit 3 Entnahmestellen",null,null,null,0.5,null,0,null,null,null,null,null,null,null,null,"","",null,null,null,null,null,""]
["Wäschezentrifuge bis 10 kg",null,null,null,0.5,null,0,null,null,null,null,null,null,null,null,"","",null,null,null,null,null,""]
["Dusche nicht staubar",null,null,null,0.6,null,0,null,null,null,null,null,null,null,null,"","",null,null,null,null,null,""]
["Bodenablauf DN 50",null,null,null,0.8,null,0,null,null,null,null,null,null,null,null,"","",null,null,null,null,null,""]
["Dusche staubar",null,null,null,0.8,null,0,null,null,null,null,null,null,null,null,"","",null,null,null,null,null,""]
["Urinal mit Spülkasten",null,null,null,0.8,null,0,null,null,null,null,null,null,null,null,"","",null,null,null,null,null,""]
["Badewanne",null,null,null,0.8,null,0,null,null,null,null,null,null,null,null,"","",null,null,null,null,null,""]
["Waschrinne 4-10 Entnahmestellen",null,null,null,0.8,null,0,null,null,null,null,null,null,null,null,"","",null,null,null,null,null,""]
["Wandausgussbecken, Spültisch 1- und 2-fach",null,null,null,0.8,null,0,null,null,null,null,null,null,null,null,"","",null,null,null,null,null,""]
["Waschfontäne 6-10 Entnahmestellen",null,null,null,0.8,null,0,null,null,null,null,null,null,null,null,"",""]
["Waschtrog, Geschirrspülmaschine Haushalt",null,null,null,0.8,null,0,null,null,null,null,null,null,null,null,"",""]
["Waschmaschine bis 6kg",null,null,null,0.8,null,0,null,null,null,null,null,null,null,null,"",""]
["Bodenablauf DN 56",null,null,null,1,null,0,null,null,null,null,null,null,null,null,"",""]
["Waschmaschine 7-12 kg",null,null,null,1.5,null,0,null,null,null,null,null,null,null,null,"",""]
["Geschirrspülmaschine Gewerbe",null,null,null,1.5,null,0,null,null,null,null,null,null,null,null,"",""]
["Bodenablauf DN 70",null,null,null,1.5,null,0,null,null,null,null,null,null,null,null,"",""]
["Klosettanlage 6l oder 7.5l Spülwassermenge",null,null,null,2,null,0,null,null,null,null,null,null,null,null,"",""]
["Klosettanlage 9l Spülwassermenge",null,null,null,2,null,0,null,null,null,null,null,null,null,null,"",""]
["Stand-/Wandausguss (Fäkalien/Putzwasser)",null,null,null,2.5,null,0,null,null,null,null,null,null,null,null,"",""]
["Waschmaschine 13-40 kg",null,null,null,2.5,null,0,null,null,null,null,null,null,null,null,"",""]
["Steckbeckenapparat",null,null,null,2.5,null,0,null,null,null,null,null,null,null,null,"",""]
["Bodenablauf DN 100",null,null,null,2.5,null,0,null,null,null,null,null,null,null,null,"",""]
["Grosswanne, Saunatauchbecken",null,null,null,2.5,null,0,null,null,null,null,null,null,null,null,"",""]
["Summe DU",null,null,null,null,null,{"$f":"SUM(G15:G42)","v":0}]
[]
["Tabelle 2: Regenwasserabfluss QRW in Abwasserhebeanlage",null,null,null,null,null,null,null,"Neue Zeilen in die entsprechend vorbereiteten Tabellen einfügen bzw. löschen"]
[null,null,null,"Fläche","yH","Fred","Abfluss"]
["Nr.","Art der Fläche bzw. Entwässerung","Teilfläche","[m2]","[-]","[m2]","[l/s]"]
["Nr.","Bezeichnung","Teilfläche","Fläche","C","Fred","Abfluss"]
[null,null,null,null,{"$f":"IF(RW_PS_17[[#This Row],[Fläche]]=\"\",\"\",VLOOKUP(RW_PS_17[[#This Row],[Teilfläche]],Codes!$B$2:$E$24,4,FALSE))","v":""},{"$f":"IF(RW_PS_17[[#This Row],[Fläche]]=\"\",\"\",RW_PS_17[[#This Row],[C]]*RW_PS_17[[#This Row],[Fläche]])","v":""},{"$f":"IF(RW_PS_17[[#This Row],[Fläche]]=\"\",\"\",RW_PS_17[[#This Row],[Fred]]*'B21'!$D$18*$D$11)","v":""}]
[null,null,null,null,{"$f":"IF(RW_PS_17[[#This Row],[Fläche]]=\"\",\"\",VLOOKUP(RW_PS_17[[#This Row],[Teilfläche]],Codes!$B$2:$E$24,4,FALSE))","v":""},{"$f":"IF(RW_PS_17[[#This Row],[Fläche]]=\"\",\"\",RW_PS_17[[#This Row],[C]]*RW_PS_17[[#This Row],[Fläche]])","v":""},{"$f":"IF(RW_PS_17[[#This Row],[Fläche]]=\"\",\"\",RW_PS_17[[#This Row],[Fred]]*'B21'!$D$18*$D$11)","v":""}]
[null,null,null,null,{"$f":"IF(RW_PS_17[[#This Row],[Fläche]]=\"\",\"\",VLOOKUP(RW_PS_17[[#This Row],[Teilfläche]],Codes!$B$2:$E$24,4,FALSE))","v":""},{"$f":"IF(RW_PS_17[[#This Row],[Fläche]]=\"\",\"\",RW_PS_17[[#This Row],[C]]*RW_PS_17[[#This Row],[Fläche]])","v":""},{"$f":"IF(RW_PS_17[[#This Row],[Fläche]]=\"\",\"\",RW_PS_17[[#This Row],[Fred]]*'B21'!$D$18*$D$11)","v":""}]
[null,null,"Total",{"$f":"SUM(D49:D51)","v":0},null,{"$f":"SUM(F49:F51)","v":0},{"$f":"SUM(G49:G51)","v":0}]
[{"$f":"IF(D52>30,\"Beregnete Fläche > 30m2; Empfehlung: Anordnung Pumpschacht ausserhalb Gebäude (SN 590'000, 8.8.1)\",\"\")","v":""}]
["Bemessungsabfluss"]
["Schmutzwasserabfluss",null,null,null,null,null,null,null,null,null,null,null,null,null,null,"QSW",{"$f":"IF(D10*SQRT(G43)<MAX(P15:P42),MAX(P15:P42),D10*SQRT(G43))","v":0},"l/s",{"$f":"IF(D10*SQRT(G43)<MAX(P15:P42),\"Der Schmutzwasserabfluss muss mindestens der Leistung des grössten Entwässerungsgegenstands entsprechen.\",\"\")","v":""}]
["Regenwasserabfluss",null,null,null,null,null,null,null,null,null,null,null,null,null,null,"QRW",{"$f":"G52","v":0},"l/s"]
["Dauerabfluss",null,null,null,null,null,null,null,"Dauerabfluss","QDA",null,"l/s",null,null,null,"QDA",{"$f":"K57","v":0},"l/s"]
["Gesamtabfluss/Bemessungsabfluss",null,null,null,null,null,null,null,null,null,null,null,null,null,null,"Qbem",{"$f":"SUM(Q55:Q57)","v":0},"l/s"]

{"sheet":"F32","index":21,"n_rows":56,"n_cols":21,"rows_kept":56,"cut":false,"hidden":false,"merged":[]}
[{"$f":"\"F\"&U1&\".1\"","v":"F3.1"},{"$f":"\"Dimensionierung Abwasserhebeanlage \"&U1","v":"Dimensionierung Abwasserhebeanlage 3"},null,null,null,null,null,null,null,null,null,null,null,null,null,null,null,null,null,"Anlage",3]
[null,"Liegenschaftsentwässerung"]
[]
["Dimensionierung Pumpenschacht"]
[]
["Schachtwahl (Grundriss Schacht)",null,null,null,{"$f":"INDEX(Codes!B210:B212,O6,1)","v":"rund"},null,null,null,null,null,null,null,null,null,1]
["Nennweite kreisrunder Schacht",null,null,"NW",null,"cm"]
["Länge rechteckiger Schacht",null,null,"L",100,"cm"]
["Breite rechteckiger Schacht",null,null,"B",100,"cm"]
["Querschnittsfläche Freifläche",null,null,"A",2,"m2"]
[]
["Deckel",null,null,"D",0,"m",null,null,{"$f":"IF(H12=\"\",\"\",\" m ü. M\")","v":""}]
["Einlauf 1",null,null,"E1",null,"m",null,{"$f":"IF(E13=\"\",\"\",H$12-E13)","v":""},{"$f":"IF(H13=\"\",\"\",\" m ü. M\")","v":""},{"$f":"IF(H13=MIN(H$13:H$15),\"massgebender Einlauf für Wasserspiegel\",\"\")","v":""}]
["Einlauf 2",null,null,"E2",null,"m",null,{"$f":"IF(E14=\"\",\"\",H$12-E14)","v":""},{"$f":"IF(H14=\"\",\"\",\" m ü. M\")","v":""},{"$f":"IF(H14=MIN(H$13:H$15),\"massgebender Einlauf für Wasserspiegel\",\"\")","v":""}]
["Einlauf 3",null,null,"E3",null,"m",null,{"$f":"IF(E15=\"\",\"\",H$12-E15)","v":""},{"$f":"IF(H15=\"\",\"\",\" m ü. M\")","v":""},""]
[]
[{"$f":"INDEX(O18:O19,S17,1)","v":"Wasserspiegel: 5 cm unter tiefstem Einlauf (Standard)"},null,null,null,null,null,null,{"$f":"S18","v":-0.05},{"$f":"IF(H17=\"\",\"\",\" m ü. M\")","v":" m ü. M"},{"$f":"IF(H17>H12,\"Wasserspiegel kann nicht höher als Deckel sein\",\"\")","v":""},null,null,null,null,null,null,null,null,1]
["Abstand:   Deckel - WSP",null,null,null,null,null,"h1 =",{"$f":"H12-H17","v":0.05},"m",null,null,null,null,null,"Wasserspiegel: 5 cm unter tiefstem Einlauf (Standard)",null,null,null,{"$f":"MIN(H13:H15)-0.05","v":-0.05}]
["Abstand:   WSP - tiefster Einlauf",null,null,null,null,null,"h2 =",{"$f":"H17-MIN(H13:H15)","v":-0.05},"m",{"$f":"IF(H19>0,\"Rückstauebene liegt über Einlauf\",\"\")","v":""},null,null,null,null,"Wasserspiegel: manuell (separater Nachweis erforderlich)"]
[]
["Erforderliches Volumen",null,null,null,null,null,null,null,null,null,null,null,null,null,null,null,"rund","rechteck","frei"]
["Pumpemsumpf",null,null,"VSU",{"$f":"HLOOKUP($E$6,$Q$21:$S$25,2,FALSE)","v":0},"m3","hSU",null,"cm",null,null,null,null,null,"VSU",{"$f":"E22","v":0},{"$f":"$E$7^2*PI()/4*$H$22/1000/1000","v":0},{"$f":"$E$8*$E$9*$H$22/1000/1000","v":0},{"$f":"E10*H22/100","v":0}]
["Nutzvolumen",null,null,"VN",{"$f":"60*'F31'!Q$58/1000","v":0},"m3","hN",{"$f":"HLOOKUP($E$6,$Q$21:$S$25,3,FALSE)","v":{"$error":"#DIV/0!"}},"cm",null,null,null,null,null,"hN",{"$f":"E23","v":0},{"$f":"4*P23/(PI()*($E$7/100)^2)*100","v":{"$error":"#DIV/0!"}},{"$f":"P23/($E$8*$E$9/10000)*100","v":0},{"$f":"P23/E10*100","v":0}]
["Reservevolumen",null,null,"Vres",{"$f":"2*E23","v":0},"m3","hRes",{"$f":"HLOOKUP($E$6,$Q$21:$S$25,4,FALSE)","v":{"$error":"#DIV/0!"}},"cm",{"$f":"IF(E24=P24,\"\",\"zusätzliches Reservevolumen berücksichtigt\")","v":""},null,null,null,null,"hRes",{"$f":"IF(SUM(E22:E24)>E30,E30-SUM(P22:P23),E24)","v":0},{"$f":"4*P24/(PI()*($E$7/100)^2)*100","v":{"$error":"#DIV/0!"}},{"$f":"P24/($E$8*$E$9/10000)*100","v":0},{"$f":"P24/E10*100","v":0}]
["Reservevolumen RW",null,null,"Vres,RW",{"$f":"'F31'!D52*50/1000","v":0},"m3","hRes,RW",{"$f":"HLOOKUP($E$6,$Q$21:$S$25,5,FALSE)","v":{"$error":"#DIV/0!"}},"cm",{"$f":"IF(E25=P25,\"\",\"zusätzliches Reservevolumen berücksichtigt\")","v":""},null,null,null,null,"hRes,RW",{"$f":"IF(SUM(E22:E25)>E30,E30-SUM(P22:P24),E25)","v":0},{"$f":"4*P25/(PI()*($E$7/100)^2)*100","v":{"$error":"#DIV/0!"}},{"$f":"P25/($E$8*$E$9/10000)*100","v":0},{"$f":"P25/E10*100","v":0}]
["Gesamtvolumen",null,null,"VGes",{"$f":"SUM(E22:E25)","v":0},"m3"]
[]
["Zus. Reservevolumen",null,null,"Vres,RW",null,"m3","Zusätzliches Reservevolumen ausserhalb Pumpschacht"]
[null,null,null,null,null,null,"(z.B. separater Schacht, Überfluten Tiefgarage, etc.)"]
["Gesamtvolumen Schacht",null,null,"VPumpschacht",{"$f":"E26-E28","v":0},"m3"]
[]
["Schachtdaten"]
["Reservehöhe Regenabwasser",null,null,"HRes,RW",{"$f":"H12-H17","v":0.05},"m",null,{"$f":"IF(E33=\"\",\"\",H$12-E33)","v":-0.05},{"$f":"IF(H33=\"\",\"\",\" m ü. M\")","v":" m ü. M"}]
["Reservehöhe",null,null,"Hres",{"$f":"H25/100+E33","v":{"$error":"#DIV/0!"}},"m",null,{"$f":"IF(E34=\"\",\"\",H$12-E34)","v":{"$error":"#DIV/0!"}},{"$error":"#DIV/0!"}]
["Nutzhöhe",null,null,"HN",{"$f":"H24/100+E34","v":{"$error":"#DIV/0!"}},"m",null,{"$f":"IF(E35=\"\",\"\",H$12-E35)","v":{"$error":"#DIV/0!"}},{"$error":"#DIV/0!"},{"$f":"IF(H35<MIN(H13:H15),\"\",\"Nutzvolumen muss unter dem tiefsten Einlauf liegen!\")","v":{"$error":"#DIV/0!"}}]
["Pumpensumpf",null,null,"HSU",{"$f":"H23/100+E35","v":{"$error":"#DIV/0!"}},"m",null,{"$f":"IF(E36=\"\",\"\",H$12-E36)","v":{"$error":"#DIV/0!"}},{"$error":"#DIV/0!"},{"$f":"IF(H35<MIN(H13:H15),\"\",\"zusätzliches Reservevolumen reduzieren oder Wasserspiegel herabsetzen\")","v":{"$error":"#DIV/0!"}}]
["Sohle / Schachttiefe",null,null,"S resp. T",{"$f":"H22/100+E36","v":{"$error":"#DIV/0!"}},"m",null,{"$f":"IF(E37=\"\",\"\",H$12-E37)","v":{"$error":"#DIV/0!"}},{"$error":"#DIV/0!"}]
[]
["max. Förderhöhe",null,null,"HF,max",null,null,null,null," m ü. M"]
["Geodätische Höhe",null,null,"Hgeod",{"$f":"IFERROR(H39-H36,\"\")","v":""},"m"]
[]
[]
[]
[]
[]
[]
[]
[]
[]
[]
[]
[]
[]
[]
[null,null,null,null,null,null,null,null,null,"Abmessungen Schacht",null,{"$f":"IF(E6=\"rund\",\"NW \"&E7&\" cm\",IF(E6=\"rechteck\",E8&\" x \"&E9&\" cm\",E10&\" m2\"))","v":"NW  cm"}]
[null,null,null,null,null,null,null,null,null,"Schachttiefe",null,{"$f":"ROUND(E37,2)&\" m\"","v":{"$error":"#DIV/0!"}}]

{"sheet":"Codes","index":22,"n_rows":238,"n_cols":15,"rows_kept":238,"cut":false,"hidden":true,"merged":[[228,1,228,2],[219,1,219,3],[222,4,222,5],[222,6,222,7],[222,8,222,10],[225,1,225,3],[224,1,224,3],[223,1,223,3],[222,1,222,3],[218,1,218,3],[222,11,222,13],[217,11,217,13],[217,4,217,5],[217,8,217,10],[217,6,217,7]]}
[null,"Abflussbeiwert",null,null,null,"Art"]
[]
[null,"Schräg- u. Flachdächer befestigt",null,null,0.9,"DW"]
[null,"Flachdach bekiest",null,null,0.8,"DW"]
[null,"Flachdach humusiert (d > 50 cm)",null,null,0.1,"DW"]
[null,"Flachdach humusiert (d = 25-50 cm)",null,null,0.2,"DW"]
[null,"Flachdach humusiert (d = 10-25 cm)",null,null,0.4,"DW"]
[null,"Flachdach humusiert (d < 10 cm)",null,null,0.7,"DW"]
[null,"Technische Dachretention",null,null,{"$f":"'B21'!N35","v":0},"DW"]
[]
[null,"Hartbeläge undurchlässig",null,null,0.9,"PW"]
[null,"Hartbeläge durchlässig (Sickerbelag)",null,null,0.6,"PW"]
[null,"Kiesbelag",null,null,0.6,"PW"]
[null,"Pflaster mit Fugenverschluss",null,null,0.8,"PW"]
[null,"Pflaster mit normalen Sandfugen",null,null,0.6,"PW"]
[null,"Pflaster mit Splitt-/Rasenfugen",null,null,0.4,"PW"]
[null,"Pflaster mit Sickersteinen ",null,null,0.2,"PW"]
[null,"Pflaster mit Rasengittersteinen",null,null,0.2,"PW"]
[null,"Gartenplatten mit Splitt- / Sandfugen",null,null,0.6,"PW"]
[]
[null,"Parkanlagen und Vegetationsschichten",null,null,0.1]
[null,"Wiese, Acker",null,null,0.1]
[null,"Bestockte Flächen",null,null,0.05]
[null,"Gewässer",null,null,1]
[]
[]
[null,"Entwässerungssystem"]
[null,"Mischsystem",null,null,null,"Schmutz- und Regenwasser im gleichen Kanal"]
[null,"Trennsystem",null,null,null,"Schmutz- und Regenwasser in getrenntem Kanal"]
[null,"Teil-Trennsystem",null,null,null,"Trennsystem mit verschmutztem RW in MW"]
[]
[]
[]
[null,"Versickerungsmöglichkeit"]
[null,"Blau:   gut",null,"> 10","Blau:   gut   (> 10 l/min m2)",null,null,1]
[null,"Grün:   mässig gut",null,"2 - 10","Grün:   mässig gut   (2 - 10 l/min m2)",null,null,1]
[null,"Gelb:   schlecht",null,"0.5 - 2.0","Gelb:   schlecht   (0.5 - 2.0 l/min m2)",null,null,1]
[null,"Braun:   sehr schlecht",null,"< 0.5","Braun:   sehr schlecht   < 0.5 l/min",null,null,0]
[null,"verboten",null,null,"verboten",null,null,0]
[]
[]
[null,"Gewässerschutzbereich"]
[null,"übrige Bereiche üB",null,3]
[null,"Bereich Au",null,4]
[null,"Zone S3",null,5]
[null,"Zone S1 oder S2",null,6]
[null,"Schutzareal"]
[]
[]
[null,"Sickerfähigkeit"]
[null,"geschätzt (ZB Versickerung)"]
[null,"aus Sickerversuch"]
[]
[]
[null,"Anlagentyp:"]
[]
[null,"Typ 1a:  flächige Versickerung",null,null,null,null,null,null,"Typ 1a"]
[null,"Typ 1b:  humusierte Mulde",null,null,null,null,null,null,"Typ 1b"]
[null,"Typ 2:    Kieskörper",null,null,null,1,32,45,"Typ 2",{"$f":"'D11'!$E$10-'D11'!$E$36","v":0},{"$f":"'D12'!$E$10-'D12'!$E$36","v":0},{"$f":"'D13'!$E$10-'D13'!$E$36","v":0},false,{"$f":"IF('D12'!$P$17=$F59,1,0)","v":1},{"$f":"IF('D13'!$P$17=$F59,1,0)","v":1}]
[null,"Typ 3a:  Versickerungsschacht",null,null,null,2,19,31,"Typ 3a",{"$f":"'D11'!$E$10-'D11'!$E$22","v":0},{"$f":"'D12'!$E$10-'D12'!$E$22","v":0},{"$f":"'D13'!$E$10-'D13'!$E$22","v":0},{"$f":"IF('D11'!$P$17=$F60,1,0)","v":0},{"$f":"IF('D12'!$P$17=$F60,1,0)","v":0},{"$f":"IF('D13'!$P$17=$F60,1,0)","v":0}]
[null,"Typ 3b:  Versickerungsgalerie /-strang",null,null,null,3,32,45,"Typ 3b",{"$f":"'D11'!$E$10-'D11'!$E$36","v":0},{"$f":"'D12'!$E$10-'D12'!$E$36","v":0},{"$f":"'D13'!$E$10-'D13'!$E$36","v":0},{"$f":"IF('D11'!$P$17=$F61,1,0)","v":0},{"$f":"IF('D12'!$P$17=$F61,1,0)","v":0},{"$f":"IF('D13'!$P$17=$F61,1,0)","v":0}]
[null,"Typ 3c:  Kombinierte Anlage Schacht / Strang",null,null,null,4,46,63,"Typ 3c",{"$f":"'D11'!$E$10-'D11'!$E$50","v":0},{"$f":"'D12'!$E$10-'D12'!$E$50","v":0},{"$f":"'D13'!$E$10-'D13'!$E$50","v":0},{"$f":"IF('D11'!$P$17=$F62,1,0)","v":0},{"$f":"IF('D12'!$P$17=$F62,1,0)","v":0},{"$f":"IF('D13'!$P$17=$F62,1,0)","v":0}]
[null,"Typ 3d:  Versickerungskörbe",null,null,null,5,64,81,"Typ 3d"]
[null,"Typ 4:    Retentionsfilterbecken",null,null,null,null,null,null,"Typ 4"]
[null,"Typ 5:    Schluckbrunnen"]
[]
[]
[null,"Art der zu versickernden Fläche"]
[null,"Ziegeldächer, Inerte Dachflächen und Gründächer",null,null,null,"gering","B, P","B, P","B"]
[null,"Dachflächen mit beschichtetem Metall",null,null,null,"gering","B, P","B, P","B"]
[null,"Dachflächen mit unbeschichtetem Metall < 20 m2",null,null,null,"mittel","B, P","B, P","B"]
[null,"Dachflächen mit unbeschichtetem Metall < 50 m2",null,null,null,"mittel-hoch","B, T","B, T","-"]
[null,"Dachflächen mit unbeschichtetem Metall > 50 m2",null,null,null,"hoch","B","T","-"]
[]
[null,"Private, wenig frequentierte Plätze",null,null,null,"gering","B, F, P*","B, F","-"]
[null,"stark frequentierte Parkplätze",null,null,null,"mittel","B, F","B, F*","-"]
[null,"wenig befahrene Verbindungsstrasse",null,null,null,"mittel","B, F","B, F*","-"]
[null,"Umschlagplätze ohne Haverierisiko",null,null,null,"mittel","B, F","B, F*","-"]
[null,"stark befahrene Verbindungsstrassen",null,null,null,"hoch","B","B","-"]
[null,"Hauptverkehrsstrassen",null,null,null,"hoch","B","B","-"]
[null,"Umschlagplätze mit Haverierisiko",null,null,null,"Risiko","-","-","-"]
[]
[]
[null,"Zulässigkeit Versickerung"]
[null,"-","-"]
[null,"B","1, 4"]
[null,"B, F","1, 4"]
[null,"B, F*","1, 4"]
[null,"B, F, P*","1, 2*, 3*, 4"]
[null,"B, P","1, 2, 3, 4"]
[null,"B, T","1, 4, Absorb."]
[null,"T","Absorb."]
[]
[]
[null,"Art der zu entwässernden Fläche"]
[null,"Ziegeldächer, Inerte Dachflächen und Gründächer",null,null,null,"gering","oB"]
[null,"Dachflächen mit beschichtetem Metall",null,null,null,"gering","oB"]
[null,"Dachflächen mit unbeschichtetem Metall < 500 m2",null,null,null,"mittel","oB"]
[null,"Dachflächen mit unbeschichtetem Metall > 500 m2",null,null,null,"hoch","t"]
[null,"Terrassen, etc.",null,null,null,"Risiko","-"]
[]
[null,"Private, wenig frequentierte Plätze",null,null,null,"gering","oB"]
[null,"Wege, Strassen ohne Autowäsche",null,null,null,"gering","oB"]
[null,"Lagerplätze ohne Haverierisiko",null,null,null,"gering","oB"]
[null,"Umschlagplätze ohne Haverierisiko",null,null,null,"mittel","B*"]
[null,"stark frequentierte Parkplätze",null,null,null,"mittel","B*"]
[null,"wenig befahrene Verbindungsstrasse",null,null,null,"mittel","B*"]
[null,"stark befahrene Verbindungsstrassen",null,null,null,"hoch","B"]
[null,"Hauptverkehrsstrassen",null,null,null,"hoch","B"]
[null,"Umschlagplätze mit Haverierisiko",null,null,null,"Risiko","-"]
[]
[]
[null,"Art des Vorfluters"]
[null,"sehr kleiner Bach",null,"weniger als 3 l/s",null,"100 m2  "]
[null,"kleiner Bach",null,"3 bis 10 l/s",null,"300 m2  "]
[null,"mittlerer Bach",null,"10 bis 30 l/s",null,"1'000 m2  "]
[null,"grosser Bach",null,"mehr als 30 l/s",null,"2'000 m2  "]
[null,"stehendes Gewässer",null,"-",null,"300 m2  "]
[]
[]
[null,"Anforderungen Schlammsammler"]
[null,"Normale Anforderungen",null,30,"(min. 1.00 m)",1]
[null,"Erhöhte Anforderungen",null,120,"(min. 1.10 m)",1.1000000000000001]
[]
[]
[]
[]
[]
[]
[]
[]
[]
[]
[]
[]
[]
[]
[]
[]
[]
[]
[]
[]
[]
[]
[null,"Abflussbeiwerte",null,null,null,"ohne","mit"]
[null,{"$f":"IF(ROW()-141+Abflussbeiwerte!$B$1>Abflussbeiwerte!$B$2,\"\",INDEX(Abflussbeiwerte!$C$4:$H$149,ROW()-141+Abflussbeiwerte!$B$1,1))","v":"Reservezone Wohnzone B"},null,null,null,{"$f":"IF(ROW()-141+Abflussbeiwerte!$B$1>Abflussbeiwerte!$B$2,\"\",INDEX(Abflussbeiwerte!$C$4:$H$149,ROW()-141+Abflussbeiwerte!$B$1,5))","v":0.25},{"$f":"IF(ROW()-141+Abflussbeiwerte!$B$1>Abflussbeiwerte!$B$2,\"\",INDEX(Abflussbeiwerte!$C$4:$H$149,ROW()-141+Abflussbeiwerte!$B$1,6))","v":0.15}]
[null,{"$f":"IF(ROW()-141+Abflussbeiwerte!$B$1>Abflussbeiwerte!$B$2,\"\",INDEX(Abflussbeiwerte!$C$4:$H$149,ROW()-141+Abflussbeiwerte!$B$1,1))","v":"Reservezone Wohnzone C"},null,null,null,{"$f":"IF(ROW()-141+Abflussbeiwerte!$B$1>Abflussbeiwerte!$B$2,\"\",INDEX(Abflussbeiwerte!$C$4:$H$149,ROW()-141+Abflussbeiwerte!$B$1,5))","v":0.25},{"$f":"IF(ROW()-141+Abflussbeiwerte!$B$1>Abflussbeiwerte!$B$2,\"\",INDEX(Abflussbeiwerte!$C$4:$H$149,ROW()-141+Abflussbeiwerte!$B$1,6))","v":0.15}]
[null,{"$f":"IF(ROW()-141+Abflussbeiwerte!$B$1>Abflussbeiwerte!$B$2,\"\",INDEX(Abflussbeiwerte!$C$4:$H$149,ROW()-141+Abflussbeiwerte!$B$1,1))","v":"Zone für öffentliche Bauten und Anlagen"},null,null,null,{"$f":"IF(ROW()-141+Abflussbeiwerte!$B$1>Abflussbeiwerte!$B$2,\"\",INDEX(Abflussbeiwerte!$C$4:$H$149,ROW()-141+Abflussbeiwerte!$B$1,5))","v":0.4},{"$f":"IF(ROW()-141+Abflussbeiwerte!$B$1>Abflussbeiwerte!$B$2,\"\",INDEX(Abflussbeiwerte!$C$4:$H$149,ROW()-141+Abflussbeiwerte!$B$1,6))","v":0.25}]
[null,{"$f":"IF(ROW()-141+Abflussbeiwerte!$B$1>Abflussbeiwerte!$B$2,\"\",INDEX(Abflussbeiwerte!$C$4:$H$149,ROW()-141+Abflussbeiwerte!$B$1,1))","v":"Zone für Dienstleistungen und Gewerbe"},null,null,null,{"$f":"IF(ROW()-141+Abflussbeiwerte!$B$1>Abflussbeiwerte!$B$2,\"\",INDEX(Abflussbeiwerte!$C$4:$H$149,ROW()-141+Abflussbeiwerte!$B$1,5))","v":0.4},{"$f":"IF(ROW()-141+Abflussbeiwerte!$B$1>Abflussbeiwerte!$B$2,\"\",INDEX(Abflussbeiwerte!$C$4:$H$149,ROW()-141+Abflussbeiwerte!$B$1,6))","v":0.25}]
[null,{"$f":"IF(ROW()-141+Abflussbeiwerte!$B$1>Abflussbeiwerte!$B$2,\"\",INDEX(Abflussbeiwerte!$C$4:$H$149,ROW()-141+Abflussbeiwerte!$B$1,1))","v":"Gewerbezone Austrasse"},null,null,null,{"$f":"IF(ROW()-141+Abflussbeiwerte!$B$1>Abflussbeiwerte!$B$2,\"\",INDEX(Abflussbeiwerte!$C$4:$H$149,ROW()-141+Abflussbeiwerte!$B$1,5))","v":0.5},{"$f":"IF(ROW()-141+Abflussbeiwerte!$B$1>Abflussbeiwerte!$B$2,\"\",INDEX(Abflussbeiwerte!$C$4:$H$149,ROW()-141+Abflussbeiwerte!$B$1,6))","v":0.35}]
[null,{"$f":"IF(ROW()-141+Abflussbeiwerte!$B$1>Abflussbeiwerte!$B$2,\"\",INDEX(Abflussbeiwerte!$C$4:$H$149,ROW()-141+Abflussbeiwerte!$B$1,1))","v":"Gewerbezone Blumenau"},null,null,null,{"$f":"IF(ROW()-141+Abflussbeiwerte!$B$1>Abflussbeiwerte!$B$2,\"\",INDEX(Abflussbeiwerte!$C$4:$H$149,ROW()-141+Abflussbeiwerte!$B$1,5))","v":0.5},{"$f":"IF(ROW()-141+Abflussbeiwerte!$B$1>Abflussbeiwerte!$B$2,\"\",INDEX(Abflussbeiwerte!$C$4:$H$149,ROW()-141+Abflussbeiwerte!$B$1,6))","v":0.35}]
[null,{"$f":"IF(ROW()-141+Abflussbeiwerte!$B$1>Abflussbeiwerte!$B$2,\"\",INDEX(Abflussbeiwerte!$C$4:$H$149,ROW()-141+Abflussbeiwerte!$B$1,1))","v":"Gewerbezone Hoval"},null,null,null,{"$f":"IF(ROW()-141+Abflussbeiwerte!$B$1>Abflussbeiwerte!$B$2,\"\",INDEX(Abflussbeiwerte!$C$4:$H$149,ROW()-141+Abflussbeiwerte!$B$1,5))","v":0.5},{"$f":"IF(ROW()-141+Abflussbeiwerte!$B$1>Abflussbeiwerte!$B$2,\"\",INDEX(Abflussbeiwerte!$C$4:$H$149,ROW()-141+Abflussbeiwerte!$B$1,6))","v":0.35}]
[null,{"$f":"IF(ROW()-141+Abflussbeiwerte!$B$1>Abflussbeiwerte!$B$2,\"\",INDEX(Abflussbeiwerte!$C$4:$H$149,ROW()-141+Abflussbeiwerte!$B$1,1))","v":"Gewerbezone Neusand"},null,null,null,{"$f":"IF(ROW()-141+Abflussbeiwerte!$B$1>Abflussbeiwerte!$B$2,\"\",INDEX(Abflussbeiwerte!$C$4:$H$149,ROW()-141+Abflussbeiwerte!$B$1,5))","v":0.45},{"$f":"IF(ROW()-141+Abflussbeiwerte!$B$1>Abflussbeiwerte!$B$2,\"\",INDEX(Abflussbeiwerte!$C$4:$H$149,ROW()-141+Abflussbeiwerte!$B$1,6))","v":0.3}]
[null,{"$f":"IF(ROW()-141+Abflussbeiwerte!$B$1>Abflussbeiwerte!$B$2,\"\",INDEX(Abflussbeiwerte!$C$4:$H$149,ROW()-141+Abflussbeiwerte!$B$1,1))","v":"Übriges Gemeindegebiet (bebaut)"},null,null,null,null,null,null,{"$f":"IF(ROW()-141+Abflussbeiwerte!$B$1>Abflussbeiwerte!$B$2,\"\",INDEX(Abflussbeiwerte!$C$4:$H$149,ROW()-141+Abflussbeiwerte!$B$1,5))","v":0.25}]
[null,{"$f":"IF(ROW()-141+Abflussbeiwerte!$B$1>Abflussbeiwerte!$B$2,\"\",INDEX(Abflussbeiwerte!$C$4:$H$149,ROW()-141+Abflussbeiwerte!$B$1,1))","v":"Landwirtschaftszone (bebaut)"},null,null,null,null,null,null,{"$f":"IF(ROW()-141+Abflussbeiwerte!$B$1>Abflussbeiwerte!$B$2,\"\",INDEX(Abflussbeiwerte!$C$4:$H$149,ROW()-141+Abflussbeiwerte!$B$1,5))","v":0.2}]
[null,"Datum"]
[null,1,"Januar"]
[null,2,"Februar"]
[null,3,"März"]
[null,4,"April"]
[null,5,"Mai"]
[null,6,"Juni"]
[null,7,"Juli"]
[null,8,"August"]
[null,9,"September"]
[null,10,"Oktober"]
[null,11,"November"]
[null,12,"Dezember"]
[]
[]
[]
[]
[]
[]
[]
[]
[]
[]
[]
[]
[]
[]
[]
[]
[]
[]
[]
[]
[]
[null,"Versickerung-Anlage / Vorreinigung"]
[]
[null,"Anlage 1 / Vorreinigung 1",null,1,11]
[null,"Anlage 1 / Vorreinigung 2",null,1,12]
[null,"Anlage 1 / Vorreinigung 3",null,1,13]
[null,"---------------------------------------"]
[null,"Anlage 2 / Vorreinigung 1",null,2,21]
[null,"Anlage 2 / Vorreinigung 2",null,2,22]
[null,"Anlage 2 / Vorreinigung 3",null,2,23]
[null,"---------------------------------------"]
[null,"Anlage 3 / Vorreinigung 1",null,3,31]
[null,"Anlage 3 / Vorreinigung 2",null,3,32]
[null,"Anlage 3 / Vorreinigung 3",null,3,33]
[]
[]
[]
[]
[]
[null,"Pumpenschacht"]
[null,"rund"]
[null,"rechteck"]
[null,"frei"]
[]
[null,"Eingabe"]
[null,"Datei-Version:",null,"V01","2024-04-30"]
[null,"Speicherort:",null,{"$f":"LEFT(CELL(\"dateiname\"),SEARCH(\"[\",CELL(\"dateiname\"))-2)","v":"J:\\6000 Allgemeine Projekte\\6328 Liegenschaftsentwaess einh Handhab\\Dokumente 2024\\Definitve Dokumente (Bearbeitbar)\\Beilagen"}]
[]
[null,null,null,null,"Mischsystem",null,"Trennsystem",null,"Teil-Trennsystem ohne Versickerung",null,null,"Teil-Trennsystem mit Versickerung"]
[null,"Zuweisung Abflussbeiwerte (Zone)",null,null,"MS ohne VS","MS mit VS","TS ohne VS","TS mit VS","TTS ohne VS","Anteil MW","Anteil RW","TTS mit VS","Anteil MW","Anteil RW"]
[null,{"$f":"CONCATENATE(Eingabe!B16,\" - \",Eingabe!B25)","v":" - "},null,null,{"$f":"VLOOKUP($B$220,Abflussbeiwerte!$D$4:$M$145,4,FALSE)","v":0},{"$f":"VLOOKUP($B$220,Abflussbeiwerte!$D$4:$M$145,5,FALSE)","v":0},{"$f":"VLOOKUP($B$220,Abflussbeiwerte!$D$4:$M$145,6,FALSE)","v":0},{"$f":"VLOOKUP($B$220,Abflussbeiwerte!$D$4:$M$145,7,FALSE)","v":0},{"$f":"VLOOKUP($B$220,Abflussbeiwerte!$D$4:$P$145,8,FALSE)","v":0},{"$f":"VLOOKUP($B$220,Abflussbeiwerte!$D$4:$M$145,9,FALSE)","v":0},{"$f":"VLOOKUP($B$220,Abflussbeiwerte!$D$4:$M$145,10,FALSE)","v":0},{"$f":"VLOOKUP($B$220,Abflussbeiwerte!$D$4:$P$145,11,FALSE)","v":0},{"$f":"VLOOKUP($B$220,Abflussbeiwerte!$D$4:$O$145,12,FALSE)","v":0},{"$f":"VLOOKUP($B$220,Abflussbeiwerte!$D$4:$P$145,13,FALSE)","v":0}]
[null,null,null,null,null,{"$f":"IF(ROW()-141+Abflussbeiwerte!$B$1>Abflussbeiwerte!$B$2,\"\",INDEX(Abflussbeiwerte!$C$4:$H$149,ROW()-141+Abflussbeiwerte!$B$1,5))","v":0.2}]
[]
[null,"Abflussbeiwert (Berechnung)",null,null,"Mischsystem",null,"Trennsystem",null,"Teil-Trennsystem ohne Versickerung",null,null,"Teil-Trennsystem mit Versickerung"]
[null,"Gemeinde",null,null,"MS ohne VS","MS mit VS","TS ohne VS","TS mit VS","TTS ohne VS","Anteil MW","Anteil RW","TTS mit VS","Anteil MW","Anteil RW"]
[null,1,null,null,4,5,6,7,8,9,10,11,12,13]
[null,{"$f":"Eingabe!B16","v":0},null,null,{"$f":"IF('B21'!$C$4=$B226,E$220,\"\")","v":0},{"$f":"IF('B21'!$C$4=$B226,F$220,\"\")","v":0},{"$f":"IF('B21'!$C$4=$B226,G$220,\"\")","v":0},{"$f":"IF('B21'!$C$4=$B226,H$220,\"\")","v":0},{"$f":"IF(I220=\"a\",E226,IF(I220=\"i\",'B21'!U10,I220))","v":0},{"$f":"IFERROR(IF($J$220=\"a\",MIN(0.5*I226,'B21'!$D$24),IF(J220=\"i\",'B21'!$V$10,J220)),\"\")","v":0},{"$f":"IFERROR(IF($K$220=\"a\",I226-J226,IF(K220=\"i\",'B21'!$W$10,K220)),\"\")","v":0},{"$f":"IF(L220=\"a\",F226,IF(L220=\"i\",'B21'!T10,L220))","v":0},{"$f":"IFERROR(IF($M$220=\"a\",MIN(0.5*L226,'B21'!$D$24),IF(M220=\"i\",'B21'!$V$10,M220)),\"\")","v":0},{"$f":"IFERROR(IF($N$220=\"a\",L226-M226,IF(N220=\"i\",'B21'!$W$10,N220)),\"\")","v":0}]
[]
[]
[null,"Entw-Syst. - VS",null,"Zuweisung","Spalte"]
[null,"Mischsystem - Nein",null,"MS ohne VS",4]
[null,"Mischsystem - Ja",null,"MS mit VS",5]
[null,"Trennsystem - Nein",null,"TS ohne VS",6]
[null,"Trennsystem - Ja",null,"TS mit VS",7]
[null,"Teil-Trennsystem - Nein",null,"TTS ohne VS",8]
[null,"Teil-Trennsystem - Ja",null,"TTS mit VS",11]
[null,"Spaltenindex Gesamt",null,null,{"$f":"VLOOKUP(CONCATENATE('B21'!D10,\" - \",'B21'!D12),B230:E235,4,FALSE)","v":5}]
[null,"Spaltenindex MW",null,null,{"$f":"IF($E$236=$E$225,$E$225,IF($E$236=$F$225,$F$225,IF($E$236=$I$225,$J$225,IF($E$236=$L$225,$M$225,0))))","v":5}]
[null,"Spaltenindex RW",null,null,{"$f":"IF($E$236=$G$225,$G$225,IF($E$236=$H$225,$H$225,IF($E$236=$I$225,$K$225,IF($E$236=$L$225,$N$225,0))))","v":0}]

{"sheet":"Abflussbeiwerte","index":23,"n_rows":184,"n_cols":16,"rows_kept":184,"cut":false,"hidden":true,"merged":[[1,6,1,7],[1,8,1,9],[1,10,1,12],[1,13,1,15]]}
["MinID",{"$f":"MIN(A4:A149)","v":15},null,null,null,null,"Datum:","2006-01-01"]
["MaxID",{"$f":"MAX(A4:A149)","v":145},null,null,null,null,"Mischsystem",null,"Trennsystem",null,"Teil-Trennsystem ohne Versickerung",null,null,"Teil-Trennsystem mit Versickerung"]
["ID","Gemeinde","Zone","Code","Kürzel",null,"ohne VS","mit VS","ohne VS","mit VS","Gesamtabflussbeiwert","Anteil MW","Anteil RW","Gesamtabflussbeiwert","Anteil MW","Anteil RW"]
[{"$f":"IF(B4=Eingabe!$B$16,ROW()-3,\"\")","v":""},"Balzers","Kernzone ",{"$f":"B4&\" - \"&C4","v":"Balzers - Kernzone "},"K",null,0.4,0.25,0.4,null,"a","a","a","a","a","a"]
[{"$f":"IF(B5=Eingabe!$B$16,ROW()-3,\"\")","v":""},"Balzers","Dorfkernzone",{"$f":"B5&\" - \"&C5","v":"Balzers - Dorfkernzone"},"DK",null,0.4,0.25,0.4,0.25,"a","a","a","a","a","a"]
[{"$f":"IF(B6=Eingabe!$B$16,ROW()-3,\"\")","v":""},"Balzers","Dorfzone","Balzers - Dorfzone","D",null,0.4,0.25,0.4,0.25,"a","a","a","a","a","a"]
[{"$f":"IF(B7=Eingabe!$B$16,ROW()-3,\"\")","v":""},"Balzers","Wohnzone A","Balzers - Wohnzone A","A",null,0.3,0.15,0.3,0.15,"a","a","a","a","a","a"]
[{"$f":"IF(B8=Eingabe!$B$16,ROW()-3,\"\")","v":""},"Balzers","Wohnzone B","Balzers - Wohnzone B","B",null,0.25,0.15,0.25,0.15,"a","a","a","a","a","a"]
[{"$f":"IF(B9=Eingabe!$B$16,ROW()-3,\"\")","v":""},"Balzers","Wohnzone Allmeind","Balzers - Wohnzone Allmeind","WA",null,0.4,0.25,null,null,"a","a","a","a","a","a"]
[{"$f":"IF(B10=Eingabe!$B$16,ROW()-3,\"\")","v":""},"Balzers","Zone für öffentliche Bauten und Anlagen","Balzers - Zone für öffentliche Bauten und Anlagen","ÖBA",null,0.4,0.25,0.4,0.25,"a","a","a","a","a","a"]
[{"$f":"IF(B11=Eingabe!$B$16,ROW()-3,\"\")","v":""},"Balzers","Zone für öffentliche Anlagen","Balzers - Zone für öffentliche Anlagen","ÖA",null,0.4,0.25,null,null,"a","a","a","a","a","a"]
[{"$f":"IF(B12=Eingabe!$B$16,ROW()-3,\"\")","v":""},"Balzers","Zone für Energieversorgung","Balzers - Zone für Energieversorgung","EV",null,0.4,0.25,null,null,"a","a","a","a","a","a"]
[{"$f":"IF(B13=Eingabe!$B$16,ROW()-3,\"\")","v":""},"Balzers","Industrie-, Gewerbe- und Dienstleistungszone\n(Teil Neugrüt bestehend)","Balzers - Industrie-, Gewerbe- und Dienstleistungszone\n(Teil Neugrüt bestehend)","IGDL",null,0.75,null,0.75,null,"a","a","a"]
[{"$f":"IF(B14=Eingabe!$B$16,ROW()-3,\"\")","v":""},"Balzers","Industrie-, Gewerbe- und Dienstleistungszone\n(übrige Teile)","Balzers - Industrie-, Gewerbe- und Dienstleistungszone\n(übrige Teile)","IGDL",null,0.6,0.45,null,null,"a","a","a","a","a","a"]
[{"$f":"IF(B15=Eingabe!$B$16,ROW()-3,\"\")","v":""},"Balzers","Industrie- und Gewerbezone","Balzers - Industrie- und Gewerbezone","IG",null,0.6,0.45,null,null,"a","a","a","a","a","a"]
[{"$f":"IF(B16=Eingabe!$B$16,ROW()-3,\"\")","v":""},"Balzers","Landwirtschaftszone (bebaut)","Balzers - Landwirtschaftszone (bebaut)","LW1",null,0.2,0.15,null,0.15,"a","a","a","a","a","a"]
[{"$f":"IF(B17=Eingabe!$B$16,ROW()-3,\"\")","v":""},"Balzers","Übriges Gemeindegebiet (bebaut)","Balzers - Übriges Gemeindegebiet (bebaut)","ÜG",null,0.2,0.15,null,null,"a","a","a","a","a","a"]
[{"$f":"IF(B18=Eingabe!$B$16,ROW()-3,\"\")","v":15},null,null," - "]
[{"$f":"IF(B19=Eingabe!$B$16,ROW()-3,\"\")","v":""},"Triesen","Kernzone","Triesen - Kernzone","K",null,0.4,0.25,null,0.25,"a","a","a","a","a","a"]
[{"$f":"IF(B20=Eingabe!$B$16,ROW()-3,\"\")","v":""},"Triesen","Dorfkernzone","Triesen - Dorfkernzone","DK",null,0.4,0.25,null,null,"a","a","a","a","a","a"]
[{"$f":"IF(B21=Eingabe!$B$16,ROW()-3,\"\")","v":""},"Triesen","Wohnzone A","Triesen - Wohnzone A","A",null,0.3,0.15,null,0.15,"a","a","a","a","a","a"]
[{"$f":"IF(B22=Eingabe!$B$16,ROW()-3,\"\")","v":""},"Triesen","Wohnzone B","Triesen - Wohnzone B","B",null,0.25,0.15,null,null,"a","a","a","a","a","a"]
[{"$f":"IF(B23=Eingabe!$B$16,ROW()-3,\"\")","v":""},"Triesen","Wohnzone C","Triesen - Wohnzone C","C",null,0.25,0.15,0.25,0.15,"a","a","a","a","a","a"]
[{"$f":"IF(B24=Eingabe!$B$16,ROW()-3,\"\")","v":""},"Triesen","Reservezone Wohnzone B","Triesen - Reservezone Wohnzone B","RWB",null,0.25,0.15,null,null,"a","a","a","a","a","a"]
[{"$f":"IF(B25=Eingabe!$B$16,ROW()-3,\"\")","v":""},"Triesen","Reservezone Wohnzone C","Triesen - Reservezone Wohnzone C","RWC",null,0.25,0.15,null,null,"a","a","a","a","a","a"]
[{"$f":"IF(B26=Eingabe!$B$16,ROW()-3,\"\")","v":""},"Triesen","Zone für öffentliche Bauten und Anlagen","Triesen - Zone für öffentliche Bauten und Anlagen","ZÖBA",null,0.4,0.25,null,0.25,"a","a","a","a","a","a"]
[{"$f":"IF(B27=Eingabe!$B$16,ROW()-3,\"\")","v":""},"Triesen","Zone für Dienstleistungen und Gewerbe","Triesen - Zone für Dienstleistungen und Gewerbe","DG",null,0.4,0.25,null,0.25,"a","a","a","a","a","a"]
[{"$f":"IF(B28=Eingabe!$B$16,ROW()-3,\"\")","v":""},"Triesen","Gewerbezone Austrasse","Triesen - Gewerbezone Austrasse","GA",null,0.5,0.35,null,null,"a","a","a","a","a","a"]
[{"$f":"IF(B29=Eingabe!$B$16,ROW()-3,\"\")","v":""},"Triesen","Gewerbezone Blumenau","Triesen - Gewerbezone Blumenau","GB",null,0.5,0.35,null,0.35,"a","a","a","a","a","a"]
[{"$f":"IF(B30=Eingabe!$B$16,ROW()-3,\"\")","v":""},"Triesen","Gewerbezone Hoval","Triesen - Gewerbezone Hoval","GH",null,0.5,0.35,null,0.35,"a","a","a","a","a","a"]
[{"$f":"IF(B31=Eingabe!$B$16,ROW()-3,\"\")","v":""},"Triesen","Gewerbezone Neusand","Triesen - Gewerbezone Neusand","GN",null,0.45,0.3,null,null,"a","a","a","a","a","a"]
[{"$f":"IF(B32=Eingabe!$B$16,ROW()-3,\"\")","v":""},"Triesen","Übriges Gemeindegebiet (bebaut)","Triesen - Übriges Gemeindegebiet (bebaut)","UEG",null,0.25,0.15,null,0.15,"a","a","a","a","a","a"]
[{"$f":"IF(B33=Eingabe!$B$16,ROW()-3,\"\")","v":""},"Triesen","Landwirtschaftszone (bebaut)","Triesen - Landwirtschaftszone (bebaut)","LW",null,0.2,0.15,null,0.15,"a","a","a","a","a","a"]
[{"$f":"IF(B34=Eingabe!$B$16,ROW()-3,\"\")","v":31},null,null," - "]
[{"$f":"IF(B35=Eingabe!$B$16,ROW()-3,\"\")","v":""},"Triesenberg","Kernzone ","Triesenberg - Kernzone ","K",null,0.4,0.25,null,null,"a","a","a","a","a","a"]
[{"$f":"IF(B36=Eingabe!$B$16,ROW()-3,\"\")","v":""},"Triesenberg","Weilerkernzone","Triesenberg - Weilerkernzone","WK",null,0.25,0.15,null,null,"a","a","a","a","a","a"]
[{"$f":"IF(B37=Eingabe!$B$16,ROW()-3,\"\")","v":""},"Triesenberg","Wohnzone ","Triesenberg - Wohnzone ","WZ",null,0.25,0.15,0.25,0.15,"a","a","a","a","a","a"]
[{"$f":"IF(B38=Eingabe!$B$16,ROW()-3,\"\")","v":""},"Triesenberg","Wohnzone Masescha / ufem Bärg (Feriengebiet)","Triesenberg - Wohnzone Masescha / ufem Bärg (Feriengebiet)","W M/B",null,0.2,0.15,null,null,"a","a","a","a","a","a"]
[{"$f":"IF(B39=Eingabe!$B$16,ROW()-3,\"\")","v":""},"Triesenberg","Wohn- und Gewerbezone","Triesenberg - Wohn- und Gewerbezone","WG",null,0.3,0.15,0.3,0.15,"a","a","a","a","a","a"]
[{"$f":"IF(B40=Eingabe!$B$16,ROW()-3,\"\")","v":""},"Triesenberg","Wohnzone 2. Etappe","Triesenberg - Wohnzone 2. Etappe","WZ 2.E",null,0.25,0.15,0.25,0.15,"a","a","a","a","a","a"]
[{"$f":"IF(B41=Eingabe!$B$16,ROW()-3,\"\")","v":""},"Triesenberg","Zone für öffentliche Bauten und Anlagen","Triesenberg - Zone für öffentliche Bauten und Anlagen","ZöBA",null,0.4,0.25,0.4,0.25,"a","a","a","a","a","a"]
[{"$f":"IF(B42=Eingabe!$B$16,ROW()-3,\"\")","v":""},"Triesenberg","Übriges Gemeindegebiet (bebaut)","Triesenberg - Übriges Gemeindegebiet (bebaut)","ÜG",null,0.2,0.15,null,null,"a","a","a","a","a","a"]
[{"$f":"IF(B43=Eingabe!$B$16,ROW()-3,\"\")","v":""},"Triesenberg","Landwirtschaftszone (bebaut)","Triesenberg - Landwirtschaftszone (bebaut)","LW",null,0.2,0.15,null,null,"a","a","a","a","a","a"]
[{"$f":"IF(B44=Eingabe!$B$16,ROW()-3,\"\")","v":""},"Triesenberg","Sonderzone Gaflei","Triesenberg - Sonderzone Gaflei","SZG",null,0.25,0.15,null,0.15,"a","a","a","a","a","a"]
[{"$f":"IF(B45=Eingabe!$B$16,ROW()-3,\"\")","v":42},null,null," - "]
[{"$f":"IF(B46=Eingabe!$B$16,ROW()-3,\"\")","v":""},"Triesenberg","Kernzone (Steg)","Triesenberg - Kernzone (Steg)","K",null,0.25,0.15,null,null,"a","a","a","a","a","a"]
[{"$f":"IF(B47=Eingabe!$B$16,ROW()-3,\"\")","v":""},"Triesenberg","Hüttenzone (Steg)","Triesenberg - Hüttenzone (Steg)","H",null,0.2,0.15,null,0.15,"a","a","a","a","a","a"]
[{"$f":"IF(B48=Eingabe!$B$16,ROW()-3,\"\")","v":""},"Triesenberg","Reservezone (Steg)","Triesenberg - Reservezone (Steg)","R",null,0.2,0.15,null,0.15,"a","a","a","a","a","a"]
[{"$f":"IF(B49=Eingabe!$B$16,ROW()-3,\"\")","v":46},null,null," - "]
[{"$f":"IF(B50=Eingabe!$B$16,ROW()-3,\"\")","v":""},"Triesenberg","Kernzone (Malbun)","Triesenberg - Kernzone (Malbun)","K",null,0.25,0.15,null,0.15,"a","a","a","a","a","a"]
[{"$f":"IF(B51=Eingabe!$B$16,ROW()-3,\"\")","v":""},"Triesenberg","Ferienhauszone (Malbun)","Triesenberg - Ferienhauszone (Malbun)","F",null,0.2,0.15,0.2,0.15,"a","a","a","a","a","a"]
[{"$f":"IF(B52=Eingabe!$B$16,ROW()-3,\"\")","v":""},"Triesenberg","Zone für öffentliche Bauten und Anlagen (Malbun)","Triesenberg - Zone für öffentliche Bauten und Anlagen (Malbun)","Ö",null,0.25,0.15,0.25,0.15,"a","a","a","a","a","a"]
[null,"Triesenberg","Blaue Gefahrenzone","Triesenberg - Blaue Gefahrenzone",null,null,0.2,0.15,0.2,null,"a","a","a","a","a","a"]
[{"$f":"IF(B54=Eingabe!$B$16,ROW()-3,\"\")","v":""},"Triesenberg","Übriges Gemeindegebiet (bebaut) Malbun","Triesenberg - Übriges Gemeindegebiet (bebaut) Malbun",null,null,0.2,0.15,null,null,"a","a","a","a","a","a"]
[{"$f":"IF(B55=Eingabe!$B$16,ROW()-3,\"\")","v":52},null,null," - "]
[{"$f":"IF(B56=Eingabe!$B$16,ROW()-3,\"\")","v":""},"Vaduz","Kernzone K","Vaduz - Kernzone K","K",null,0.65,0.5,null,0.5,"a","a","a","a","a","a"]
[{"$f":"IF(B57=Eingabe!$B$16,ROW()-3,\"\")","v":""},"Vaduz","Wohnzone W4","Vaduz - Wohnzone W4","W4",null,0.4,0.25,null,null,"a","a","a","a","a","a"]
[{"$f":"IF(B58=Eingabe!$B$16,ROW()-3,\"\")","v":""},"Vaduz","Wohnzone W3","Vaduz - Wohnzone W3","W3",null,0.3,0.15,null,0.15,"a","a","a","a","a","a"]
[{"$f":"IF(B59=Eingabe!$B$16,ROW()-3,\"\")","v":""},"Vaduz","Wohnzone W2plus","Vaduz - Wohnzone W2plus","W2plus",null,0.3,0.15,null,0.15,"a","a","a","a","a","a"]
[{"$f":"IF(B60=Eingabe!$B$16,ROW()-3,\"\")","v":""},"Vaduz","Wohnzone W2","Vaduz - Wohnzone W2","W2",null,0.25,0.15,null,0.15,"a","a","a","a","a","a"]
[{"$f":"IF(B61=Eingabe!$B$16,ROW()-3,\"\")","v":""},"Vaduz","Wohnzone W1","Vaduz - Wohnzone W1","W1",null,0.25,0.15,null,0.15,"a","a","a","a","a","a"]
[{"$f":"IF(B62=Eingabe!$B$16,ROW()-3,\"\")","v":""},"Vaduz","Gewerbe- / Dienstleistungszone","Vaduz - Gewerbe- / Dienstleistungszone","GD1",null,0.4,0.25,null,0.25,"a","a","a","a","a","a"]
[{"$f":"IF(B63=Eingabe!$B$16,ROW()-3,\"\")","v":""},"Vaduz","Gewerbe- / Dienstleistungszone „Mölihölzli“","Vaduz - Gewerbe- / Dienstleistungszone „Mölihölzli“","GD2",null,0.5,0.35,null,0.35,"a","a","a","a","a","a"]
[{"$f":"IF(B64=Eingabe!$B$16,ROW()-3,\"\")","v":""},"Vaduz","Gewerbe- / Dienstleistungszone „Neuguet“\n(nördlich Hoval)","Vaduz - Gewerbe- / Dienstleistungszone „Neuguet“\n(nördlich Hoval)","GD3",null,0.5,0.35,null,0.35,"a","a","a","a","a","a"]
[{"$f":"IF(B65=Eingabe!$B$16,ROW()-3,\"\")","v":""},"Vaduz","Gewerbe- / Dienstleistungszone „Neuguet“\n(südlich Hoval)","Vaduz - Gewerbe- / Dienstleistungszone „Neuguet“\n(südlich Hoval)","GD4",null,0.4,0.25,null,0.25,"a","a","a","a","a","a"]
[{"$f":"IF(B66=Eingabe!$B$16,ROW()-3,\"\")","v":""},"Vaduz","Gewerbe- / Dienstleistungszone „Neuguet“\n(nördlich Kieswerk Triesen)","Vaduz - Gewerbe- / Dienstleistungszone „Neuguet“\n(nördlich Kieswerk Triesen)","GD5",null,0.45,0.3,null,null,"a","a","a","a","a","a"]
[{"$f":"IF(B67=Eingabe!$B$16,ROW()-3,\"\")","v":""},"Vaduz","Gewerbe- / Dienstleistungszone „Schwefel“\n(Kraftwerk Samina)","Vaduz - Gewerbe- / Dienstleistungszone „Schwefel“\n(Kraftwerk Samina)","GD6",null,0.4,0.25,null,0.25,"a","a","a","a","a","a"]
[{"$f":"IF(B68=Eingabe!$B$16,ROW()-3,\"\")","v":""},"Vaduz","Zone f. öffentl. Bauten und Anlagen","Vaduz - Zone f. öffentl. Bauten und Anlagen","ZÖBA",null,0.4,0.25,null,0.25,"a","a","a","a","a","a"]
[{"$f":"IF(B69=Eingabe!$B$16,ROW()-3,\"\")","v":""},"Vaduz","Übriges Gemeindegebiet (bebaut)",{"$f":"B69&\" - \"&C69","v":"Vaduz - Übriges Gemeindegebiet (bebaut)"},"ÜG",null,0.2,0.15,null,0.15,"a","a","a","a","a","a"]
[{"$f":"IF(B70=Eingabe!$B$16,ROW()-3,\"\")","v":""},"Vaduz","Landwirtschaftszone (bebaut)","Vaduz - Landwirtschaftszone (bebaut)","LW",null,0.2,0.15,null,0.15,"a","a","a","a","a","a"]
[null,"Vaduz","Rebzone (bebaut)",{"$f":"B71&\" - \"&C71","v":"Vaduz - Rebzone (bebaut)"},"REB",null,0.2,0.15,null,null,"a","a","a","a","a","a"]
[{"$f":"IF(B72=Eingabe!$B$16,ROW()-3,\"\")","v":""},"Vaduz","Schutzzone \"Schloss Vaduz\"","Vaduz - Schutzzone \"Schloss Vaduz\"","SSV",null,0.2,0.15,null,null,"a","a","a","a","a","a"]
[{"$f":"IF(B73=Eingabe!$B$16,ROW()-3,\"\")","v":70},null,null," - "]
[{"$f":"IF(B74=Eingabe!$B$16,ROW()-3,\"\")","v":""},"Schaan","Kernzone 1","Schaan - Kernzone 1","K1",null,0.5,0.35]
[{"$f":"IF(B75=Eingabe!$B$16,ROW()-3,\"\")","v":""},"Schaan","Kernzone 2","Schaan - Kernzone 2","K2",null,0.5,0.35]
[{"$f":"IF(B76=Eingabe!$B$16,ROW()-3,\"\")","v":""},"Schaan","Wohnzone 1","Schaan - Wohnzone 1","W1",null,0.25,0.15,0.15]
[{"$f":"IF(B77=Eingabe!$B$16,ROW()-3,\"\")","v":""},"Schaan","Wohnzone 2","Schaan - Wohnzone 2","W2",null,0.25,0.15]
[{"$f":"IF(B78=Eingabe!$B$16,ROW()-3,\"\")","v":""},"Schaan","Wohnzone 3","Schaan - Wohnzone 3","W3",null,0.3,0.15,0.15,null,0.3,0.15,0.15]
[{"$f":"IF(B79=Eingabe!$B$16,ROW()-3,\"\")","v":""},"Schaan","Gewerbezone 1","Schaan - Gewerbezone 1","G1",null,0.3,0.15,0.15,null,0.3,0.15,0.15]
[{"$f":"IF(B80=Eingabe!$B$16,ROW()-3,\"\")","v":""},"Schaan","Gewerbezone 2","Schaan - Gewerbezone 2","G2",null,0.65,0.5,null,null,"i","i","i"]
[{"$f":"IF(B81=Eingabe!$B$16,ROW()-3,\"\")","v":""},"Schaan","Zone für öffentliche Bauten und Anlagen","Schaan - Zone für öffentliche Bauten und Anlagen","ZÖBA",null,0.3,0.15,null,null,"i","i","i"]
[{"$f":"IF(B82=Eingabe!$B$16,ROW()-3,\"\")","v":""},"Schaan","Landwirtschaftszone 1 (bebaut)","Schaan - Landwirtschaftszone 1 (bebaut)","LW1",null,0.25,0.15,null,null,"i","i","i"]
[{"$f":"IF(B83=Eingabe!$B$16,ROW()-3,\"\")","v":""},"Schaan","Landwirtschaftszone 2 (bebaut)","Schaan - Landwirtschaftszone 2 (bebaut)","LW2",null,0.25,0.15,null,null,"i","i","i"]
[{"$f":"IF(B84=Eingabe!$B$16,ROW()-3,\"\")","v":""},"Schaan","Übriges Gemeindegebiet (bebaut)","Schaan - Übriges Gemeindegebiet (bebaut)","ÜG",null,0.25,0.15,null,null,"i","i","i"]
[{"$f":"IF(B85=Eingabe!$B$16,ROW()-3,\"\")","v":82},null,null," - "]
[{"$f":"IF(B86=Eingabe!$B$16,ROW()-3,\"\")","v":""},"Planken","Wohnzone","Planken - Wohnzone",null,null,0.25,0.15]
[{"$f":"IF(B87=Eingabe!$B$16,ROW()-3,\"\")","v":""},"Planken","Zone für öffentliche Bauten","Planken - Zone für öffentliche Bauten",null,null,0.25,0.15]
[{"$f":"IF(B88=Eingabe!$B$16,ROW()-3,\"\")","v":85},null,null," - "]
[{"$f":"IF(B89=Eingabe!$B$16,ROW()-3,\"\")","v":""},"Eschen-Nendeln","Kernzone","Eschen-Nendeln - Kernzone","K",null,0.35,0.25,null,null,"a","a","a","a","a","a"]
[{"$f":"IF(B90=Eingabe!$B$16,ROW()-3,\"\")","v":""},"Eschen-Nendeln","Wohnzone A","Eschen-Nendeln - Wohnzone A","A",null,0.25,0.15,0.25,0.15,"a","a","a","a","a","a"]
[{"$f":"IF(B91=Eingabe!$B$16,ROW()-3,\"\")","v":""},"Eschen-Nendeln","Wohnzone B","Eschen-Nendeln - Wohnzone B","B",null,0.2,0.15,0.2,0.15,"a","a","a","a","a","a"]
[{"$f":"IF(B92=Eingabe!$B$16,ROW()-3,\"\")","v":""},"Eschen-Nendeln","Reservezone","Eschen-Nendeln - Reservezone","RZ",null,0.2,0.15,0.2,0.15,"a","a","a","a","a","a"]
[{"$f":"IF(B93=Eingabe!$B$16,ROW()-3,\"\")","v":""},"Eschen-Nendeln","Zone für öffentliche Bauten und Anlagen","Eschen-Nendeln - Zone für öffentliche Bauten und Anlagen","Ö",null,0.3,0.25,0.3,0.25,"a","a","a","a","a","a"]
[{"$f":"IF(B94=Eingabe!$B$16,ROW()-3,\"\")","v":""},"Eschen-Nendeln","Industrie- und Gewerbezone Brühl","Eschen-Nendeln - Industrie- und Gewerbezone Brühl","I",null,0.4,0.4,0.4,null,"a","a","a","a","a","a"]
[null,"Eschen-Nendeln","Industrie- und Gewerbezone Säga",{"$f":"B95&\" - \"&C95","v":"Eschen-Nendeln - Industrie- und Gewerbezone Säga"},"I",null,0.4,0.4,0.4,null,"a","a","a","a","a","a"]
[{"$f":"IF(B96=Eingabe!$B$16,ROW()-3,\"\")","v":""},"Eschen-Nendeln","Industrie- und Gewerbezone Wirtschaftspark","Eschen-Nendeln - Industrie- und Gewerbezone Wirtschaftspark","I",null,0.4,0.4,0.4,null,"a","a","a","a","a","a"]
[{"$f":"IF(B97=Eingabe!$B$16,ROW()-3,\"\")","v":""},"Eschen-Nendeln","Übriges Gemeindegebiet (bebaut)","Eschen-Nendeln - Übriges Gemeindegebiet (bebaut)","ÜG",null,0.2,0.15,0.2,0.15,"a","a","a","a","a","a"]
[{"$f":"IF(B98=Eingabe!$B$16,ROW()-3,\"\")","v":""},"Eschen-Nendeln","Landwirtschaftszone (bebaut)","Eschen-Nendeln - Landwirtschaftszone (bebaut)","LW",null,0.2,0.15,null,null,"a","a","a","a","a","a"]
[{"$f":"IF(B99=Eingabe!$B$16,ROW()-3,\"\")","v":96},null,null," - "]
[{"$f":"IF(B100=Eingabe!$B$16,ROW()-3,\"\")","v":""},"Gamprin","Dorfkernzone Bendern","Gamprin - Dorfkernzone Bendern","DK",null,0.35,0.25,null,null,"a","a","a","a","a","a"]
[{"$f":"IF(B101=Eingabe!$B$16,ROW()-3,\"\")","v":""},"Gamprin","Wohnzone W3","Gamprin - Wohnzone W3","W3",null,0.25,0.15,null,null,"a","a","a","a","a","a"]
[{"$f":"IF(B102=Eingabe!$B$16,ROW()-3,\"\")","v":""},"Gamprin","Wohnzone W2","Gamprin - Wohnzone W2","W2",null,0.2,0.15,0.2,0.15,"a","a","a","a","a","a"]
[{"$f":"IF(B103=Eingabe!$B$16,ROW()-3,\"\")","v":""},"Gamprin","Reservezone","Gamprin - Reservezone","R",null,0.2,0.15,null,null,"a","a","a","a","a","a"]
[{"$f":"IF(B104=Eingabe!$B$16,ROW()-3,\"\")","v":""},"Gamprin","Zone für öffentliche Bauten und Anlagen","Gamprin - Zone für öffentliche Bauten und Anlagen","OE",null,0.3,0.25,0.3,0.25,"a","a","a","a","a","a"]
[{"$f":"IF(B105=Eingabe!$B$16,ROW()-3,\"\")","v":""},"Gamprin","Arbeitszone A","Gamprin - Arbeitszone A","AA",null,0.4,0.35,0.4,0.35,"a","a","a","a","a","a"]
[{"$f":"IF(B106=Eingabe!$B$16,ROW()-3,\"\")","v":""},"Gamprin","Arbeitszone B","Gamprin - Arbeitszone B","AB",null,0.4,0.35,0.4,0.35,"a","a","a","a","a","a"]
[null,"Gamprin","Gewerbe und Lagerzone Ganada","Gamprin - Gewerbe und Lagerzone Ganada","GL",null,0.4,0.35,null,0.35,"a","a","a","a","a","a"]
[{"$f":"IF(B108=Eingabe!$B$16,ROW()-3,\"\")","v":""},"Gamprin","Übriges Gemeindegebiet (bebaut)","Gamprin - Übriges Gemeindegebiet (bebaut)","ÜG",null,0.2,0.15,0.2,null,"a","a","a","a","a","a"]
[{"$f":"IF(B109=Eingabe!$B$16,ROW()-3,\"\")","v":""},"Gamprin","Landwirtschaftszone (bebaut)","Gamprin - Landwirtschaftszone (bebaut)","LW",null,0.2,0.15,0.2,null,"a","a","a","a","a","a"]
[{"$f":"IF(B110=Eingabe!$B$16,ROW()-3,\"\")","v":107},null,null," - "]
[{"$f":"IF(B111=Eingabe!$B$16,ROW()-3,\"\")","v":""},"Mauren","Kernzone 1",{"$f":"B111&\" - \"&C111","v":"Mauren - Kernzone 1"},"K1",null,0.35,0.25,null,null,"a","a","a","a","a","a"]
[{"$f":"IF(B112=Eingabe!$B$16,ROW()-3,\"\")","v":""},"Mauren","Kernzone 2","Mauren - Kernzone 2","K2",null,0.3,0.2,null,null,"a","a","a","a","a","a"]
[{"$f":"IF(B113=Eingabe!$B$16,ROW()-3,\"\")","v":""},"Mauren","Wohnzone A","Mauren - Wohnzone A","WA",null,0.25,0.15,0.25,0.15,"a","a","a","a","a","a"]
[{"$f":"IF(B114=Eingabe!$B$16,ROW()-3,\"\")","v":""},"Mauren","Wohnzone B","Mauren - Wohnzone B","WB",null,0.2,0.15,null,null,"a","a","a","a","a","a"]
[{"$f":"IF(B115=Eingabe!$B$16,ROW()-3,\"\")","v":""},"Mauren","Wohnzone C","Mauren - Wohnzone C","WC",null,0.2,0.15,null,null,"a","a","a","a","a","a"]
[{"$f":"IF(B116=Eingabe!$B$16,ROW()-3,\"\")","v":""},"Mauren","Nicht zoniert (Reservezone)","Mauren - Nicht zoniert (Reservezone)",null,null,0.2,0.15,null,null,"a","a","a","a","a","a"]
[{"$f":"IF(B117=Eingabe!$B$16,ROW()-3,\"\")","v":""},"Mauren","Zone für öffentliche Bauten und Anlagen","Mauren - Zone für öffentliche Bauten und Anlagen","ÖBA",null,0.3,0.25,0.3,null,"a","a","a","a","a","a"]
[{"$f":"IF(B118=Eingabe!$B$16,ROW()-3,\"\")","v":""},"Mauren","Zone für öffentliche Anlagen","Mauren - Zone für öffentliche Anlagen","ÖA",null,0.3,0.25,null,null,"a","a","a","a","a","a"]
[null,"Mauren","Arbeitszone ES III",{"$f":"B119&\" - \"&C119","v":"Mauren - Arbeitszone ES III"},"AA",null,0.4,0.25,null,null,"a","a","a","a","a","a"]
[null,"Mauren","Arbeitszone ES IV (eh. Industrie- u. Gewerbe)","Mauren - Arbeitszone ES IV (eh. Industrie- u. Gewerbe)","AB",null,0.5,0.35,0.5,null,"a","a","a","a","a","a"]
[null,"Mauren","Zone für Sport und Reitsport","Mauren - Zone für Sport und Reitsport","SR",null,0.4,0.25,0.4,null,"a","a","a","a","a","a"]
[null,"Mauren","Zone für Gartenbau","Mauren - Zone für Gartenbau","GB",null,0.2,0.15,0.2,null,"a","a","a","a","a","a"]
[{"$f":"IF(B123=Eingabe!$B$16,ROW()-3,\"\")","v":""},"Mauren","Übriges Gemeindegebiet (bebaut)","Mauren - Übriges Gemeindegebiet (bebaut)","ÜG",null,0.2,0.15,null,null,"a","a","a","a","a","a"]
[{"$f":"IF(B124=Eingabe!$B$16,ROW()-3,\"\")","v":""},"Mauren","Landwirtschaftszone (bebaut)","Mauren - Landwirtschaftszone (bebaut)","LW",null,0.2,0.15,0.2,null,"a","a","a","a","a","a"]
[{"$f":"IF(B125=Eingabe!$B$16,ROW()-3,\"\")","v":122},null,null," - "]
[{"$f":"IF(B126=Eingabe!$B$16,ROW()-3,\"\")","v":""},"Ruggell","Dorfkernzone","Ruggell - Dorfkernzone","DK",null,0.25,null,null,null,0.25,0.1,0.15]
[{"$f":"IF(B127=Eingabe!$B$16,ROW()-3,\"\")","v":""},"Ruggell","Wohnzone 2","Ruggell - Wohnzone 2","W2",null,0.25,null,null,null,0.25,0.1,0.15]
[{"$f":"IF(B128=Eingabe!$B$16,ROW()-3,\"\")","v":""},"Ruggell","Wohnzone 3","Ruggell - Wohnzone 3","W3",null,0.25,null,null,null,0.25,0.1,0.15]
[{"$f":"IF(B129=Eingabe!$B$16,ROW()-3,\"\")","v":""},"Ruggell","Wohn- und Gewerbezone","Ruggell - Wohn- und Gewerbezone","WG",null,0.25,null,null,null,0.25,0.1,0.15]
[{"$f":"IF(B130=Eingabe!$B$16,ROW()-3,\"\")","v":""},"Ruggell","Wohnzone 3D","Ruggell - Wohnzone 3D","W3D",null,0.25]
[{"$f":"IF(B131=Eingabe!$B$16,ROW()-3,\"\")","v":""},"Ruggell","Wohnzone 2 Etappe zwei","Ruggell - Wohnzone 2 Etappe zwei","W2/2.E",null,0.25,null,null,null,0.25,0.1,0.15]
[{"$f":"IF(B132=Eingabe!$B$16,ROW()-3,\"\")","v":""},"Ruggell","Wohnzone 3 Etappe zwei","Ruggell - Wohnzone 3 Etappe zwei","W3/2.E",null,0.25,null,null,null,0.25,0.1,0.15]
[{"$f":"IF(B133=Eingabe!$B$16,ROW()-3,\"\")","v":""},"Ruggell","Wohn- und Gewerbezone Etappe zwei","Ruggell - Wohn- und Gewerbezone Etappe zwei","WG/2.E",null,0.25,null,null,null,0.25,0.1,0.15]
[{"$f":"IF(B134=Eingabe!$B$16,ROW()-3,\"\")","v":""},"Ruggell","Arbeitszone Nord / Widau","Ruggell - Arbeitszone Nord / Widau","ANo",null,null,null,null,null,0.55000000000000004,0.3,0.25]
[null,"Ruggell","Arbeitszone Mitte / Widau","Ruggell - Arbeitszone Mitte / Widau","AMi",null,0.65,null,0.65,null,0.55000000000000004,0.3,0.25]
[null,"Ruggell","Arbeits- u. Lagerzone West / Flandera","Ruggell - Arbeits- u. Lagerzone West / Flandera","ALW",null,0.35]
[null,"Ruggell","Arbeits u . Lagerzone Ost / Kela","Ruggell - Arbeits u . Lagerzone Ost / Kela","ALO",null,null,null,0.35]
[{"$f":"IF(B138=Eingabe!$B$16,ROW()-3,\"\")","v":""},"Ruggell","Zone für öffentl. Bauten und Anlagen","Ruggell - Zone für öffentl. Bauten und Anlagen","ÖBA",null,0.25,null,0.25,null,0.25,0.1,0.15]
[{"$f":"IF(B139=Eingabe!$B$16,ROW()-3,\"\")","v":""},"Ruggell","Landwirtschaftszone (bebaut)","Ruggell - Landwirtschaftszone (bebaut)","LW",null,0.25,null,0.25,null,0.25,0.1,0.15]
[{"$f":"IF(B140=Eingabe!$B$16,ROW()-3,\"\")","v":""},"Ruggell","Übriges Gemeindegebiet","Ruggell - Übriges Gemeindegebiet","ÜG",null,0.25,null,0.25,null,0.25,0.1,0.15]
[{"$f":"IF(B141=Eingabe!$B$16,ROW()-3,\"\")","v":138},null,null," - "]
[{"$f":"IF(B142=Eingabe!$B$16,ROW()-3,\"\")","v":""},"Schellenberg","Wohnzone 1","Schellenberg - Wohnzone 1","W",null,0.2,0.15,null,null,"a","a","a","a","a","a"]
[{"$f":"IF(B143=Eingabe!$B$16,ROW()-3,\"\")","v":""},"Schellenberg","Zone für öffentliche Bauten und Anlagen","Schellenberg - Zone für öffentliche Bauten und Anlagen","O",null,0.3,0.25,0.3,null,"a","a","a","a","a","a"]
[{"$f":"IF(B144=Eingabe!$B$16,ROW()-3,\"\")","v":""},"Schellenberg","Übriges Gemeindegebiet (bebaut)","Schellenberg - Übriges Gemeindegebiet (bebaut)","UeG",null,0.2,0.15,null,null,"a","a","a","a","a","a"]
[{"$f":"IF(B145=Eingabe!$B$16,ROW()-3,\"\")","v":""},"Schellenberg","Landwirtschaftszone (bebaut)","Schellenberg - Landwirtschaftszone (bebaut)","L",null,0.2,0.15,null,null,"a","a","a","a","a","a"]
[{"$f":"IF(B146=Eingabe!$B$16,ROW()-3,\"\")","v":143}]
[{"$f":"IF(B147=Eingabe!$B$16,ROW()-3,\"\")","v":144}]
[{"$f":"IF(B148=Eingabe!$B$16,ROW()-3,\"\")","v":145},null,null,null,"Bemerkungen"]
[{"$f":"IF(B149=Eingabe!$B$16,ROW()-3,\"\")","v":""},"Gemeinden",null,null,"i",null,"Abflussbeiwert nach Angabe Gemeinde"]
[null,null,null,null,"a",null,"Berechnung Teilabflussbeiwerte MW bis Max. 50%"]
[null,"Balzers",null,null,null,null,"Kein Wert definiert"]
[null,"Eschen-Nendeln"]
[null,"Gamprin"]
[null,"Mauren"]
[null,"Planken"]
[null,"Ruggell"]
[null,"Schaan"]
[null,"Schellenberg"]
[null,"Triesen"]
[null,"Triesenberg"]
[null,"Vaduz"]
[]
[]
["ID","Gemeinde","Zonen"]
[{"$f":"B1","v":15},{"$f":"IF(A165=\"\",\"\",INDEX(B$4:B$146,A165,1))","v":0},{"$f":"IF(A165=\"\",\"\",INDEX(C$4:C$146,A165,1))","v":0}]
[{"$f":"IF(1+MAX(A$165:A165)<B$2+1,1+A165,\"\")","v":16},"Triesen","Kernzone"]
[{"$f":"IF(1+MAX(A$165:A166)<B$2+1,1+A166,\"\")","v":17},"Triesen","Dorfkernzone"]
[{"$f":"IF(1+MAX(A$165:A167)<B$2+1,1+A167,\"\")","v":18},"Triesen","Wohnzone A"]
[{"$f":"IF(1+MAX(A$165:A168)<B$2+1,1+A168,\"\")","v":19},"Triesen","Wohnzone B"]
[{"$f":"IF(1+MAX(A$165:A169)<B$2+1,1+A169,\"\")","v":20},"Triesen","Wohnzone C"]
[{"$f":"IF(1+MAX(A$165:A170)<B$2+1,1+A170,\"\")","v":21},"Triesen","Reservezone Wohnzone B"]
[{"$f":"IF(1+MAX(A$165:A171)<B$2+1,1+A171,\"\")","v":22},"Triesen","Reservezone Wohnzone C"]
[{"$f":"IF(1+MAX(A$165:A172)<B$2+1,1+A172,\"\")","v":23},"Triesen","Zone für öffentliche Bauten und Anlagen"]
[{"$f":"IF(1+MAX(A$165:A173)<B$2+1,1+A173,\"\")","v":24},"Triesen","Zone für Dienstleistungen und Gewerbe"]
[{"$f":"IF(1+MAX(A$165:A174)<B$2+1,1+A174,\"\")","v":25},"Triesen","Gewerbezone Austrasse"]
[{"$f":"IF(1+MAX(A$165:A175)<B$2+1,1+A175,\"\")","v":26},"Triesen","Gewerbezone Blumenau"]
[{"$f":"IF(1+MAX(A$165:A176)<B$2+1,1+A176,\"\")","v":27},"Triesen","Gewerbezone Hoval"]
[{"$f":"IF(1+MAX(A$165:A177)<B$2+1,1+A177,\"\")","v":28},"Triesen","Gewerbezone Neusand"]
[{"$f":"IF(1+MAX(A$165:A178)<B$2+1,1+A178,\"\")","v":29},"Triesen","Übriges Gemeindegebiet (bebaut)"]
[{"$f":"IF(1+MAX(A$165:A179)<B$2+1,1+A179,\"\")","v":30},"Triesen","Landwirtschaftszone (bebaut)"]
[{"$f":"IF(1+MAX(A$165:A180)<B$2+1,1+A180,\"\")","v":31},0,0]
[{"$f":"IF(1+MAX(A$165:A181)<B$2+1,1+A181,\"\")","v":32},"Triesenberg","Kernzone "]
[{"$f":"IF(1+MAX(A$165:A182)<B$2+1,1+A182,\"\")","v":33},"Triesenberg","Weilerkernzone"]
[{"$f":"IF(1+MAX(A$165:A183)<B$2+1,1+A183,\"\")","v":34},"Triesenberg","Wohnzone "]